{"text_format":"1","workbook":"xlsx","n_sheets":10,"sheets":["Allgemeine Daten","Vorabklärung","Anmeldung","Installations-Attest","Beurteilung","Ausserbetrieb-Inbetriebsetzung","Behörden","Änderungen","Fachstelle(n)","To-Do List"],"not_rendered":{"charts":0,"images":2,"macros":1,"external_links":2,"defined_names":23,"comments":5,"pivot_tables":0},"unopened":[],"bounds":{"document_bytes":16777216,"sheet_cells":100000,"rows_first":2000,"rows_last":500,"rows_between":2000,"halvings":0,"cell_chars":16384,"cell_head_chars":4096},"cells_cut":0,"cells_raw":0,"read":"whole","date_system":"1900"}

{"sheet":"Allgemeine Daten","index":0,"n_rows":149,"n_cols":46,"rows_kept":149,"cut":false,"hidden":false,"merged":[[150,17,150,50],[115,21,115,24],[113,21,113,24],[113,29,113,32],[135,17,135,50],[137,17,137,50],[115,29,115,32],[121,38,121,50],[123,38,123,50],[125,38,125,50],[127,21,127,24],[127,29,127,32],[127,38,127,50],[146,1,148,7],[85,1,87,7],[85,16,85,29],[87,16,87,29],[87,33,87,35],[94,41,94,50],[97,1,99,7],[117,13,117,50],[106,1,106,7],[101,9,103,50],[89,41,89,50],[92,16,92,29],[113,38,113,50],[115,38,115,50],[125,29,125,32],[123,29,123,32],[121,29,121,32],[125,21,125,24],[123,21,123,24],[121,21,121,24],[141,17,141,50],[113,1,115,7],[143,17,143,50],[148,17,148,50],[94,16,94,29],[87,41,87,50],[27,41,27,50],[25,41,25,50],[27,33,27,35],[22,16,22,29],[58,41,58,50],[77,16,77,29],[77,33,77,35],[77,41,77,50],[80,16,80,29],[82,16,82,29],[82,41,82,50],[46,41,46,50],[65,41,65,50],[63,41,63,50],[63,16,63,29],[65,16,65,29],[37,41,37,50],[34,16,34,29],[39,41,39,50],[39,16,39,29],[46,16,46,29],[44,41,44,50],[3,2,3,14],[25,1,27,7],[8,41,8,50],[25,16,25,29],[27,16,27,29],[13,1,15,7],[15,16,15,29],[10,41,10,50],[4,41,4,50],[6,41,6,50],[6,33,6,35],[8,33,8,35],[4,16,4,35],[6,16,6,29],[8,16,8,29],[13,44,13,50],[15,33,15,35],[15,41,15,50],[17,16,17,29],[20,33,20,35],[17,41,17,50],[20,16,20,29],[20,41,20,50],[29,33,29,35],[29,41,29,50],[29,16,29,29],[32,16,32,29],[13,16,13,32],[41,33,41,35],[4,1,7,7],[73,1,75,7],[75,16,75,29],[75,33,75,35],[75,41,75,50],[63,33,63,35],[49,1,53,7],[44,16,44,29],[37,1,39,7],[61,16,61,29],[61,1,63,7],[39,33,39,35],[37,16,37,29],[41,41,41,50],[44,35,44,40],[32,41,32,50],[41,16,41,29],[89,16,89,29],[89,33,89,35],[49,16,49,29],[51,16,51,29],[51,33,51,35],[51,41,51,50],[53,16,53,29],[53,33,53,35],[53,41,53,50],[56,16,56,29],[56,35,56,40],[56,41,56,50],[65,33,65,35],[73,16,73,29],[58,16,58,29],[68,16,68,29],[70,41,70,50],[70,16,70,29]]}
[null,null,null,null,null,null,null,null,null,"Brandmeldeanlage"]
[null,null,null,null,null,null,null,null,null,"Allgemeine Daten"]
[]
[]
["1.","Überwachtes              Gebäude",null,null,null,null,null,null,null,"Objekt",null,null,null,null,null,null,null,null,null,null,null,null,null,null,null,null,null,null,null,null,null,null,null,null,null,null,null,"Vers.- Nr."]
[]
[null,null,null,null,null,null,null,null,null,"Strasse",null,null,null,null,null,null,null,null,null,null,null,null,null,null,null,null,null,null,null,null,null,"Nr.",null,null,null,null,null,"Anlage Nr."]
[]
[null,null,null,null,null,null,null,null,null,"Ort",null,null,null,null,null,null,null,null,null,null,null,null,null,null,null,null,null,null,null,null,null,"PLZ",null,null,null,null,null,"Kataster Nr."]
[]
[null,null,null,null,null,null,null,null,null,"Qualitätssicherungsstufe ",null,null,null,null,null,null,"QSS ",null," -",null,null,null,null,null,null,null,null,null,null,null,null,null,null,null,null,null,null,"EGID Nr."]
[]
[]
["2.","QS Verantwortlicher Brandschutz",null,null,null,null,null,null,null,"Name und Vorname",null,null,null,null,null,null,null,null,null,null,null,null,null,null,null,null,null,null,null,null,null,null,null,null,null,null,null,"VKF-Anerkennung Nr."]
[]
[null,null,null,null,null,null,null,null,null,"Strasse",null,null,null,null,null,null,null,null,null,null,null,null,null,null,null,null,null,null,null,null,null,"Nr.",null,null,null,null,null,"Tel. direkt"]
[]
[null,null,null,null,null,null,null,null,null,"Firma",null,null,null,null,null,null,null,null,null,null,null,null,null,null,null,null,null,null,null,null,null,null,null,null,null,null,null,"Fax"]
[]
[]
[null,null,null,null,null,null,null,null,null,"Ort",null,null,null,null,null,null,null,null,null,null,null,null,null,null,null,null,null,null,null,null,null,"PLZ",null,null,null,null,null,"Tel."]
[]
[null,null,null,null,null,null,null,null,null,"E-Mail"]
[]
[]
["3.","Fachfirma Planung",null,null,null,null,null,null,null,"Firma",null,null,null,null,null,null,null,null,null,null,null,null,null,null,null,null,null,null,null,null,null,"VKF Anerkennung Nr."]
[]
[null,null,null,null,null,null,null,null,null,"Strasse",null,null,null,null,null,null,null,null,null,null,null,null,null,null,null,null,null,null,null,null,null,"Nr.",null,null,null,null,null,"Tel."]
[]
[null,null,null,null,null,null,null,null,null,"Ort",null,null,null,null,null,null,null,null,null,null,null,null,null,null,null,null,null,null,null,null,null,"PLZ",null,null,null,null,null,"Fax"]
[]
[]
[null,null,null,null,null,null,null,null,null,"Kontaktperson",null,null,null,null,null,null,null,null,null,null,null,null,null,null,null,null,null,null,null,null,null,null,null,null,null,null,null,"Tel. direkt"]
[]
[null,null,null,null,null,null,null,null,null,"E-Mail"]
[]
[]
["4.","Fachfirma Errichtung",null,null,null,null,null,null,null,"Firma",null,null,null,null,null,null,null,null,null,null,null,null,null,null,null,null,null,null,null,null,null,"VKF Anerkennung Nr."]
[]
[null,null,null,null,null,null,null,null,null,"Strasse",null,null,null,null,null,null,null,null,null,null,null,null,null,null,null,null,null,null,null,null,null,"Nr.",null,null,null,null,null,"Tel."]
[]
[null,null,null,null,null,null,null,null,null,"Ort",null,null,null,null,null,null,null,null,null,null,null,null,null,null,null,null,null,null,null,null,null,"PLZ",null,null,null,null,null,"Fax"]
[]
[]
[null,null,null,null,null,null,null,null,null,"Zuständige Person",null,null,null,null,null,null,null,null,null,null,null,null,null,null,null,null,null,null,null,null,null,null,null,null,null,"VKF Zertifikat Nr."]
[]
[null,null,null,null,null,null,null,null,null,"E-Mail",null,null,null,null,null,null,null,null,null,null,null,null,null,null,null,null,null,null,null,null,null,null,null,null,null,null,null,"Tel. direkt"]
[]
[]
["5.","Geamtverant-wortlicher \nBrandfall-steuerungen ",null,null,null,null,null,null,null,"Firma"]
[]
[null,null,null,null,null,null,null,null,null,"Strasse",null,null,null,null,null,null,null,null,null,null,null,null,null,null,null,null,null,null,null,null,null,"Nr.",null,null,null,null,null,"Tel."]
[]
[null,null,null,null,null,null,null,null,null,"Ort",null,null,null,null,null,null,null,null,null,null,null,null,null,null,null,null,null,null,null,null,null,"PLZ",null,null,null,null,null,"Fax"]
[]
[]
[null,null,null,null,null,null,null,null,null,"Zuständige Person",null,null,null,null,null,null,null,null,null,null,null,null,null,null,null,null,null,null,null,null,null,null,null,null,null,"VKF Zertifikat Nr."]
[]
[null,null,null,null,null,null,null,null,null,"E-Mail",null,null,null,null,null,null,null,null,null,null,null,null,null,null,null,null,null,null,null,null,null,null,null,null,null,null,null,"Tel. direkt"]
[]
[]
["6.","Eigentümerschaft",null,null,null,null,null,null,null,"Name"]
[]
[null,null,null,null,null,null,null,null,null,"Strasse",null,null,null,null,null,null,null,null,null,null,null,null,null,null,null,null,null,null,null,null,null,"Nr.",null,null,null,null,null,"Tel."]
[]
[null,null,null,null,null,null,null,null,null,"Ort",null,null,null,null,null,null,null,null,null,null,null,null,null,null,null,null,null,null,null,null,null,"PLZ",null,null,null,null,null,"Fax"]
[]
[]
[null,null,null,null,null,null,null,null,null,"Zuständige Person"]
[]
[null,null,null,null,null,null,null,null,null,"E-Mail",null,null,null,null,null,null,null,null,null,null,null,null,null,null,null,null,null,null,null,null,null,null,null,null,null,null,null,"Tel. direkt"]
[]
[]
["7.","Vertreter Eigentümerschaft",null,null,null,null,null,null,null,"Name"]
[]
[null,null,null,null,null,null,null,null,null,"Strasse",null,null,null,null,null,null,null,null,null,null,null,null,null,null,null,null,null,null,null,null,null,"Nr.",null,null,null,null,null,"Tel."]
[]
[null,null,null,null,null,null,null,null,null,"Ort",null,null,null,null,null,null,null,null,null,null,null,null,null,null,null,null,null,null,null,null,null,"PLZ",null,null,null,null,null,"Fax"]
[]
[]
[null,null,null,null,null,null,null,null,null,"Zuständige Person"]
[]
[null,null,null,null,null,null,null,null,null,"E-Mail",null,null,null,null,null,null,null,null,null,null,null,null,null,null,null,null,null,null,null,null,null,null,null,null,null,null,null,"Tel. direkt"]
[]
[]
["8.","Anlageverant-wortlicher",null,null,null,null,null,null,null,"Name"]
[]
[null,null,null,null,null,null,null,null,null,"Strasse",null,null,null,null,null,null,null,null,null,null,null,null,null,null,null,null,null,null,null,null,null,"Nr.",null,null,null,null,null,"Tel."]
[]
[null,null,null,null,null,null,null,null,null,"Ort",null,null,null,null,null,null,null,null,null,null,null,null,null,null,null,null,null,null,null,null,null,"PLZ",null,null,null,null,null,"Fax"]
[]
[]
[null,null,null,null,null,null,null,null,null,"Zuständige Person"]
[]
[null,null,null,null,null,null,null,null,null,"E-Mail",null,null,null,null,null,null,null,null,null,null,null,null,null,null,null,null,null,null,null,null,null,null,null,null,null,null,null,"Tel. direkt"]
[]
[]
["9.","Projekt-beschreibung",null,null,null,null,null,null,null," -","Neuanlage",null,null,null,null,null,null," -","Erweiterung / Umbau ",null,null,null,null,null,null,null,null," -","Beurteilung nach 15 Jahren"]
[]
[null,null,null,null,null,null,null,null,null," -","Modernisierung:",null,null,null,null,null,null," -","Zentralenersatz",null,null,null,null,null,null,null,null," -","Melderersatz",null,null,null,null,null,null,null,null," -","I / O Bausteine im Meldernetz"]
[]
[null,null,null,null,null,null,null,null,null," -"]
[]
[]
[]
[]
["10.","Anlagestatus",null,null,null,null,null,null,null,"Vorgeschrieben aufgrund:",null,null,null,null,null,null,null," -","Standardkonzept (VKF BSN Art. 10)",null,null,null,null,null,null,null,null,null,null,null,null,null,null,null,null,null,null," -","Alarm-/ Störungsübermittlung SPA"]
[]
[null,null,null,null,null,null,null,null,null,null,null,null,null,null,null,null,null," -","alternativem Brandschutzkonzept (VKF BSN Art. 11 / 12) "]
[]
[null,null,null,null,null,null,null,null,null," -","freiwillig und auf die öffentliche Feuermeldestelle aufgeschaltet"]
[]
[]
["11.","Projektierungs-grundlagen",null,null,null,null,null,null,null," -","Brandschutzpläne (QSS 1-4) vom",null,null,null,null,null,null,null,null,null,null,null,null,null,null,null,"Version",null,null,null,null,null,null,null,"Bemerkung"]
[]
[null,null,null,null,null,null,null,null,null," -","Brandschutzkonzept (QSS 4) vom",null,null,null,null,null,null,null,null,null,null,null,null,null,null,null,"Version",null,null,null,null,null,null,null,"Bemerkung"]
[]
[null,null,null,null,null,null,null,null,null,"Verfasser:"]
[]
[null,null,null,null,null,null,null,null,null,"Dokumentation Brandfallsteuerungen bestehend aus:"]
[]
[null,null,null,null,null,null,null,null,null," -","Pflichtenheft vom",null,null,null,null,null,null,null,null,null,null,null,null,null,null,null,"Version",null,null,null,null,null,null,null,"Bemerkung"]
[]
[null,null,null,null,null,null,null,null,null," -","Zonenplan vom",null,null,null,null,null,null,null,null,null,null,null,null,null,null,null,"Version",null,null,null,null,null,null,null,"Bemerkung"]
[]
[null,null,null,null,null,null,null,null,null," -","Liste oder Matrix vom",null,null,null,null,null,null,null,null,null,null,null,null,null,null,null,"Version",null,null,null,null,null,null,null,"Bemerkung"]
[]
[null,null,null,null,null,null,null,null,null," -","Konzept Manuelle Aktivierung",null,null,null,null,null,null,null,null,null,null,null,null,null,null,null,"Version",null,null,null,null,null,null,null,"Bemerkung"]
[]
[null,null,null,null,null,null,null,null,null,"Automatische Auslösung Brandfallsteuerung",null,null,null,null,null,null,null,null,null,null,null,null," -","Kollektiv (mit Fail Safe)",null,null,null,null,null,null,null,null," -","Kollektiv (ohne Fail Safe)",null,null,null,null,null,null,null,null,null,null," -","Selektiv"]
[]
[null,null,null,null,null,null,null,null,null,"Manuelle Auslösung Brandfallsteuerung",null,null,null,null,null,null,null,null,null,null,null,null," -","Kollektiv (mit Fail Safe)",null,null,null,null,null,null,null,null," -","Kollektiv (ohne Fail Safe)",null,null,null,null,null,null,null,null,null,null," -","Selektiv"]
[]
[null,null,null,null,null,null,null,null,null,"Definition Feuerwehrzugang"]
[]
[null,null,null,null,null,null,null,null,null,"Standort FBA*"]
[]
[null,null,null,null,null,null,null,null,null,"Blitzleuchten Anfahrt FW*"]
[]
[null,null,null,null,null,null,null,null,null," *mit Feuerwehr abzuklären"]
[]
[null,null,null,null,null,null,null,null,null,"Bemerkung "]
[]
[]
[]
[]
["12.","Überwachungs       umfang",null,null,null,null,null,null,null," -","Vollüberwachung (gem. Pläne)",null,null,null,null,null,null,null,null,null," -","Teilüberwachung (gem. Pläne)",null,null,null,null,null,null,null,null,null," -","Schutzzielorientiert (gem. Brandschutzpläne / -konzept)"]
[]
[null,null,null,null,null,null,null,null,null,"Bemerkung "]

{"sheet":"Vorabklärung","index":1,"n_rows":303,"n_cols":48,"rows_kept":303,"cut":false,"hidden":false,"merged":[[4,41,4,50],[6,33,6,35],[6,41,6,50],[8,33,8,35],[10,41,10,50],[4,16,4,35],[6,16,6,29],[8,16,8,29],[20,33,20,35],[13,44,13,50],[20,16,20,29],[20,41,20,50],[17,16,17,29],[17,41,17,50],[8,41,8,50],[153,17,153,20],[153,27,153,30],[167,36,167,39],[167,41,167,44],[167,46,167,50],[159,17,159,34],[159,36,159,39],[159,41,159,44],[159,46,159,50],[161,17,161,34],[161,36,161,39],[161,41,161,44],[161,46,161,50],[163,17,163,34],[163,41,163,44],[163,46,163,50],[165,17,165,34],[165,36,165,39],[165,41,165,44],[165,46,165,50],[167,17,167,34],[156,17,156,28],[56,16,56,29],[151,17,151,50],[126,17,126,50],[91,38,91,50],[111,17,111,50],[97,38,97,50],[99,38,99,50],[44,41,44,50],[65,16,65,29],[65,33,65,35],[65,41,65,50],[58,16,58,29],[58,41,58,50],[63,16,63,29],[63,33,63,35],[63,41,63,50],[304,1,309,22],[293,1,293,22],[300,1,300,22],[296,1,296,15],[296,17,296,22],[129,1,131,7],[131,17,131,50],[101,29,101,32],[103,21,103,24],[103,29,103,32],[101,38,101,50],[133,21,133,50],[283,29,285,50],[274,35,274,49],[272,35,272,49],[270,35,270,49],[268,35,268,49],[196,36,196,39],[210,9,212,29],[176,41,176,44],[176,46,176,50],[264,1,266,7],[257,1,261,6],[259,16,259,29],[73,1,75,7],[77,9,79,50],[82,1,82,7],[89,1,91,7],[122,1,124,7],[138,1,140,7],[93,13,93,50],[97,21,97,24],[97,29,97,32],[99,21,99,24],[99,29,99,32],[103,38,103,50],[140,17,140,50],[101,21,101,24],[117,17,117,50],[135,17,135,50],[119,17,119,50],[124,17,124,50],[113,17,113,50],[89,21,89,24],[89,29,89,32],[89,38,89,50],[91,21,91,24],[91,29,91,32],[22,16,22,29],[46,16,46,29],[46,41,46,50],[29,16,29,29],[29,33,29,35],[29,41,29,50],[32,16,32,29],[32,41,32,50],[34,16,34,29],[25,16,25,29],[25,41,25,50],[27,16,27,29],[27,33,27,35],[27,41,27,50],[39,33,39,35],[39,41,39,50],[41,16,41,29],[41,33,41,35],[41,41,41,50],[44,16,44,29],[44,35,44,40],[3,2,3,14],[4,1,7,7],[13,16,13,32],[68,16,68,29],[70,16,70,29],[70,41,70,50],[61,1,63,7],[61,16,61,29],[25,1,27,7],[53,16,53,29],[53,33,53,35],[53,41,53,50],[49,1,51,7],[49,16,49,29],[51,16,51,29],[51,33,51,35],[51,41,51,50],[37,1,41,7],[37,16,37,29],[39,16,39,29],[13,1,15,7],[15,16,15,29],[15,33,15,35],[15,41,15,50],[217,43,217,50],[259,33,259,35],[261,16,261,29],[254,16,254,29],[254,33,254,35],[225,16,225,50],[227,16,227,50],[229,16,229,50],[236,16,236,50],[238,16,238,50],[252,16,252,29],[261,33,261,35],[243,33,243,40],[250,33,250,40],[257,33,257,40],[250,16,250,29],[243,16,243,29],[257,16,257,29],[252,33,252,35],[245,16,245,29],[245,33,245,35],[247,16,247,29],[247,33,247,35],[188,41,188,44],[188,46,188,50],[183,30,183,35],[250,1,254,6],[196,9,196,15],[192,17,192,34],[192,36,192,39],[190,17,190,34],[190,36,190,39],[190,41,190,44],[190,46,190,50],[199,30,199,35],[196,41,196,44],[196,46,196,50],[215,22,215,50],[192,41,192,44],[192,46,192,50],[194,17,194,34],[194,36,194,39],[203,46,203,50],[194,41,194,44],[194,46,194,50],[243,1,247,6],[221,43,221,50],[169,36,169,39],[169,41,169,44],[169,46,169,50],[176,36,176,39],[180,41,180,44],[183,17,183,28],[206,1,208,7],[283,10,283,25],[180,46,180,50],[180,36,180,39],[201,46,201,50],[221,18,221,37],[240,16,240,50],[201,36,201,39],[201,41,201,44],[203,36,203,39],[186,17,186,34],[186,36,186,39],[186,41,186,44],[186,46,186,50],[188,17,188,34],[196,17,196,34],[203,41,203,44],[188,36,188,39],[285,10,285,25],[287,10,287,25],[143,17,143,28],[143,34,143,50],[146,19,146,23],[146,34,146,50],[149,17,149,19],[178,17,178,28],[180,17,180,28],[171,9,171,15],[171,17,171,34],[171,36,171,39],[171,41,171,44],[171,46,171,50],[173,9,173,15],[173,17,173,34],[173,36,173,39],[173,41,173,44],[173,46,173,50],[178,36,178,39],[178,41,178,44],[178,46,178,50],[176,17,176,28],[169,17,169,34]]}
[null,null,null,null,null,null,null,null,null,"Brandmeldeanlage"]
[null,null,null,null,null,null,null,null,null,"Vorabklärung Brandmeldeanlagen Ziffer 4.5 Abs. 3 BSR 20-15"]
[]
[]
["1.","Überwachtes              Gebäude",null,null,null,null,null,null,null,"Objekt",null,null,null,null,null,null,{"$f":"'Allgemeine Daten'!Q5:AJ5","v":0},null,null,null,null,null,null,null,null,null,null,null,null,null,null,null,null,null,null,null,null,"Vers.- Nr.",null,null,null,{"$f":"'Allgemeine Daten'!AP5:AY5","v":0}]
[]
[null,null,null,null,null,null,null,null,null,"Strasse",null,null,null,null,null,null,{"$f":"'Allgemeine Daten'!Q7:AD7","v":0},null,null,null,null,null,null,null,null,null,null,null,null,null,null,"Nr.",null,{"$f":"'Allgemeine Daten'!AH7:AJ7","v":0},null,null,null,"Anlage Nr.",null,null,null,{"$f":"'Allgemeine Daten'!AP7:AY7","v":0}]
[]
[null,null,null,null,null,null,null,null,null,"Ort",null,null,null,null,null,null,{"$f":"'Allgemeine Daten'!Q9:AD9","v":0},null,null,null,null,null,null,null,null,null,null,null,null,null,null,"PLZ",null,{"$f":"'Allgemeine Daten'!AH9:AJ9","v":0},null,null,null,"Kataster Nr.",null,null,null,{"$f":"'Allgemeine Daten'!AP9:AY9","v":0}]
[]
[null,null,null,null,null,null,null,null,null,"Qualitätssicherungsstufe ",null,null,null,null,null,null,"QSS ",null,{"$f":"'Allgemeine Daten'!S11","v":" -"},null,null,null,null,null,null,null,null,null,null,null,null,null,null,null,null,null,null,"EGID Nr.",null,null,null,{"$f":"'Allgemeine Daten'!AP11:AY11","v":0}]
[]
[]
["2.","QS Verantwortlicher Brandschutz",null,null,null,null,null,null,null,"Name und Vorname",null,null,null,null,null,null,{"$f":"'Allgemeine Daten'!Q14:AG14","v":0},null,null,null,null,null,null,null,null,null,null,null,null,null,null,null,null,null,null,null,null,"VKF-Anerkennung Nr.",null,null,null,null,null,null,{"$f":"'Allgemeine Daten'!AS14:AY14","v":0}]
[]
[null,null,null,null,null,null,null,null,null,"Strasse",null,null,null,null,null,null,{"$f":"'Allgemeine Daten'!Q16:AD16","v":0},null,null,null,null,null,null,null,null,null,null,null,null,null,null,"Nr.",null,{"$f":"'Allgemeine Daten'!AH16:AJ16","v":0},null,null,null,"Tel. direkt",null,null,null,{"$f":"'Allgemeine Daten'!AP16:AY16","v":0}]
[]
[null,null,null,null,null,null,null,null,null,"Firma",null,null,null,null,null,null,{"$f":"'Allgemeine Daten'!Q18:AD18","v":0},null,null,null,null,null,null,null,null,null,null,null,null,null,null,null,null,null,null,null,null,"Fax",null,null,null,{"$f":"'Allgemeine Daten'!AP18:AY18","v":0}]
[]
[]
[null,null,null,null,null,null,null,null,null,"Ort",null,null,null,null,null,null,{"$f":"'Allgemeine Daten'!Q21:AD21","v":0},null,null,null,null,null,null,null,null,null,null,null,null,null,null,"PLZ",null,{"$f":"'Allgemeine Daten'!AH21:AJ21","v":0},null,null,null,"Tel.",null,null,null,{"$f":"'Allgemeine Daten'!AP21:AY21","v":0}]
[]
[null,null,null,null,null,null,null,null,null,"E-Mail",null,null,null,null,null,null,{"$f":"'Allgemeine Daten'!Q23:AD23","v":0}]
[]
[]
["3.","Fachfirma Planung",null,null,null,null,null,null,null,"Firma",null,null,null,null,null,null,{"$f":"'Allgemeine Daten'!Q26:AD26","v":0},null,null,null,null,null,null,null,null,null,null,null,null,null,null,"VKF Anerkennung Nr.",null,null,null,null,null,null,null,null,null,{"$f":"'Allgemeine Daten'!AP26:AY26","v":0}]
[]
[null,null,null,null,null,null,null,null,null,"Strasse",null,null,null,null,null,null,{"$f":"'Allgemeine Daten'!Q28:AD28","v":0},null,null,null,null,null,null,null,null,null,null,null,null,null,null,"Nr.",null,{"$f":"'Allgemeine Daten'!AH28:AJ28","v":0},null,null,null,"Tel.",null,null,null,{"$f":"'Allgemeine Daten'!AP28:AY28","v":0}]
[]
[null,null,null,null,null,null,null,null,null,"Ort",null,null,null,null,null,null,{"$f":"'Allgemeine Daten'!Q30:AD30","v":0},null,null,null,null,null,null,null,null,null,null,null,null,null,null,"PLZ",null,{"$f":"'Allgemeine Daten'!AH30:AJ30","v":0},null,null,null,"Fax",null,null,null,{"$f":"'Allgemeine Daten'!AP30:AY30","v":0}]
[]
[]
[null,null,null,null,null,null,null,null,null,"Kontaktperson",null,null,null,null,null,null,{"$f":"'Allgemeine Daten'!Q33:AD33","v":0},null,null,null,null,null,null,null,null,null,null,null,null,null,null,null,null,null,null,null,null,"Tel. direkt",null,null,null,{"$f":"'Allgemeine Daten'!AP33:AY33","v":0}]
[]
[null,null,null,null,null,null,null,null,null,"E-Mail",null,null,null,null,null,null,{"$f":"'Allgemeine Daten'!Q35:AD35","v":0}]
[]
[]
["4.","Geamtverant-wortlicher \nBrandfall-steuerungen ",null,null,null,null,null,null,null,"Firma",null,null,null,null,null,null,{"$f":"'Allgemeine Daten'!Q50:AD50","v":0}]
[]
[null,null,null,null,null,null,null,null,null,"Strasse",null,null,null,null,null,null,{"$f":"'Allgemeine Daten'!Q52:AD52","v":0},null,null,null,null,null,null,null,null,null,null,null,null,null,null,"Nr.",null,{"$f":"'Allgemeine Daten'!AH52:AJ52","v":0},null,null,null,"Tel.",null,null,null,{"$f":"'Allgemeine Daten'!AP52:AY52","v":0}]
[]
[null,null,null,null,null,null,null,null,null,"Ort",null,null,null,null,null,null,{"$f":"'Allgemeine Daten'!Q54:AD54","v":0},null,null,null,null,null,null,null,null,null,null,null,null,null,null,"PLZ",null,{"$f":"'Allgemeine Daten'!AH54:AJ54","v":0},null,null,null,"Fax",null,null,null,{"$f":"'Allgemeine Daten'!AP54:AY54","v":0}]
[]
[]
[null,null,null,null,null,null,null,null,null,"Zuständige Person",null,null,null,null,null,null,{"$f":"'Allgemeine Daten'!Q57:AD57","v":0},null,null,null,null,null,null,null,null,null,null,null,null,null,null,null,null,null,null,"VKF Zertifikat Nr.",null,null,null,null,null,{"$f":"'Allgemeine Daten'!AP57:AY57","v":0}]
[]
[null,null,null,null,null,null,null,null,null,"E-Mail",null,null,null,null,null,null,{"$f":"'Allgemeine Daten'!Q59:AD59","v":0},null,null,null,null,null,null,null,null,null,null,null,null,null,null,null,null,null,null,null,null,"Tel. direkt",null,null,null,{"$f":"'Allgemeine Daten'!AP59:AY59","v":0}]
[]
[]
["5.","Eigentümerschaft",null,null,null,null,null,null,null,"Name",null,null,null,null,null,null,{"$f":"'Allgemeine Daten'!Q62:AD62","v":0}]
[]
[null,null,null,null,null,null,null,null,null,"Strasse",null,null,null,null,null,null,{"$f":"'Allgemeine Daten'!Q64:AD64","v":0},null,null,null,null,null,null,null,null,null,null,null,null,null,null,"Nr.",null,{"$f":"'Allgemeine Daten'!AH64:AJ64","v":0},null,null,null,"Tel.",null,null,null,{"$f":"'Allgemeine Daten'!AP64:AY64","v":0}]
[]
[null,null,null,null,null,null,null,null,null,"Ort",null,null,null,null,null,null,{"$f":"'Allgemeine Daten'!Q66:AD66","v":0},null,null,null,null,null,null,null,null,null,null,null,null,null,null,"PLZ",null,{"$f":"'Allgemeine Daten'!AH66:AJ66","v":0},null,null,null,"Fax",null,null,null,{"$f":"'Allgemeine Daten'!AP66:AY66","v":0}]
[]
[]
[null,null,null,null,null,null,null,null,null,"Zuständige Person",null,null,null,null,null,null,{"$f":"'Allgemeine Daten'!Q69:AD69","v":0}]
[]
[null,null,null,null,null,null,null,null,null,"E-Mail",null,null,null,null,null,null,{"$f":"'Allgemeine Daten'!Q71:AD71","v":0},null,null,null,null,null,null,null,null,null,null,null,null,null,null,null,null,null,null,null,null,"Tel. direkt",null,null,null,{"$f":"'Allgemeine Daten'!AP71:AY71","v":0}]
[]
[]
["6.","Vertreter Eigentümerschaft",null,null,null,null,null,null,null,"Name",null,null,null,null,null,null,{"$f":"'Allgemeine Daten'!Q74:AD74","v":0}]
[]
[null,null,null,null,null,null,null,null,null,"Strasse",null,null,null,null,null,null,{"$f":"'Allgemeine Daten'!Q76:AD76","v":0},null,null,null,null,null,null,null,null,null,null,null,null,null,null,"Nr.",null,{"$f":"'Allgemeine Daten'!AH76:AJ76","v":0},null,null,null,"Tel.",null,null,null,{"$f":"'Allgemeine Daten'!AP76:AY76","v":0}]
[]
[null,null,null,null,null,null,null,null,null,"Ort",null,null,null,null,null,null,{"$f":"'Allgemeine Daten'!Q78:AD78","v":0},null,null,null,null,null,null,null,null,null,null,null,null,null,null,"PLZ",null,{"$f":"'Allgemeine Daten'!AH78:AJ78","v":0},null,null,null,"Fax",null,null,null,{"$f":"'Allgemeine Daten'!AP78:AY78","v":0}]
[]
[]
[null,null,null,null,null,null,null,null,null,"Zuständige Person",null,null,null,null,null,null,{"$f":"'Allgemeine Daten'!Q81:AD81","v":0}]
[]
[null,null,null,null,null,null,null,null,null,"E-Mail",null,null,null,null,null,null,{"$f":"'Allgemeine Daten'!Q83:AD83","v":0},null,null,null,null,null,null,null,null,null,null,null,null,null,null,null,null,null,null,null,null,"Tel. direkt",null,null,null,{"$f":"'Allgemeine Daten'!AP83:AY83","v":0}]
[]
[]
["7.","Projekt-beschreibung",null,null,null,null,null,null,null,{"$f":"'Allgemeine Daten'!J98","v":" -"},"Neuanlage",null,null,null,null,null,null,{"$f":"'Allgemeine Daten'!R98","v":" -"},"Erweiterung/ Umbau ",null,null,null,null,null,null,null,null,{"$f":"'Allgemeine Daten'!AB98","v":" -"},"Beurteilung nach 15 Jahren"]
[]
[null,null,null,null,null,null,null,null,null,{"$f":"'Allgemeine Daten'!J100","v":" -"},"Modernisierung:",null,null,null,null,null,null,{"$f":"'Allgemeine Daten'!R100","v":" -"},"Zentralenersatz",null,null,null,null,null,null,null,null,{"$f":"'Allgemeine Daten'!AB100","v":" -"},"Melderersatz",null,null,null,null,null,null,null,null,{"$f":"'Allgemeine Daten'!AL100","v":" -"},"I / O Bausteine im Meldernetz"]
[]
[null,null,null,null,null,null,null,null,null,{"$f":"'Allgemeine Daten'!J102","v":" -"}]
[]
[]
[]
[]
["8.","Anlagestatus",null,null,null,null,null,null,null,"Vorgeschrieben aufgrund:",null,null,null,null,null,null,null,{"$f":"'Allgemeine Daten'!R107","v":" -"},"Standardkonzept (VKF BSN Art. 10)",null,null,null,null,null,null,null,null,null,null,null,null,null,null,null,null,null,null,{"$f":"'Allgemeine Daten'!AL107","v":" -"},"Alarm-/ Störungsübermittlung SPA"]
[]
[null,null,null,null,null,null,null,null,null,null,null,null,null,null,null,null,null,{"$f":"'Allgemeine Daten'!R109","v":" -"},"alternativem Brandschutzkonzept (VKF BSN Art. 11 / 12) "]
[]
[null,null,null,null,null,null,null,null,null,{"$f":"'Allgemeine Daten'!J111","v":" -"},"freiwillig und auf die öffentliche Feuermeldestelle aufgeschaltet"]
[]
[]
["9.","Projektierungs-grundlagen",null,null,null,null,null,null,null,{"$f":"'Allgemeine Daten'!J114","v":" -"},"Brandschutzpläne (QSS 1-4) vom",null,null,null,null,null,null,null,null,null,null,{"$f":"'Allgemeine Daten'!V114:Y114","v":0},null,null,null,null,"Version",null,null,{"$f":"'Allgemeine Daten'!AD122:AG122","v":0},null,null,null,null,"Bemerkung",null,null,null,{"$f":"'Allgemeine Daten'!AM114:AY114","v":0}]
[]
[null,null,null,null,null,null,null,null,null,{"$f":"'Allgemeine Daten'!J116","v":" -"},"Brandschutzkonzept (QSS 4) vom",null,null,null,null,null,null,null,null,null,null,{"$f":"'Allgemeine Daten'!V116:Y116","v":0},null,null,null,null,"Version",null,null,{"$f":"'Allgemeine Daten'!AD116:AG116","v":0},null,null,null,null,"Bemerkung",null,null,null,{"$f":"'Allgemeine Daten'!AM116:AY116","v":0}]
[]
[null,null,null,null,null,null,null,null,null,"Verfasser:",null,null,null,{"$f":"'Allgemeine Daten'!N118:AY118","v":0}]
[]
[null,null,null,null,null,null,null,null,null,"Dokumentation Brandfallsteuerungen bestehend aus:"]
[]
[null,null,null,null,null,null,null,null,null,{"$f":"'Allgemeine Daten'!J122","v":" -"},"Pflichtenheft vom",null,null,null,null,null,null,null,null,null,null,{"$f":"'Allgemeine Daten'!V122:Y122","v":0},null,null,null,null,"Version",null,null,{"$f":"'Allgemeine Daten'!AD122:AG122","v":0},null,null,null,null,"Bemerkung",null,null,null,{"$f":"'Allgemeine Daten'!AM122:AY122","v":0}]
[]
[null,null,null,null,null,null,null,null,null,{"$f":"'Allgemeine Daten'!J124","v":" -"},"Zonenplan vom",null,null,null,null,null,null,null,null,null,null,{"$f":"'Allgemeine Daten'!V124:Y124","v":0},null,null,null,null,"Version",null,null,{"$f":"'Allgemeine Daten'!AD124:AG124","v":0},null,null,null,null,"Bemerkung",null,null,null,{"$f":"'Allgemeine Daten'!AM124:AY124","v":0}]
[]
[null,null,null,null,null,null,null,null,null,{"$f":"'Allgemeine Daten'!J126","v":" -"},"Liste oder Matrix vom",null,null,null,null,null,null,null,null,null,null,{"$f":"'Allgemeine Daten'!V126:Y126","v":0},null,null,null,null,"Version",null,null,{"$f":"'Allgemeine Daten'!AD126:AG126","v":0},null,null,null,null,"Bemerkung",null,null,null,{"$f":"'Allgemeine Daten'!AM126:AY126","v":0}]
[]
[null,null,null,null,null,null,null,null,null,{"$f":"'Allgemeine Daten'!J128","v":" -"},"Konzept Manuelle Aktivierung",null,null,null,null,null,null,null,null,null,null,{"$f":"'Allgemeine Daten'!V128:Y128","v":0},null,null,null,null,"Version",null,null,{"$f":"'Allgemeine Daten'!AD128:AG128","v":0},null,null,null,null,"Bemerkung",null,null,null,{"$f":"'Allgemeine Daten'!AM128:AY128","v":0}]
[]
[null,null,null,null,null,null,null,null,null,"Automatische Auslösung Brandfallsteuerung",null,null,null,null,null,null,null,null,null,null,null,null,{"$f":"'Allgemeine Daten'!W130","v":" -"},"Kollektiv (mit Fail Safe)",null,null,null,null,null,null,null,null,{"$f":"'Allgemeine Daten'!AG130","v":" -"},"Kollektiv (ohne Fail Safe)",null,null,null,null,null,null,null,null,null,null,{"$f":"'Allgemeine Daten'!AS130","v":" -"},"Selektiv"]
[]
[null,null,null,null,null,null,null,null,null,"Manuelle Auslösung Brandfallsteuerung",null,null,null,null,null,null,null,null,null,null,null,null,{"$f":"'Allgemeine Daten'!W132","v":" -"},"Kollektiv (mit Fail Safe)",null,null,null,null,null,null,null,null,{"$f":"'Allgemeine Daten'!AG132","v":" -"},"Kollektiv (ohne Fail Safe)",null,null,null,null,null,null,null,null,null,null,{"$f":"'Allgemeine Daten'!AS132","v":" -"},"Selektiv"]
[]
[null,null,null,null,null,null,null,null,null,"Definition Feuerwehrzugang"]
[]
[null,null,null,null,null,null,null,null,null,"Standort(e) FBA*",null,null,null,null,null,null,null,{"$f":"'Allgemeine Daten'!R136:AY136","v":0}]
[]
[null,null,null,null,null,null,null,null,null,"Blitzleuchten Anfahrt FW*",null,null,null,null,null,null,null,{"$f":"'Allgemeine Daten'!R138:AY138","v":0}]
[]
[null,null,null,null,null,null,null,null,null," *mit Feuerwehr abzuklären"]
[]
[null,null,null,null,null,null,null,null,null,"Bemerkung ",null,null,null,null,null,null,null,{"$f":"'Allgemeine Daten'!R142:AY142","v":0}]
[]
[null,null,null,null,null,null,null,null,null,null,null,null,null,null,null,null,null,{"$f":"'Allgemeine Daten'!R144:AY144","v":0}]
[]
[]
["10.","Überwachungs       umfang",null,null,null,null,null,null,null,{"$f":"'Allgemeine Daten'!J147","v":" -"},"Vollüberwachung",null,null,null,null,null,null,{"$f":"'Allgemeine Daten'!U147","v":" -"},"Teilüberwachung",null,null,null,null,null,null,null,null,{"$f":"'Allgemeine Daten'!AF147","v":" -"},"Schutzzielorientiert"]
[]
[null,null,null,null,null,null,null,null,null,"Bemerkung ",null,null,null,null,null,null,null,{"$f":"'Allgemeine Daten'!R149:AY149","v":0}]
[]
[null,null,null,null,null,null,null,null,null,null,null,null,null,null,null,null,null,{"$f":"'Allgemeine Daten'!R151:AY151","v":0}]
[]
[]
["11.","Interne Alarmierung",null,null,null,null,null,null,null," -","BMA mit Horn / Blitz",null,null,null,null,null,null," -","mit SAA (Sprachalarmanlage)",null,null,null,null,null,null,null,null,null,null,null," -","mit ENS (Elektroakustischen Notfallwarnsystem)"]
[]
[null,null,null,null,null,null,null,null,null," -","Organisatorisch "]
[]
[null,null,null,null,null,null,null,null,null," -","BMA mit integrierten Lautsprechern"]
[]
[null,null,null,null,null,null,null,null,null," -","Andere"]
[]
[]
["12.","Genehmigung Sonder-anwendungen",null,null,null,null,null,null,null,"Genehmigung durch Brandschutzbehörden vorhanden",null,null,null,null,null,null,null,null,null,null,null,null,null,null,null,null," -","ja (siehe Beilagen )"]
[]
[null,null,null,null,null,null,null,null,null,null,"Meldertyp / -System"]
[]
[]
["13.","Brandmeldesystem",null,null,null,null,null,null,null,"System",null,null,null,null,null,null,null,null,null,null,null,null,null,null,null,null,null,null,null,null,"Zentralentyp"]
[]
[]
[null,null,null,null,null,null,null,null,null,"VKF System-Anerkennungs Nr.",null,null,null,null,null,null,null,null,null,null,null,null,null,null,null,null,null,null,null,null,"Bezeichnung"]
[]
[]
[null,null,null,null,null,null,null,null,null,"Anzahl Zentralen",null,null,null,null,null,null,null,null,null,null,null,null,"Vernetzung mit mehreren Zentralen:",null,null,null,null,null,null,null,null,null,null," -","ja"," -","nein",null,null,null," -","Ringleitung",null,null,null,null," -","Stichleitung"]
[]
[null,null,null,null,null,null,null,null,null,"Standorte Zentralen"]
[]
[null,null,null,null,null,null,null,null,null,"Blockschema vom",null,null,null,null,null,null,null,null,null,null,null,null,null,null,"Version"]
[]
[]
["14.","Apparate",null,null,null,null,null,null,null,"Art der Melder",null,null,null,null,null,null,null,"Name/Typ",null,null,null,null,null,null,null,null,null,null,null,null,null,null,null,null,null,null,"Anzahl neu",null,null,null,null,"Anzahl best.",null,null,null,null,"Anzahl total"]
[]
[]
[null,null,null,null,null,null,null,null,null,"Mehrkriterienmelder",null,null,null,null,null,null,null,null,null,null,null,null,null,null,null,null,null,null,null,null,null,null,null,null,null,null,null,null,null,null,null,null,null,null,null,null,{"$f":"AK160+AP160","v":0}]
[]
[null,null,null,null,null,null,null,null,null,"Rauchmelder optisch",null,null,null,null,null,null,null,null,null,null,null,null,null,null,null,null,null,null,null,null,null,null,null,null,null,null,null,null,null,null,null,null,null,null,null,null,{"$f":"AK162+AP162","v":0}]
[]
[null,null,null,null,null,null,null,null,null,"Rauchmelder Ionisation",null,null,null,null,null,null,null,null,null,null,null,null,null,null,null,null,null,null,null,null,null,null,null,null,null,null,null,null,null,null,null,null,null,null,null,null,{"$f":"AK164+AP164","v":0}]
[]
[null,null,null,null,null,null,null,null,null,"Wärmemelder",null,null,null,null,null,null,null,null,null,null,null,null,null,null,null,null,null,null,null,null,null,null,null,null,null,null,null,null,null,null,null,null,null,null,null,null,{"$f":"AK166+AP166","v":0}]
[]
[null,null,null,null,null,null,null,null,null,"Flammenmelder",null,null,null,null,null,null,null,null,null,null,null,null,null,null,null,null,null,null,null,null,null,null,null,null,null,null,null,null,null,null,null,null,null,null,null,null,{"$f":"AK168+AP168","v":0}]
[]
[null,null,null,null,null,null,null,null,null,"Handfeuermelder",null,null,null,null,null,null,null,null,null,null,null,null,null,null,null,null,null,null,null,null,null,null,null,null,null,null,null,null,null,null,null,null,null,null,null,null,{"$f":"AK170+AP170","v":0}]
[]
[null,null,null,null,null,null,null,null,null,null,null,null,null,null,null,null,null,null,null,null,null,null,null,null,null,null,null,null,null,null,null,null,null,null,null,null,null,null,null,null,null,null,null,null,null,null,{"$f":"AK172+AP172","v":0}]
[]
[null,null,null,null,null,null,null,null,null,null,null,null,null,null,null,null,null,null,null,null,null,null,null,null,null,null,null,null,null,null,null,null,null,null,null,null,null,null,null,null,null,null,null,null,null,null,{"$f":"AK174+AP174","v":0}]
[]
[]
[null,null,null,null,null,null,null,null,null,"Ein- und Ausgabebausteine",null,null,null,null,null,null,null,null,null,null,null,null,null,null,null,null,null,null,null,null,null,null,null,null,null,null,null,null,null,null,null,null,null,null,null,null,{"$f":"AK177+AP177","v":0}]
[]
[null,null,null,null,null,null,null,null,null,"Ein- und Ausgabebausteine",null,null,null,null,null,null,null,null,null,null,null,null,null,null,null,null,null,null,null,null,null,null,null,null,null,null,null,null,null,null,null,null,null,null,null,null,{"$f":"AK179+AP179","v":0}]
[]
[null,null,null,null,null,null,null,null,null,"Ein- und Ausgabebausteine",null,null,null,null,null,null,null,null,null,null,null,null,null,null,null,null,null,null,null,null,null,null,null,null,null,null,null,null,null,null,null,null,null,null,null,null,{"$f":"AK181+AP181","v":0}]
[]
[]
[null,null,null,null,null,null,null,null,null,"Sonderanwendung",null,null,null,null,null,null,null,"Name/Typ",null,null,null,null,null,null,null,null,null,null,null,null,null,null,null,null,null,null,"Anzahl neu",null,null,null,null,"Anzahl best.",null,null,null,null,"VKF Nr. "]
[]
[]
[null,null,null,null,null,null,null,null,null,"Linearer Rauchmelder"]
[]
[null,null,null,null,null,null,null,null,null,"Linearer Wärmemelder"]
[]
[null,null,null,null,null,null,null,null,null,"Luftproben-Rauchmelder"]
[]
[null,null,null,null,null,null,null,null,null,"Funk-Komponenten"]
[]
[null,null,null,null,null,null,null,null,null,"Ansaug-Rauchmelder"]
[]
[]
[]
[]
["15.","Leitungsnetz",null,null,null,null,null,null,null,"Melderlinien",null,null,null,null,null,null,null,null,null,null,null,null,null,null,null,null,null,null,null,null,null,null,null,null,null,null,"Anzahl neu",null,null,null,null,"Anzahl best.",null,null,null,null,"Anzahl total"]
[]
[null,null,null,null,null,null,null,null,null,"Ringleitung (Loop)",null,null,null,null,null,null,null,null,null,null,null,null,null,null,null,null,null,null,null,null,null,null,null,null,null,null,null,null,null,null,null,null,null,null,null,null,{"$f":"AK202+AP202","v":0}]
[]
[null,null,null,null,null,null,null,null,null,"Stichleitung",null,null,null,null,null,null,null,null,null,null,null,null,null,null,null,null,null,null,null,null,null,null,null,null,null,null,null,null,null,null,null,null,null,null,null,null,{"$f":"AK204+AP204","v":0}]
[]
[]
["16.","Brandfallsteuerung",null,null,null,null,null,null,null,"Ein- und Ausgabebausteine der Brandmeldeanlage:",null,null,null,null,null,null,null,null,null,null,null,null,null,null,null,null,null,null,null,null," -","zentral angeordnet",null,null,null,null,null,null," -","dezentral angeordnet"]
[]
[null,null,null,null,null,null,null,null,null,"Hinweis: Detaillierte Angaben in Projektunterlagen erforderlich - Standorte in Zonen-/ oder Projektplänen eintragen"]
[]
[null,null,null,null,null,null,null,null,null,"Signalübertragung zwischen Brandmeldeanlage und angesteuerten technischen Brandschutzeinrichtungen",null,null,null,null,null,null,null,null,null,null,null,null,null,null,null,null,null,null,null,null," -","konventionell"]
[]
[null,null,null,null,null,null,null,null,null,null,null,null,null,null,null,null,null,null,null,null,null,null,null,null,null,null,null,null,null,null," -","softwarebasierend (wie SPS,  BUS)"]
[]
[]
["17.","Alarmübermittlung",null,null,null,null,null,null,null,"Betreiber Alarmübermittlungsanlage (AÜA)"]
[]
[null,null,null,null,null,null,null,null,null,"Übertragungart",null,null,null,null,null,null,null,null," -","IP und Mobile-Netz (GPRS, UMTS, LTE)",null,null,null,null,null,null,null,null,null,null,null,null,null,null,null,null,null,null,null," -","andere"]
[]
[null,null,null,null,null,null,null,null,null,"Meldezeit (Überwachung)",null,null,null,null,null,null,null,null," -","90/180 sek. (DP4 gem. SN EN 50136-1:2012)",null,null,null,null,null,null,null,null,null,null,null,null,null,null,null,null,null,null,null," -","max. 25 Std. "]
[]
[null,null,null,null,null,null,null,null,null,"Gerätetyp ",null,null,null,null,null,null,null,null,null,null,null,null,null,null,null,null,null,null,null,null,null,null,null,null,null,null,null,null,null,"ÜE Nr."]
[]
[null,null,null,null,null,null,null,null,null,"Alarmkriterien auf öffentliche Feuermeldestelle",null,null,null,null,null,null,null,null,null,null,null,null,null," -","Brandmelder",null,null,null,null,null,null," -","Sprinkler"]
[]
[null,null,null,null,null,null,null,null,null,"andere Kriterien"]
[]
[null,null,null,null,null,null,null,null,null,"andere Kriterien"]
[]
[null,null,null,null,null,null,null,null,null,"andere Kriterien"]
[]
[]
[null,null,null,null,null,null,null,null,null,"Störungskriterien auf ständig besetzte Stelle",null,null,null,null,null,null,null,null,null,null,null,null,null,null,null," -","Störung BMA",null,null,null,null,null,null," -","Ausschaltung BMA"]
[]
[null,null,null,null,null,null,null,null,null,null,null,null,null,null,null,null,null,null,null,null,null,null,null,null,null," -","Störung RWA",null,null,null,null,null,null," -","Störung RDA"]
[]
[null,null,null,null,null,null,null,null,null,"andere Kriterien"]
[]
[null,null,null,null,null,null,null,null,null,"andere Kriterien"]
[]
[null,null,null,null,null,null,null,null,null,"andere Kriterien"]
[]
[]
[null,"Öffentliche Feuermelde- stelle",null,null,null,null,null,null,null,"Name",null,null,null,null,null,null,null,null,null,null,null,null,null,null,null,null,null,null,null,null,null,"Tel."]
[]
[null,null,null,null,null,null,null,null,null,"Strasse",null,null,null,null,null,null,null,null,null,null,null,null,null,null,null,null,null,null,null,null,null,"Nr. "]
[]
[null,null,null,null,null,null,null,null,null,"Ort",null,null,null,null,null,null,null,null,null,null,null,null,null,null,null,null,null,null,null,null,null,"PLZ"]
[]
[]
[null,"Empfangsstelle Störungs-meldung BMA / SPA",null,null,null,null,null,null,null,"Name",null,null,null,null,null,null,null,null,null,null,null,null,null,null,null,null,null,null,null,null,null,"Tel."]
[]
[null,null,null,null,null,null,null,null,null,"Strasse",null,null,null,null,null,null,null,null,null,null,null,null,null,null,null,null,null,null,null,null,null,"Nr. "]
[]
[null,null,null,null,null,null,null,null,null,"Ort",null,null,null,null,null,null,null,null,null,null,null,null,null,null,null,null,null,null,null,null,null,"PLZ"]
[]
[]
[null,"Empfangsstelle Störungs-meldung z.B. RWA / RDA",null,null,null,null,null,null,null,"Name",null,null,null,null,null,null,null,null,null,null,null,null,null,null,null,null,null,null,null,null,null,"Tel."]
[]
[null,null,null,null,null,null,null,null,null,"Strasse",null,null,null,null,null,null,null,null,null,null,null,null,null,null,null,null,null,null,null,null,null,"Nr. "]
[]
[null,null,null,null,null,null,null,null,null,"Ort",null,null,null,null,null,null,null,null,null,null,null,null,null,null,null,null,null,null,null,null,null,"PLZ"]
[]
[]
["18.","Beilagen",null,null,null,null,null,null,null," -","Brandschutzkonzept/-pläne",null,null,null,null,null,null,null,null,null,null,null,null,null,null,null,null,null,null,null,null,null,null,null," -","Pflichtenheft Brandfallsteuerungen"]
[]
[null,null,null,null,null,null,null,null,null," -","Prinzip-/ Anlageschema (Blockschema)",null,null,null,null,null,null,null,null,null,null,null,null,null,null,null,null,null,null,null,null,null,null,null," -","Zonenpläne Brandfallsteuerungen"]
[]
[null,null,null,null,null,null,null,null,null," -","Massstäbliche Projektpläne mit eingezeichneten Apparaten",null,null,null,null,null,null,null,null,null,null,null,null,null,null,null,null,null,null,null,null,null,null,null," -","Liste oder Matrix Brandfallsteuerungen"]
[]
[null,null,null,null,null,null,null,null,null," -","Massstäbliche Schnittpläne (wenn Raumhöhe >6m)",null,null,null,null,null,null,null,null,null,null,null,null,null,null,null,null,null,null,null,null,null,null,null," -","Konzept manuelle Aktivierung Brandfallsteuerungen"]
[]
[null,null,null,null,null,null,null,null,null," -","Katasterplan",null,null,null,null,null,null,null,null,null,null,null,null,null,null,null,null,null,null,null,null,null,null,null," -"]
[]
[null,null,null,null,null,null,null,null,null," -","Genehmigung der Brandschutzbehörde für Sonderanwendungen",null,null,null,null,null,null,null,null,null,null,null,null,null,null,null,null,null,null,null,null,null,null,null," -"]
[]
[]
["19.","Verteiler",null,null,null,null,null,null,null," -","Fachplaner"]
[]
[null,null,null,null,null,null,null,null,null," -","QS-Verantwortlicher"]
[]
[null,null,null,null,null,null,null,null,null," -","Eigentümer- / Nutzerschaft"]
[]
[null,null,null,null,null,null,null,null,null," -","Brandschutzbehörde",null,null,null,null,null,null,null,null,null,null,null,null,null,null,null,null,null,null,"Die Projektunterlagen sind durch den QS Verantwortlichen Brandschutz an die zuständigen Stellen einzureichen (siehe BSR 11-15, Ziffer 4.1.3). Anzahl Dossiers sind mit der zuständigen Stelle abzuklären."]
[]
[null,null,null,null,null,null,null,null,null," -","Fachstelle(n)"]
[]
[null,null,null,null,null,null,null,null,null," -"]
[]
[]
["20.","Unterschriften"]
[]
[null,"VKF-Anerkannte Fachfirma für Planung von Brandmeldeanlagen"]
[null,"Die Fachfirma für Planung bestätigt, dass das vorliegende Projekt gemäss  den geltenden Brandschutzvorschriften, Vollzugsbestimmungen sowie dem Stand der Technik geplant wurde. "]
[null,"Ort",null,null,null,null,null,null,null,null,null,null,null,null,null,null,null,"Datum"]
[]
[]
[]
[null,"Name der zuständigen Person"]
[]
[]
[]
[null,"Stempel und Unterschrift"]

{"sheet":"Anmeldung","index":2,"n_rows":159,"n_cols":45,"rows_kept":159,"cut":false,"hidden":false,"merged":[[4,16,4,35],[4,41,4,50],[6,16,6,29],[6,33,6,35],[6,41,6,50],[8,16,8,29],[8,33,8,35],[10,41,10,50],[29,16,29,29],[29,33,29,35],[20,33,20,35],[25,16,25,29],[25,41,25,50],[27,16,27,29],[27,33,27,35],[27,41,27,50],[29,41,29,50],[133,14,133,19],[133,29,133,34],[135,20,135,50],[89,16,89,29],[103,1,103,6],[103,32,103,37],[89,33,89,35],[89,41,89,50],[92,16,92,29],[113,16,113,31],[105,1,105,6],[94,16,94,29],[94,41,94,50],[119,10,121,50],[111,10,111,50],[89,1,92,7],[97,17,97,28],[97,34,97,50],[100,19,100,23],[105,32,105,37],[107,10,107,50],[109,16,109,31],[109,35,109,44],[4,1,7,7],[3,2,3,14],[2,16,2,17],[8,1,10,7],[13,16,13,32],[13,44,13,50],[118,9,118,50],[124,9,130,50],[82,16,82,29],[82,41,82,50],[49,1,51,7],[49,16,49,29],[51,16,51,29],[51,33,51,35],[51,41,51,50],[53,16,53,29],[20,41,20,50],[37,16,37,29],[39,16,39,29],[39,33,39,35],[37,41,37,50],[44,35,44,40],[44,41,44,50],[8,41,8,50],[56,16,56,29],[56,35,56,40],[56,41,56,50],[68,16,68,29],[70,16,70,29],[65,41,65,50],[58,16,58,29],[58,41,58,50],[13,1,15,7],[15,16,15,29],[15,33,15,35],[15,41,15,50],[32,16,32,29],[32,41,32,50],[34,16,34,29],[53,33,53,35],[53,41,53,50],[46,16,46,29],[46,41,46,50],[61,1,63,7],[61,16,61,29],[63,16,63,29],[63,33,63,35],[63,41,63,50],[65,16,65,29],[65,33,65,35],[100,34,100,50],[85,1,87,7],[85,16,85,29],[87,16,87,29],[87,33,87,35],[87,41,87,50],[73,1,75,7],[73,16,73,29],[77,16,77,29],[77,33,77,35],[77,41,77,50],[80,16,80,29],[75,16,75,29],[75,33,75,35],[75,41,75,50],[70,41,70,50],[138,10,138,25],[140,10,140,25],[17,1,20,7],[133,1,135,7],[152,1,152,15],[152,17,152,22],[156,1,156,22],[160,1,165,22],[148,1,149,22],[22,16,22,29],[25,1,27,7],[44,16,44,29],[142,18,142,31],[138,29,140,50],[113,35,113,44],[115,19,115,28],[17,16,17,29],[17,41,17,50],[20,16,20,29],[37,1,39,7],[41,16,41,29],[41,33,41,35],[41,41,41,50],[39,41,39,50]]}
[null,null,null,null,null,null,null,null,null,"Brandmeldeanlage"]
[null,null,null,null,null,null,null,null,null,"Anmeldung Brandmeldeanlagen Ziffer 4.1 Abs. 1 BSR 20-15 "]
[]
[]
["1.","Überwachtes              Gebäude",null,null,null,null,null,null,null,"Objekt",null,null,null,null,null,null,{"$f":"'Allgemeine Daten'!Q5:AJ5","v":0},null,null,null,null,null,null,null,null,null,null,null,null,null,null,null,null,null,null,null,null,"Vers.- Nr.",null,null,null,{"$f":"'Allgemeine Daten'!AP5:AY5","v":0}]
[]
[null,null,null,null,null,null,null,null,null,"Strasse",null,null,null,null,null,null,{"$f":"'Allgemeine Daten'!Q7:AD7","v":0},null,null,null,null,null,null,null,null,null,null,null,null,null,null,"Nr.",null,{"$f":"'Allgemeine Daten'!AH7:AJ7","v":0},null,null,null,"Anlage Nr.",null,null,null,{"$f":"'Allgemeine Daten'!AP7:AY7","v":0}]
[]
[null,"Bei Modernisierung Eigentümer oder Beauftragter",null,null,null,null,null,null,null,"Ort",null,null,null,null,null,null,{"$f":"'Allgemeine Daten'!Q9:AD9","v":0},null,null,null,null,null,null,null,null,null,null,null,null,null,null,"PLZ",null,{"$f":"'Allgemeine Daten'!AH9:AJ9","v":0},null,null,null,"Kataster Nr.",null,null,null,{"$f":"'Allgemeine Daten'!AP9:AY9","v":0}]
[]
[null,null,null,null,null,null,null,null,null,"Qualitätssicherungsstufe ",null,null,null,null,null,null,"QSS ",null,{"$f":"'Allgemeine Daten'!S11","v":" -"},null,null,null,null,null,null,null,null,null,null,null,null,null,null,null,null,null,null,"EGID Nr.",null,null,null,{"$f":"'Allgemeine Daten'!AP11:AY11","v":0}]
[]
[]
["2.","QS Verantwortlicher Brandschutz",null,null,null,null,null,null,null,"Name und Vorname",null,null,null,null,null,null,{"$f":"'Allgemeine Daten'!Q14:AG14","v":0},null,null,null,null,null,null,null,null,null,null,null,null,null,null,null,null,null,null,null,null,"VKF-Anerkennung Nr.",null,null,null,null,null,null,{"$f":"'Allgemeine Daten'!AS14:AY14","v":0}]
[]
[null,null,null,null,null,null,null,null,null,"Strasse",null,null,null,null,null,null,{"$f":"'Allgemeine Daten'!Q16:AD16","v":0},null,null,null,null,null,null,null,null,null,null,null,null,null,null,"Nr.",null,{"$f":"'Allgemeine Daten'!AH16:AJ16","v":0},null,null,null,"Tel. direkt",null,null,null,{"$f":"'Allgemeine Daten'!AP16:AY16","v":0}]
[]
[null,"Bei Modernisierung Eigentümer oder Beauftragter",null,null,null,null,null,null,null,"Firma",null,null,null,null,null,null,{"$f":"'Allgemeine Daten'!Q18:AD18","v":0},null,null,null,null,null,null,null,null,null,null,null,null,null,null,null,null,null,null,null,null,"Fax",null,null,null,{"$f":"'Allgemeine Daten'!AP18:AY18","v":0}]
[]
[]
[null,null,null,null,null,null,null,null,null,"Ort",null,null,null,null,null,null,{"$f":"'Allgemeine Daten'!Q21:AD21","v":0},null,null,null,null,null,null,null,null,null,null,null,null,null,null,"PLZ",null,{"$f":"'Allgemeine Daten'!AH21:AJ21","v":0},null,null,null,"Tel.",null,null,null,{"$f":"'Allgemeine Daten'!AP21:AY21","v":0}]
[]
[null,null,null,null,null,null,null,null,null,"E-Mail",null,null,null,null,null,null,{"$f":"'Allgemeine Daten'!Q23:AD23","v":0}]
[]
[]
["3.","Fachfirma Planung",null,null,null,null,null,null,null,"Firma",null,null,null,null,null,null,{"$f":"'Allgemeine Daten'!Q26:AD26","v":0},null,null,null,null,null,null,null,null,null,null,null,null,null,null,"VKF Anerkennung Nr.",null,null,null,null,null,null,null,null,null,{"$f":"'Allgemeine Daten'!AP26:AY26","v":0}]
[]
[null,null,null,null,null,null,null,null,null,"Strasse",null,null,null,null,null,null,{"$f":"'Allgemeine Daten'!Q28:AD28","v":0},null,null,null,null,null,null,null,null,null,null,null,null,null,null,"Nr.",null,{"$f":"'Allgemeine Daten'!AH28:AJ28","v":0},null,null,null,"Tel.",null,null,null,{"$f":"'Allgemeine Daten'!AP28:AY28","v":0}]
[]
[null,null,null,null,null,null,null,null,null,"Ort",null,null,null,null,null,null,{"$f":"'Allgemeine Daten'!Q30:AD30","v":0},null,null,null,null,null,null,null,null,null,null,null,null,null,null,"PLZ",null,{"$f":"'Allgemeine Daten'!AH30:AJ30","v":0},null,null,null,"Fax",null,null,null,{"$f":"'Allgemeine Daten'!AP30:AY30","v":0}]
[]
[]
[null,null,null,null,null,null,null,null,null,"Kontaktperson",null,null,null,null,null,null,{"$f":"'Allgemeine Daten'!Q33:AD33","v":0},null,null,null,null,null,null,null,null,null,null,null,null,null,null,null,null,null,null,null,null,"Tel. direkt",null,null,null,{"$f":"'Allgemeine Daten'!AP33:AY33","v":0}]
[]
[null,null,null,null,null,null,null,null,null,"E-Mail",null,null,null,null,null,null,{"$f":"'Allgemeine Daten'!Q35:AD35","v":0}]
[]
[]
["4.","Fachfirma Errichtung",null,null,null,null,null,null,null,"Firma",null,null,null,null,null,null,{"$f":"'Allgemeine Daten'!Q38:AD38","v":0},null,null,null,null,null,null,null,null,null,null,null,null,null,null,"VKF Anerkennung Nr.",null,null,null,null,null,null,null,null,null,{"$f":"'Allgemeine Daten'!AP38:AY38","v":0}]
[]
[null,null,null,null,null,null,null,null,null,"Strasse",null,null,null,null,null,null,{"$f":"'Allgemeine Daten'!Q40:AD40","v":0},null,null,null,null,null,null,null,null,null,null,null,null,null,null,"Nr.",null,{"$f":"'Allgemeine Daten'!AH40:AJ40","v":0},null,null,null,"Tel.",null,null,null,{"$f":"'Allgemeine Daten'!AP40:AY40","v":0}]
[]
[null,null,null,null,null,null,null,null,null,"Ort",null,null,null,null,null,null,{"$f":"'Allgemeine Daten'!Q42:AD42","v":0},null,null,null,null,null,null,null,null,null,null,null,null,null,null,"PLZ",null,{"$f":"'Allgemeine Daten'!AH42:AJ42","v":0},null,null,null,"Fax",null,null,null,{"$f":"'Allgemeine Daten'!AP42:AY42","v":0}]
[]
[]
[null,null,null,null,null,null,null,null,null,"Zuständige Person",null,null,null,null,null,null,{"$f":"'Allgemeine Daten'!Q45:AD45","v":0},null,null,null,null,null,null,null,null,null,null,null,null,null,null,null,null,null,null,"VKF Zertifikat Nr.",null,null,null,null,null,{"$f":"'Allgemeine Daten'!AP45:AY45","v":0}]
[]
[null,null,null,null,null,null,null,null,null,"E-Mail",null,null,null,null,null,null,{"$f":"'Allgemeine Daten'!Q47:AD47","v":0},null,null,null,null,null,null,null,null,null,null,null,null,null,null,null,null,null,null,null,null,"Tel. direkt",null,null,null,{"$f":"'Allgemeine Daten'!AP47:AY47","v":0}]
[]
[]
["5.","Geamtverantwort-licher Brandfall-steuerungen ",null,null,null,null,null,null,null,"Firma",null,null,null,null,null,null,{"$f":"'Allgemeine Daten'!Q50:AD50","v":0}]
[]
[null,null,null,null,null,null,null,null,null,"Strasse",null,null,null,null,null,null,{"$f":"'Allgemeine Daten'!Q52:AD52","v":0},null,null,null,null,null,null,null,null,null,null,null,null,null,null,"Nr.",null,{"$f":"'Allgemeine Daten'!AH52:AJ52","v":0},null,null,null,"Tel.",null,null,null,{"$f":"'Allgemeine Daten'!AP52:AY52","v":0}]
[]
[null,null,null,null,null,null,null,null,null,"Ort",null,null,null,null,null,null,{"$f":"'Allgemeine Daten'!Q54:AD54","v":0},null,null,null,null,null,null,null,null,null,null,null,null,null,null,"PLZ",null,{"$f":"'Allgemeine Daten'!AH54:AJ54","v":0},null,null,null,"Fax",null,null,null,{"$f":"'Allgemeine Daten'!AP54:AY54","v":0}]
[]
[]
[null,null,null,null,null,null,null,null,null,"Zuständige Person",null,null,null,null,null,null,{"$f":"'Allgemeine Daten'!Q57:AD57","v":0},null,null,null,null,null,null,null,null,null,null,null,null,null,null,null,null,null,null,"VKF Zertifikat Nr.",null,null,null,null,null,{"$f":"'Allgemeine Daten'!AP57:AY57","v":0}]
[]
[null,null,null,null,null,null,null,null,null,"E-Mail",null,null,null,null,null,null,{"$f":"'Allgemeine Daten'!Q59:AD59","v":0},null,null,null,null,null,null,null,null,null,null,null,null,null,null,null,null,null,null,null,null,"Tel. direkt",null,null,null,{"$f":"'Allgemeine Daten'!AP59:AY59","v":0}]
[]
[]
["6.","Eigentümerschaft",null,null,null,null,null,null,null,"Name",null,null,null,null,null,null,{"$f":"'Allgemeine Daten'!Q62:AD62","v":0}]
[]
[null,null,null,null,null,null,null,null,null,"Strasse",null,null,null,null,null,null,{"$f":"'Allgemeine Daten'!Q64:AD64","v":0},null,null,null,null,null,null,null,null,null,null,null,null,null,null,"Nr.",null,{"$f":"'Allgemeine Daten'!AH64:AJ64","v":0},null,null,null,"Tel.",null,null,null,{"$f":"'Allgemeine Daten'!AP64:AY64","v":0}]
[]
[null,null,null,null,null,null,null,null,null,"Ort",null,null,null,null,null,null,{"$f":"'Allgemeine Daten'!Q66:AD66","v":0},null,null,null,null,null,null,null,null,null,null,null,null,null,null,"PLZ",null,{"$f":"'Allgemeine Daten'!AH66:AJ66","v":0},null,null,null,"Fax",null,null,null,{"$f":"'Allgemeine Daten'!AP66:AY66","v":0}]
[]
[]
[null,null,null,null,null,null,null,null,null,"Zuständige Person",null,null,null,null,null,null,{"$f":"'Allgemeine Daten'!Q69:AD69","v":0}]
[]
[null,null,null,null,null,null,null,null,null,"E-Mail",null,null,null,null,null,null,{"$f":"'Allgemeine Daten'!Q71:AD71","v":0},null,null,null,null,null,null,null,null,null,null,null,null,null,null,null,null,null,null,null,null,"Tel. direkt",null,null,null,{"$f":"'Allgemeine Daten'!AP71:AY71","v":0}]
[]
[]
["7.","Vertreter Eigentümerschaft",null,null,null,null,null,null,null,"Name",null,null,null,null,null,null,{"$f":"'Allgemeine Daten'!Q74:AD74","v":0}]
[]
[null,null,null,null,null,null,null,null,null,"Strasse",null,null,null,null,null,null,{"$f":"'Allgemeine Daten'!Q76:AD76","v":0},null,null,null,null,null,null,null,null,null,null,null,null,null,null,"Nr.",null,{"$f":"'Allgemeine Daten'!AH76:AJ76","v":0},null,null,null,"Tel.",null,null,null,{"$f":"'Allgemeine Daten'!AP76:AY76","v":0}]
[]
[null,null,null,null,null,null,null,null,null,"Ort",null,null,null,null,null,null,{"$f":"'Allgemeine Daten'!Q78:AD78","v":0},null,null,null,null,null,null,null,null,null,null,null,null,null,null,"PLZ",null,{"$f":"'Allgemeine Daten'!AH78:AJ78","v":0},null,null,null,"Fax",null,null,null,{"$f":"'Allgemeine Daten'!AP78:AY78","v":0}]
[]
[]
[null,null,null,null,null,null,null,null,null,"Zuständige Person",null,null,null,null,null,null,{"$f":"'Allgemeine Daten'!Q81:AD81","v":0}]
[]
[null,null,null,null,null,null,null,null,null,"E-Mail",null,null,null,null,null,null,{"$f":"'Allgemeine Daten'!Q83:AD83","v":0},null,null,null,null,null,null,null,null,null,null,null,null,null,null,null,null,null,null,null,null,"Tel. direkt",null,null,null,{"$f":"'Allgemeine Daten'!AP83:AY83","v":0}]
[]
[]
["8.","Anlageverant-wortlicher",null,null,null,null,null,null,null,"Name",null,null,null,null,null,null,{"$f":"'Allgemeine Daten'!Q86:AD86","v":0}]
[]
[null,null,null,null,null,null,null,null,null,"Strasse",null,null,null,null,null,null,{"$f":"'Allgemeine Daten'!Q88:AD88","v":0},null,null,null,null,null,null,null,null,null,null,null,null,null,null,"Nr.",null,{"$f":"'Allgemeine Daten'!AH88:AJ88","v":0},null,null,null,"Tel.",null,null,null,{"$f":"'Allgemeine Daten'!AP88:AY88","v":0}]
[]
[null,"bei Neuanlagen nicht erforderlich",null,null,null,null,null,null,null,"Ort",null,null,null,null,null,null,{"$f":"'Allgemeine Daten'!Q90:AD90","v":0},null,null,null,null,null,null,null,null,null,null,null,null,null,null,"PLZ",null,{"$f":"'Allgemeine Daten'!AH90:AJ90","v":0},null,null,null,"Fax",null,null,null,{"$f":"'Allgemeine Daten'!AP90:AY90","v":0}]
[]
[]
[null,null,null,null,null,null,null,null,null,"Zuständige Person",null,null,null,null,null,null,{"$f":"'Allgemeine Daten'!Q93:AD93","v":0}]
[]
[null,null,null,null,null,null,null,null,null,"E-Mail",null,null,null,null,null,null,{"$f":"'Allgemeine Daten'!Q95:AD95","v":0},null,null,null,null,null,null,null,null,null,null,null,null,null,null,null,null,null,null,null,null,"Tel. direkt",null,null,null,{"$f":"'Allgemeine Daten'!AP95:AY95","v":0}]
[]
[]
["9.","Brandmeldesystem",null,null,null,null,null,null,null,"System",null,null,null,null,null,null,null,{"$f":"Vorabklärung!R144:AC144","v":0},null,null,null,null,null,null,null,null,null,null,null,null,"Zentralentyp",null,null,null,{"$f":"Vorabklärung!AI144:AY144","v":0}]
[]
[]
[null,null,null,null,null,null,null,null,null,"VKF System-Anerkennungs Nr.",null,null,null,null,null,null,null,null,null,{"$f":"Vorabklärung!T147:X147","v":0},null,null,null,null,null,null,null,null,null,null,"Bezeichnung",null,null,null,{"$f":"Vorabklärung!AI147:AY147","v":0}]
[]
[]
["10.","Ausführung ",null,null,null,null,null,null,null,"Projekt gemäss Formular Vorabklärung und Projektunterlagen vom"]
[]
[null,null,null,null,null,null,null,null,null," -","Schriftliche Projektbegutachtung durch die Inspektionsstelle erfolgt am"]
[]
[null,null,null,null,null,null,null,null,null," -","Gemäss Rücksprache mit der zuständigen Brandschutzbehörde/Inspektionsstelle wird keine Projektbegutachtung durchgeführt"]
[]
[null,null,null,null,null,null,null,null,null,null,"Rücksprache mit",null,null,null,null,null,null,null,null,null,null,null,null,null,null,null,null,null,null,null,null,null,null,"am"]
[]
[null,null,null,null,null,null,null,null,null," -","Gemäss Rücksprache mit der zuständigen Brandschutzbehörde/Inspektionsstelle ist die schriftliche Projektbegutachtung ausstehend."]
[]
[null,null,null,null,null,null,null,null,null,null,"Rücksprache mit",null,null,null,null,null,null,null,null,null,null,null,null,null,null,null,null,null,null,null,null,null,null,"am"]
[]
[null,null,null,null,null,null,null,null,null,null,"Voraussichtlicher Termin"]
[]
[]
[null,null,null,null,null,null,null,null,null,"Hinweis: Bei systemrelevanten Abweichungen - wie Änderung des Überwachungsumfangs oder des Konzeptes Brandfallsteuerungen - ist das Ausführungsprojekt vor Ausführungsbeginn der Inspektionsstelle erneut zur Genehmigung einzureichen."]
[null,null,null,null,null,null,null,null,null,null,"Die Fachfirma Planung bestätigt, dass das Ausführungsprojekt geprüft wurde. Dabei wurden keine systemrelevanten Abweichungen zum genehmigten Projekt festgestellt."]
[null,null,null,null,null,null,null,null,null," -"]
[]
[null,null,null,null,null,null,null,null,null," -","Abweichungen zum genehmigten Projekt, die nicht als sytemrelevant eingestuft wurden:"]
[]
[]
[]
[]
[]
[]
[]
[]
[]
[]
["11.","Voraussichtliche Termine",null,null,null,null,null,null,null,"Montagebeginn",null,null,null,null,null,null,null,null,null,null,null,null,null,null,"Inbetriebnahme"]
[]
[null,null,null,null,null,null,null,null,null," -","Teilinbetriebnahmen",null,null,null,null,null,null,"Bereiche:"]
[]
[]
["12.","Verteiler",null,null,null,null,null,null,null," -","Brandschutzbehörde",null,null,null,null,null,null,null,null,null,null,null,null,null,null,null,null,null,null,"Die Anmeldung ist durch den QS Verantwortlichen Brandschutz an die zuständigen Stellen einzureichen (siehe Ziffer 4.1.3 BSR 11-15). Anzahl Exemplare sind mit der zuständigen Stelle abzuklären."]
[]
[null,null,null,null,null,null,null,null,null,"x","Fachstelle(n)"]
[]
[null,null,null,null,null,null,null,null,null," -","Fachfirma Errichtung:",null,null,null,null,null,null,null,{"$f":"Q38","v":0}]
[]
[]
["13.","Unterschriften "]
[]
[null,"Anerkannte Fachfirma für Planung von Brandmeldeanlagen"]
[null,"Die Fachfirma bestätigt, dass das vorliegende Brandmeldeprojekt gemäss den geltenden Brandschutzvorschriften und Vollzugsbestimmungen sowie dem Stand der Technik geplant wurde."]
[]
[null,"Ort",null,null,null,null,null,null,null,null,null,null,null,null,null,null,null,"Datum"]
[]
[]
[]
[null,"Name der zuständigen Person"]
[]
[]
[]
[null,"Stempel und Unterschrift"]

{"sheet":"Installations-Attest","index":3,"n_rows":454,"n_cols":48,"rows_kept":454,"cut":false,"hidden":false,"merged":[[364,29,364,50],[279,1,281,6],[283,16,283,20],[309,20,309,24],[298,9,298,50],[300,9,300,50],[37,41,37,50],[178,46,178,50],[158,17,158,19],[160,17,160,50],[162,17,162,20],[162,27,162,30],[170,17,170,34],[170,46,170,50],[168,36,168,39],[178,17,178,34],[176,41,176,44],[178,41,178,44],[172,17,172,34],[172,46,172,50],[174,17,174,34],[174,46,174,50],[176,17,176,34],[168,17,168,34],[417,9,417,45],[168,41,168,44],[170,36,170,39],[118,13,118,50],[121,21,121,24],[121,29,121,32],[431,9,431,45],[433,9,433,45],[435,9,435,45],[425,9,426,45],[419,9,419,45],[345,1,345,15],[345,17,345,22],[349,1,349,22],[375,1,380,22],[375,29,380,50],[367,1,367,15],[367,17,367,22],[367,29,367,43],[367,45,367,50],[371,1,371,22],[371,29,371,50],[353,1,358,22],[364,1,364,23],[411,9,411,45],[413,9,413,45],[415,9,415,45],[302,9,302,50],[457,9,457,50],[459,9,459,50],[403,9,403,50],[403,1,405,7],[437,9,437,45],[439,9,439,45],[441,9,441,45],[443,9,443,45],[445,9,445,45],[447,9,447,45],[449,9,449,45],[421,9,421,45],[427,9,427,45],[453,1,455,6],[453,9,453,50],[455,9,455,50],[405,9,405,45],[407,9,407,45],[409,9,409,45],[429,9,429,45],[290,1,292,6],[290,9,290,50],[292,9,292,50],[294,9,294,50],[296,9,296,50],[309,1,309,6],[304,9,304,50],[423,9,423,45],[325,1,325,5],[312,1,314,7],[316,35,316,49],[318,35,318,49],[320,35,320,49],[322,35,322,49],[341,1,341,22],[331,10,331,25],[333,10,333,25],[335,10,335,26],[306,9,306,50],[384,1,384,22],[387,1,387,15],[387,17,387,22],[391,1,391,22],[395,1,400,22],[287,16,287,50],[272,1,276,6],[274,16,274,29],[274,33,274,35],[276,16,276,29],[276,33,276,35],[240,16,240,50],[242,16,242,50],[216,9,218,50],[236,18,236,37],[255,16,255,50],[258,1,262,6],[260,16,260,29],[260,33,260,35],[262,16,262,29],[262,33,262,35],[223,1,224,7],[258,16,258,29],[258,33,258,40],[265,33,265,40],[272,33,272,40],[265,16,265,29],[272,16,272,29],[285,16,285,50],[212,41,212,44],[265,1,269,6],[267,16,267,29],[267,33,267,35],[269,16,269,29],[269,33,269,35],[244,16,244,50],[251,16,251,50],[214,30,214,50],[232,43,232,50],[236,43,236,50],[253,16,253,50],[212,36,212,39],[176,46,176,50],[172,36,172,39],[174,36,174,39],[176,36,176,39],[178,36,178,39],[147,1,149,7],[149,17,149,50],[152,17,152,28],[152,34,152,50],[155,19,155,23],[155,34,155,50],[170,41,170,44],[172,41,172,44],[174,41,174,44],[168,46,168,50],[165,17,165,28],[125,21,125,24],[125,29,125,32],[133,17,133,50],[135,17,135,50],[140,1,142,7],[142,17,142,50],[144,17,144,50],[123,21,123,24],[123,29,123,32],[97,1,99,7],[101,9,103,50],[107,1,107,7],[114,1,116,7],[114,21,114,24],[114,29,114,32],[114,38,114,50],[116,21,116,24],[116,29,116,32],[116,38,116,50],[89,16,89,29],[89,33,89,35],[89,41,89,50],[92,16,92,29],[94,16,94,29],[94,41,94,50],[85,1,87,7],[85,16,85,29],[87,16,87,29],[87,33,87,35],[87,41,87,50],[46,41,46,50],[61,1,63,7],[61,16,61,29],[63,16,63,29],[63,33,63,35],[63,41,63,50],[49,16,49,29],[51,16,51,29],[51,33,51,35],[51,41,51,50],[53,16,53,29],[53,33,53,35],[53,41,53,50],[56,16,56,29],[56,35,56,40],[56,41,56,50],[58,16,58,29],[58,41,58,50],[49,1,53,7],[3,2,3,14],[2,16,2,17],[13,16,13,32],[20,33,20,35],[13,44,13,50],[4,1,5,8],[17,16,17,29],[17,41,17,50],[20,16,20,29],[20,41,20,50],[8,41,8,50],[13,1,15,7],[15,16,15,29],[15,33,15,35],[15,41,15,50],[4,16,4,35],[4,41,4,50],[6,16,6,29],[6,33,6,35],[6,41,6,50],[8,16,8,29],[8,33,8,35],[10,41,10,50],[22,16,22,29],[25,16,25,29],[25,41,25,50],[27,16,27,29],[27,33,27,35],[27,41,27,50],[29,16,29,29],[29,33,29,35],[25,1,25,7],[80,16,80,29],[82,16,82,29],[82,41,82,50],[73,1,75,7],[73,16,73,29],[75,16,75,29],[75,33,75,35],[75,41,75,50],[29,41,29,50],[32,16,32,29],[32,41,32,50],[41,41,41,50],[44,16,44,29],[44,35,44,40],[44,41,44,50],[34,16,34,29],[36,1,38,7],[37,16,37,29],[39,16,39,29],[39,33,39,35],[39,41,39,50],[41,16,41,29],[41,33,41,35],[46,16,46,29],[65,16,65,29],[65,33,65,35],[65,41,65,50],[68,16,68,29],[70,16,70,29],[70,41,70,50],[77,16,77,29],[77,33,77,35],[77,41,77,50],[185,17,185,28],[187,17,187,28],[189,17,189,28],[203,17,203,34],[203,36,203,39],[185,36,185,39],[185,41,185,44],[201,17,201,34],[192,17,192,28],[192,30,192,35],[195,36,195,39],[197,36,197,39],[199,36,199,39],[201,36,201,39],[195,41,195,44],[197,41,197,44],[195,17,195,34],[195,46,195,50],[197,17,197,34],[197,46,197,50],[199,17,199,34],[210,46,210,50],[189,46,189,50],[199,41,199,44],[201,41,201,44],[203,41,203,44],[208,30,208,35],[210,36,210,39],[205,17,205,34],[205,36,205,39],[205,41,205,44],[210,41,210,44],[180,46,180,50],[182,17,182,34],[182,36,182,39],[205,46,205,50],[205,9,205,15],[180,17,180,34],[230,22,230,50],[182,41,182,44],[182,46,182,50],[182,9,182,15],[180,9,180,15],[187,36,187,39],[187,41,187,44],[187,46,187,50],[185,46,185,50],[203,46,203,50],[199,46,199,50],[201,46,201,50],[180,36,180,39],[180,41,180,44],[189,36,189,39],[189,41,189,44],[220,9,220,50],[212,46,212,50]]}
[null,null,null,null,null,null,null,null,null,"Brandmeldeanlage"]
[null,null,null,null,null,null,null,null,null,"Installations-Attest Brandmeldeanlagen Ziffer 4.1 Abs. 2 BSR 20-15"]
[]
[]
["1.","Überwachtes              Gebäude",null,null,null,null,null,null,null,"Objekt",null,null,null,null,null,null,{"$f":"'Allgemeine Daten'!Q5:AJ5","v":0},null,null,null,null,null,null,null,null,null,null,null,null,null,null,null,null,null,null,null,null,"Vers.- Nr.",null,null,null,{"$f":"'Allgemeine Daten'!AP5:AY5","v":0}]
[]
[null,null,null,null,null,null,null,null,null,"Strasse",null,null,null,null,null,null,{"$f":"'Allgemeine Daten'!Q7:AD7","v":0},null,null,null,null,null,null,null,null,null,null,null,null,null,null,"Nr.",null,{"$f":"'Allgemeine Daten'!AH7:AJ7","v":0},null,null,null,"Anlage Nr.",null,null,null,{"$f":"'Allgemeine Daten'!AP7:AY7","v":0}]
[]
[null,null,null,null,null,null,null,null,null,"Ort",null,null,null,null,null,null,{"$f":"'Allgemeine Daten'!Q9:AD9","v":0},null,null,null,null,null,null,null,null,null,null,null,null,null,null,"PLZ",null,{"$f":"'Allgemeine Daten'!AH9:AJ9","v":0},null,null,null,"Kataster Nr.",null,null,null,{"$f":"'Allgemeine Daten'!AP9:AY9","v":0}]
[]
[null,null,null,null,null,null,null,null,null,"Qualitätssicherungsstufe ",null,null,null,null,null,null,"QSS ",null,{"$f":"'Allgemeine Daten'!S11","v":" -"},null,null,null,null,null,null,null,null,null,null,null,null,null,null,null,null,null,null,"EGID Nr.",null,null,null,{"$f":"'Allgemeine Daten'!AP11:AY11","v":0}]
[]
[]
["2.","QS Verantwortlicher Brandschutz",null,null,null,null,null,null,null,"Name und Vorname",null,null,null,null,null,null,{"$f":"'Allgemeine Daten'!Q14:AG14","v":0},null,null,null,null,null,null,null,null,null,null,null,null,null,null,null,null,null,null,null,null,"VKF-Anerkennung Nr.",null,null,null,null,null,null,{"$f":"'Allgemeine Daten'!AS14:AY14","v":0}]
[]
[null,null,null,null,null,null,null,null,null,"Strasse",null,null,null,null,null,null,{"$f":"'Allgemeine Daten'!Q16:AD16","v":0},null,null,null,null,null,null,null,null,null,null,null,null,null,null,"Nr.",null,{"$f":"'Allgemeine Daten'!AH16:AJ16","v":0},null,null,null,"Tel. direkt",null,null,null,{"$f":"'Allgemeine Daten'!AP16:AY16","v":0}]
[]
[null,null,null,null,null,null,null,null,null,"Firma",null,null,null,null,null,null,{"$f":"'Allgemeine Daten'!Q18:AD18","v":0},null,null,null,null,null,null,null,null,null,null,null,null,null,null,null,null,null,null,null,null,"Fax",null,null,null,{"$f":"'Allgemeine Daten'!AP18:AY18","v":0}]
[]
[]
[null,null,null,null,null,null,null,null,null,"Ort",null,null,null,null,null,null,{"$f":"'Allgemeine Daten'!Q21:AD21","v":0},null,null,null,null,null,null,null,null,null,null,null,null,null,null,"PLZ",null,{"$f":"'Allgemeine Daten'!AH21:AJ21","v":0},null,null,null,"Tel.",null,null,null,{"$f":"'Allgemeine Daten'!AP21:AY21","v":0}]
[]
[null,null,null,null,null,null,null,null,null,"E-Mail",null,null,null,null,null,null,{"$f":"'Allgemeine Daten'!Q23:AD23","v":0}]
[]
[]
["3.","Fachfirma Planung",null,null,null,null,null,null,null,"Firma",null,null,null,null,null,null,{"$f":"'Allgemeine Daten'!Q26:AD26","v":0},null,null,null,null,null,null,null,null,null,null,null,null,null,null,"VKF Anerkennung Nr.",null,null,null,null,null,null,null,null,null,{"$f":"'Allgemeine Daten'!AP26:AY26","v":0}]
[]
[null,null,null,null,null,null,null,null,null,"Strasse",null,null,null,null,null,null,{"$f":"'Allgemeine Daten'!Q28:AD28","v":0},null,null,null,null,null,null,null,null,null,null,null,null,null,null,"Nr.",null,{"$f":"'Allgemeine Daten'!AH28:AJ28","v":0},null,null,null,"Tel.",null,null,null,{"$f":"'Allgemeine Daten'!AP28:AY28","v":0}]
[]
[null,null,null,null,null,null,null,null,null,"Ort",null,null,null,null,null,null,{"$f":"'Allgemeine Daten'!Q30:AD30","v":0},null,null,null,null,null,null,null,null,null,null,null,null,null,null,"PLZ",null,{"$f":"'Allgemeine Daten'!AH30:AJ30","v":0},null,null,null,"Fax",null,null,null,{"$f":"'Allgemeine Daten'!AP30:AY30","v":0}]
[]
[]
[null,null,null,null,null,null,null,null,null,"Kontaktperson",null,null,null,null,null,null,{"$f":"'Allgemeine Daten'!Q33:AD33","v":0},null,null,null,null,null,null,null,null,null,null,null,null,null,null,null,null,null,null,null,null,"Tel. direkt",null,null,null,{"$f":"'Allgemeine Daten'!AP33:AY33","v":0}]
[]
[null,null,null,null,null,null,null,null,null,"E-Mail",null,null,null,null,null,null,{"$f":"'Allgemeine Daten'!Q35:AD35","v":0}]
[]
[null,"Fachfirma Errichtung"]
["4.",null,null,null,null,null,null,null,null,"Firma",null,null,null,null,null,null,{"$f":"'Allgemeine Daten'!Q38:AD38","v":0},null,null,null,null,null,null,null,null,null,null,null,null,null,null,"VKF Anerkennung Nr.",null,null,null,null,null,null,null,null,null,{"$f":"'Allgemeine Daten'!AP38:AY38","v":0}]
[]
[null,null,null,null,null,null,null,null,null,"Strasse",null,null,null,null,null,null,{"$f":"'Allgemeine Daten'!Q40:AD40","v":0},null,null,null,null,null,null,null,null,null,null,null,null,null,null,"Nr.",null,{"$f":"'Allgemeine Daten'!AH40:AJ40","v":0},null,null,null,"Tel.",null,null,null,{"$f":"'Allgemeine Daten'!AP40:AY40","v":0}]
[]
[null,null,null,null,null,null,null,null,null,"Ort",null,null,null,null,null,null,{"$f":"'Allgemeine Daten'!Q42:AD42","v":0},null,null,null,null,null,null,null,null,null,null,null,null,null,null,"PLZ",null,{"$f":"'Allgemeine Daten'!AH42:AJ42","v":0},null,null,null,"Fax",null,null,null,{"$f":"'Allgemeine Daten'!AP42:AY42","v":0}]
[]
[]
[null,null,null,null,null,null,null,null,null,"Zuständige Person",null,null,null,null,null,null,{"$f":"'Allgemeine Daten'!Q45:AD45","v":0},null,null,null,null,null,null,null,null,null,null,null,null,null,null,null,null,null,null,"VKF Zertifikat Nr.",null,null,null,null,null,{"$f":"'Allgemeine Daten'!AP45:AY45","v":0}]
[]
[null,null,null,null,null,null,null,null,null,"E-Mail",null,null,null,null,null,null,{"$f":"'Allgemeine Daten'!Q47:AD47","v":0},null,null,null,null,null,null,null,null,null,null,null,null,null,null,null,null,null,null,null,null,"Tel. direkt",null,null,null,{"$f":"'Allgemeine Daten'!AP47:AY47","v":0}]
[]
[]
["5.","Geamtverant-wortlicher \nBrandfall-steuerungen ",null,null,null,null,null,null,null,"Firma",null,null,null,null,null,null,{"$f":"'Allgemeine Daten'!Q50:AD50","v":0}]
[]
[null,null,null,null,null,null,null,null,null,"Strasse",null,null,null,null,null,null,{"$f":"'Allgemeine Daten'!Q52:AD52","v":0},null,null,null,null,null,null,null,null,null,null,null,null,null,null,"Nr.",null,{"$f":"'Allgemeine Daten'!AH52:AJ52","v":0},null,null,null,"Tel.",null,null,null,{"$f":"'Allgemeine Daten'!AP52:AY52","v":0}]
[]
[null,null,null,null,null,null,null,null,null,"Ort",null,null,null,null,null,null,{"$f":"'Allgemeine Daten'!Q54:AD54","v":0},null,null,null,null,null,null,null,null,null,null,null,null,null,null,"PLZ",null,{"$f":"'Allgemeine Daten'!AH54:AJ54","v":0},null,null,null,"Fax",null,null,null,{"$f":"'Allgemeine Daten'!AP54:AY54","v":0}]
[]
[]
[null,null,null,null,null,null,null,null,null,"Zuständige Person",null,null,null,null,null,null,{"$f":"'Allgemeine Daten'!Q57:AD57","v":0},null,null,null,null,null,null,null,null,null,null,null,null,null,null,null,null,null,null,"VKF Zertifikat Nr.",null,null,null,null,null,{"$f":"'Allgemeine Daten'!AP57:AY57","v":0}]
[]
[null,null,null,null,null,null,null,null,null,"E-Mail",null,null,null,null,null,null,{"$f":"'Allgemeine Daten'!Q59:AD59","v":0},null,null,null,null,null,null,null,null,null,null,null,null,null,null,null,null,null,null,null,null,"Tel. direkt",null,null,null,{"$f":"'Allgemeine Daten'!AP59:AY59","v":0}]
[]
[]
["6.","Eigentümerschaft/ Nutzerschaft",null,null,null,null,null,null,null,"Name",null,null,null,null,null,null,{"$f":"'Allgemeine Daten'!Q62:AD62","v":0}]
[]
[null,null,null,null,null,null,null,null,null,"Strasse",null,null,null,null,null,null,{"$f":"'Allgemeine Daten'!Q64:AD64","v":0},null,null,null,null,null,null,null,null,null,null,null,null,null,null,"Nr.",null,{"$f":"'Allgemeine Daten'!AH64:AJ64","v":0},null,null,null,"Tel.",null,null,null,{"$f":"'Allgemeine Daten'!AP64:AY64","v":0}]
[]
[null,null,null,null,null,null,null,null,null,"Ort",null,null,null,null,null,null,{"$f":"'Allgemeine Daten'!Q66:AD66","v":0},null,null,null,null,null,null,null,null,null,null,null,null,null,null,"PLZ",null,{"$f":"'Allgemeine Daten'!AH66:AJ66","v":0},null,null,null,"Fax",null,null,null,{"$f":"'Allgemeine Daten'!AP66:AY66","v":0}]
[]
[]
[null,null,null,null,null,null,null,null,null,"Zuständige Person",null,null,null,null,null,null,{"$f":"'Allgemeine Daten'!Q69:AD69","v":0}]
[]
[null,null,null,null,null,null,null,null,null,"E-Mail",null,null,null,null,null,null,{"$f":"'Allgemeine Daten'!Q71:AD71","v":0},null,null,null,null,null,null,null,null,null,null,null,null,null,null,null,null,null,null,null,null,"Tel. direkt",null,null,null,{"$f":"'Allgemeine Daten'!AP71:AY71","v":0}]
[]
[]
["7.","Vertreter Eigentümerschaft",null,null,null,null,null,null,null,"Name",null,null,null,null,null,null,{"$f":"'Allgemeine Daten'!Q74:AD74","v":0}]
[]
[null,null,null,null,null,null,null,null,null,"Strasse",null,null,null,null,null,null,{"$f":"'Allgemeine Daten'!Q76:AD76","v":0},null,null,null,null,null,null,null,null,null,null,null,null,null,null,"Nr.",null,{"$f":"'Allgemeine Daten'!AH76:AJ76","v":0},null,null,null,"Tel.",null,null,null,{"$f":"'Allgemeine Daten'!AP76:AY76","v":0}]
[]
[null,null,null,null,null,null,null,null,null,"Ort",null,null,null,null,null,null,{"$f":"'Allgemeine Daten'!Q78:AD78","v":0},null,null,null,null,null,null,null,null,null,null,null,null,null,null,"PLZ",null,{"$f":"'Allgemeine Daten'!AH78:AJ78","v":0},null,null,null,"Fax",null,null,null,{"$f":"'Allgemeine Daten'!AP78:AY78","v":0}]
[]
[]
[null,null,null,null,null,null,null,null,null,"Zuständige Person",null,null,null,null,null,null,{"$f":"'Allgemeine Daten'!Q81:AD81","v":0}]
[]
[null,null,null,null,null,null,null,null,null,"E-Mail",null,null,null,null,null,null,{"$f":"'Allgemeine Daten'!Q83:AD83","v":0},null,null,null,null,null,null,null,null,null,null,null,null,null,null,null,null,null,null,null,null,"Tel. direkt",null,null,null,{"$f":"'Allgemeine Daten'!AP83:AY83","v":0}]
[]
[]
["8.","Anlageverant-wortlicher",null,null,null,null,null,null,null,"Name",null,null,null,null,null,null,{"$f":"'Allgemeine Daten'!Q86:AD86","v":0}]
[]
[null,null,null,null,null,null,null,null,null,"Strasse",null,null,null,null,null,null,{"$f":"'Allgemeine Daten'!Q88:AD88","v":0},null,null,null,null,null,null,null,null,null,null,null,null,null,null,"Nr.",null,{"$f":"'Allgemeine Daten'!AH88:AJ88","v":0},null,null,null,"Tel.",null,null,null,{"$f":"'Allgemeine Daten'!AP88:AY88","v":0}]
[]
[null,null,null,null,null,null,null,null,null,"Ort",null,null,null,null,null,null,{"$f":"'Allgemeine Daten'!Q90:AD90","v":0},null,null,null,null,null,null,null,null,null,null,null,null,null,null,"PLZ",null,{"$f":"'Allgemeine Daten'!AH90:AJ90","v":0},null,null,null,"Fax",null,null,null,{"$f":"'Allgemeine Daten'!AP90:AY90","v":0}]
[]
[]
[null,null,null,null,null,null,null,null,null,"Zuständige Person",null,null,null,null,null,null,{"$f":"'Allgemeine Daten'!Q93:AD93","v":0}]
[]
[null,null,null,null,null,null,null,null,null,"E-Mail",null,null,null,null,null,null,{"$f":"'Allgemeine Daten'!Q95:AD95","v":0},null,null,null,null,null,null,null,null,null,null,null,null,null,null,null,null,null,null,null,null,"Tel. direkt",null,null,null,{"$f":"'Allgemeine Daten'!AP95:AY95","v":0}]
[]
[]
["9.","Projekt-beschreibung",null,null,null,null,null,null,null,{"$f":"'Allgemeine Daten'!J98","v":" -"},"Neuanlage",null,null,null,null,null,null,{"$f":"'Allgemeine Daten'!R98","v":" -"},"Erweiterung/Umbau ",null,null,null,null,null,null,null,null,{"$f":"'Allgemeine Daten'!AB98","v":" -"},"Beurteilung nach 15 Jahren"]
[]
[null,null,null,null,null,null,null,null,null,{"$f":"'Allgemeine Daten'!J100","v":" -"},"Modernisierung:",null,null,null,null,null,null,{"$f":"'Allgemeine Daten'!R100","v":" -"},"Zentralenersatz",null,null,null,null,null,null,null,null,{"$f":"'Allgemeine Daten'!AB100","v":" -"},"Melderersatz",null,null,null,null,null,null,null,null,{"$f":"'Allgemeine Daten'!AL100","v":" -"},"I / O Bausteine im Meldernetz"]
[]
[null,null,null,null,null,null,null,null,null,{"$f":"'Allgemeine Daten'!J102:AY104","v":" -"}]
[]
[]
[]
[]
[]
["10.","Anlagestatus",null,null,null,null,null,null,null,"Vorgeschrieben aufgrund:",null,null,null,null,null,null,null,{"$f":"'Allgemeine Daten'!R107","v":" -"},"Standardkonzept (VKF BSN Art. 10)",null,null,null,null,null,null,null,null,null,null,null,null,null,null,null,null,null,null,{"$f":"'Allgemeine Daten'!AL107","v":" -"},"Alarm-/ Störungsübermittlung SPA"]
[]
[null,null,null,null,null,null,null,null,null,null,null,null,null,null,null,null,null,{"$f":"'Allgemeine Daten'!R109","v":" -"},"alternativem Brandschutzkonzept (VKF BSN Art. 11 / 12) "]
[]
[null,null,null,null,null,null,null,null,null,{"$f":"'Allgemeine Daten'!J111","v":" -"},"freiwillig und auf die öffentliche Feuermeldestelle aufgeschaltet"]
[]
[]
["11.","Projektierungs-grundlagen",null,null,null,null,null,null,null,{"$f":"'Allgemeine Daten'!J114","v":" -"},"Brandschutzpläne (QSS 1-4) vom",null,null,null,null,null,null,null,null,null,null,{"$f":"'Allgemeine Daten'!V114:Y114","v":0},null,null,null,null,"Version",null,null,{"$f":"'Allgemeine Daten'!AD114:AG114","v":0},null,null,null,null,"Bemerkung",null,null,null,{"$f":"'Allgemeine Daten'!AM114:AY114","v":0}]
[]
[null,null,null,null,null,null,null,null,null,{"$f":"'Allgemeine Daten'!J116","v":" -"},"Brandschutzkonzept (QSS 4) vom",null,null,null,null,null,null,null,null,null,null,{"$f":"'Allgemeine Daten'!V116:Y116","v":0},null,null,null,null,"Version",null,null,{"$f":"'Allgemeine Daten'!AD116:AG116","v":0},null,null,null,null,"Bemerkung",null,null,null,{"$f":"'Allgemeine Daten'!AM116:AY116","v":0}]
[]
[null,null,null,null,null,null,null,null,null,"Verfasser:",null,null,null,{"$f":"'Allgemeine Daten'!N118:AY118","v":0}]
[null,null,null,null,null,null,null,null,null,"Dokumentation Brandfallsteuerungen bestehend aus:"]
[]
[null,null,null,null,null,null,null,null,null,{"$f":"'Allgemeine Daten'!J122","v":" -"},"Pflichtenheft vom",null,null,null,null,null,null,null,null,null,null,{"$f":"'Allgemeine Daten'!V122:Y122","v":0},null,null,null,null,"Version",null,null,{"$f":"'Allgemeine Daten'!AD122:AG122","v":0}]
[]
[null,null,null,null,null,null,null,null,null,{"$f":"'Allgemeine Daten'!J124","v":" -"},"Zonenplan vom",null,null,null,null,null,null,null,null,null,null,{"$f":"'Allgemeine Daten'!V124:Y124","v":0},null,null,null,null,"Version",null,null,{"$f":"'Allgemeine Daten'!AD124:AG124","v":0}]
[]
[null,null,null,null,null,null,null,null,null,{"$f":"'Allgemeine Daten'!J126","v":" -"},"Liste oder Matrix vom",null,null,null,null,null,null,null,null,null,null,{"$f":"'Allgemeine Daten'!V126:Y126","v":0},null,null,null,null,"Version",null,null,{"$f":"'Allgemeine Daten'!AD126:AG126","v":0}]
[]
[null,null,null,null,null,null,null,null,null,"Automatische Auslösung Brandfallsteuerung",null,null,null,null,null,null,null,null,null,null,null,null,{"$f":"'Allgemeine Daten'!W130","v":" -"},"Kollektiv (mit Fail Safe)",null,null,null,null,null,null,null,null,{"$f":"'Allgemeine Daten'!AG130","v":" -"},"Kollektiv (ohne Fail Safe)",null,null,null,null,null,null,null,null,null,null,{"$f":"'Allgemeine Daten'!AS130","v":" -"},"Selektiv"]
[]
[null,null,null,null,null,null,null,null,null,"Manuelle Auslösung Brandfallsteuerung",null,null,null,null,null,null,null,null,null,null,null,null,{"$f":"'Allgemeine Daten'!W132","v":" -"},"Kollektiv (mit Fail Safe)",null,null,null,null,null,null,null,null,{"$f":"'Allgemeine Daten'!AG132","v":" -"},"Kollektiv (ohne Fail Safe)",null,null,null,null,null,null,null,null,null,null,{"$f":"'Allgemeine Daten'!AS132","v":" -"},"Selektiv"]
[]
[null,null,null,null,null,null,null,null,null,"Definition Feuerwehrzugang"]
[]
[null,null,null,null,null,null,null,null,null,"Standort FBA*",null,null,null,null,null,null,null,{"$f":"'Allgemeine Daten'!R136:AY136","v":0}]
[]
[null,null,null,null,null,null,null,null,null,"Blitzleuchten Anfahrt FW*",null,null,null,null,null,null,null,{"$f":"'Allgemeine Daten'!R138:AY138","v":0}]
[]
[null,null,null,null,null,null,null,null,null," *mit Feuerwehr abzuklären"]
[]
[]
["12.","Überwachungs       umfang",null,null,null,null,null,null,null,{"$f":"'Allgemeine Daten'!J147","v":" -"},"Vollüberwachung",null,null,null,null,null,null,{"$f":"'Allgemeine Daten'!U147","v":" -"},"Teilüberwachung",null,null,null,null,null,null,null,null,{"$f":"'Allgemeine Daten'!AF147","v":" -"},"Schutzzielorientiert"]
[]
[null,null,null,null,null,null,null,null,null,null,null,null,null,null,null,null,null,{"$f":"Vorabklärung!R125:AY125","v":0}]
[]
[null,null,null,null,null,null,null,null,null,null,null,null,null,null,null,null,null,{"$f":"Vorabklärung!R127:AY127","v":0}]
[]
[]
["13.","Genehmigung Sonder-anwendungen",null,null,null,null,null,null,null,"Genehmigung durch Brandschutzbehörden vorhanden",null,null,null,null,null,null,null,null,null,null,null,null,null,null,null,null," -","ja"]
[]
[null,null,null,null,null,null,null,null,null,"Meldertyp / -System",null,null,null,null,null,null,null,{"$f":"Vorabklärung!R141:AY141","v":0}]
[]
[]
["14.","Brandmeldesystem",null,null,null,null,null,null,null,"System",null,null,null,null,null,null,null,{"$f":"Vorabklärung!R144:AC144","v":0},null,null,null,null,null,null,null,null,null,null,null,null,"Zentralentyp",null,null,null,{"$f":"Vorabklärung!AI144:AY144","v":0}]
[]
[]
[null,null,null,null,null,null,null,null,null,"VKF System-Anerkennungs Nr.",null,null,null,null,null,null,null,null,null,{"$f":"Vorabklärung!T147:X147","v":0},null,null,null,null,null,null,null,null,null,null,"Bezeichnung",null,null,null,{"$f":"Vorabklärung!AI147:AY147","v":0}]
[]
[]
[null,null,null,null,null,null,null,null,null,"Anzahl Zentralen",null,null,null,null,null,null,null,{"$f":"Vorabklärung!R150:T150","v":0},null,null,null,null,"Vernetzung mit mehreren Zentralen:",null,null,null,null,null,null,null,null,null,null,{"$f":"Vorabklärung!AH150","v":" -"},"ja",{"$f":"Vorabklärung!AJ150","v":" -"},"nein",null,null,null,{"$f":"Vorabklärung!AO150","v":" -"},"Ringleitung",null,null,null,null,{"$f":"Vorabklärung!AU150","v":" -"},"Stichleitung"]
[]
[null,null,null,null,null,null,null,null,null,"Standorte Zentralen",null,null,null,null,null,null,null,{"$f":"Vorabklärung!R152:AY152","v":0}]
[]
[null,null,null,null,null,null,null,null,null,"Blockschema vom",null,null,null,null,null,null,null,{"$f":"Vorabklärung!R154:U154","v":0},null,null,null,null,null,null,"Version",null,null,{"$f":"Vorabklärung!AB154:AE154","v":0}]
[]
[]
["15.","Apparate",null,null,null,null,null,null,null,"Art der Melder",null,null,null,null,null,null,null,"Name/Typ",null,null,null,null,null,null,null,null,null,null,null,null,null,null,null,null,null,null,"Anzahl neu",null,null,null,null,"Anzahl best.",null,null,null,null,"Anzahl total"]
[]
[]
[null,null,null,null,null,null,null,null,null,"Mehrkriterienmelder",null,null,null,null,null,null,null,{"$f":"Vorabklärung!R160:AI160","v":0},null,null,null,null,null,null,null,null,null,null,null,null,null,null,null,null,null,null,{"$f":"Vorabklärung!AK160","v":0},null,null,null,null,{"$f":"Vorabklärung!AP160:AS160","v":0},null,null,null,null,{"$f":"AK169+AP169","v":0}]
[]
[null,null,null,null,null,null,null,null,null,"Rauchmelder optisch",null,null,null,null,null,null,null,{"$f":"Vorabklärung!R162:AI162","v":0},null,null,null,null,null,null,null,null,null,null,null,null,null,null,null,null,null,null,{"$f":"Vorabklärung!AK162","v":0},null,null,null,null,{"$f":"Vorabklärung!AP162:AS162","v":0},null,null,null,null,{"$f":"AK171+AP171","v":0}]
[]
[null,null,null,null,null,null,null,null,null,"Rauchmelder Ionisation",null,null,null,null,null,null,null,{"$f":"Vorabklärung!R164:AI164","v":0},null,null,null,null,null,null,null,null,null,null,null,null,null,null,null,null,null,null,{"$f":"Vorabklärung!AK164:AN164","v":0},null,null,null,null,{"$f":"Vorabklärung!AP164:AS164","v":0},null,null,null,null,{"$f":"AK173+AP173","v":0}]
[]
[null,null,null,null,null,null,null,null,null,"Wärmemelder",null,null,null,null,null,null,null,{"$f":"Vorabklärung!R166:AI166","v":0},null,null,null,null,null,null,null,null,null,null,null,null,null,null,null,null,null,null,{"$f":"Vorabklärung!AK166","v":0},null,null,null,null,{"$f":"Vorabklärung!AP166:AS166","v":0},null,null,null,null,{"$f":"AK175+AP175","v":0}]
[]
[null,null,null,null,null,null,null,null,null,"Flammenmelder",null,null,null,null,null,null,null,{"$f":"Vorabklärung!R168:AI168","v":0},null,null,null,null,null,null,null,null,null,null,null,null,null,null,null,null,null,null,{"$f":"Vorabklärung!AK168","v":0},null,null,null,null,{"$f":"Vorabklärung!AP168:AS168","v":0},null,null,null,null,{"$f":"AK177+AP177","v":0}]
[]
[null,null,null,null,null,null,null,null,null,"Handfeuermelder",null,null,null,null,null,null,null,{"$f":"Vorabklärung!R170:AI170","v":0},null,null,null,null,null,null,null,null,null,null,null,null,null,null,null,null,null,null,{"$f":"Vorabklärung!AK170","v":0},null,null,null,null,{"$f":"Vorabklärung!AP170:AS170","v":0},null,null,null,null,{"$f":"AK179+AP179","v":0}]
[]
[null,null,null,null,null,null,null,null,null,{"$f":"Vorabklärung!J172","v":0},null,null,null,null,null,null,null,{"$f":"Vorabklärung!R172","v":0},null,null,null,null,null,null,null,null,null,null,null,null,null,null,null,null,null,null,{"$f":"Vorabklärung!AK172","v":0},null,null,null,null,{"$f":"Vorabklärung!AP172:AS172","v":0},null,null,null,null,{"$f":"AK181+AP181","v":0}]
[]
[null,null,null,null,null,null,null,null,null,{"$f":"Vorabklärung!J174","v":0},null,null,null,null,null,null,null,{"$f":"Vorabklärung!R174","v":0},null,null,null,null,null,null,null,null,null,null,null,null,null,null,null,null,null,null,{"$f":"Vorabklärung!AK174","v":0},null,null,null,null,{"$f":"Vorabklärung!AP174:AS174","v":0},null,null,null,null,{"$f":"AK183+AP183","v":0}]
[]
[]
[null,null,null,null,null,null,null,null,null,"Ein- und Ausgabebausteine",null,null,null,null,null,null,null,{"$f":"Vorabklärung!R177:AC177","v":0},null,null,null,null,null,null,null,null,null,null,null,null,null,null,null,null,null,null,{"$f":"Vorabklärung!AK177","v":0},null,null,null,null,{"$f":"Vorabklärung!AP177:AS177","v":0},null,null,null,null,{"$f":"AK186+AP186","v":0}]
[]
[null,null,null,null,null,null,null,null,null,"Ein- und Ausgabebausteine",null,null,null,null,null,null,null,{"$f":"Vorabklärung!R179:AC179","v":0},null,null,null,null,null,null,null,null,null,null,null,null,null,null,null,null,null,null,{"$f":"Vorabklärung!AK179","v":0},null,null,null,null,{"$f":"Vorabklärung!AP179:AS179","v":0},null,null,null,null,{"$f":"AK188+AP188","v":0}]
[]
[null,null,null,null,null,null,null,null,null,"Ein- und Ausgabebausteine",null,null,null,null,null,null,null,{"$f":"Vorabklärung!R181:AC181","v":0},null,null,null,null,null,null,null,null,null,null,null,null,null,null,null,null,null,null,{"$f":"Vorabklärung!AK181","v":0},null,null,null,null,{"$f":"Vorabklärung!AP181:AS181","v":0},null,null,null,null,{"$f":"AK190+AP190","v":0}]
[]
[]
[null,null,null,null,null,null,null,null,null,"Sonderanwendung",null,null,null,null,null,null,null,"Name/Typ",null,null,null,null,null,null,null,null,null,null,null,null,null,null,null,null,null,null,"Anzahl neu",null,null,null,null,"Anzahl best.",null,null,null,null,"VKF Nr. "]
[]
[]
[null,null,null,null,null,null,null,null,null,"Linearer Rauchmelder",null,null,null,null,null,null,null,{"$f":"Vorabklärung!R187:AI187","v":0},null,null,null,null,null,null,null,null,null,null,null,null,null,null,null,null,null,null,{"$f":"Vorabklärung!AK187:AN187","v":0},null,null,null,null,{"$f":"Vorabklärung!AP187","v":0},null,null,null,null,{"$f":"Vorabklärung!AU187:AY187","v":0}]
[]
[null,null,null,null,null,null,null,null,null,"Linearer Wärmemelder",null,null,null,null,null,null,null,{"$f":"Vorabklärung!R189:AI189","v":0},null,null,null,null,null,null,null,null,null,null,null,null,null,null,null,null,null,null,{"$f":"Vorabklärung!AK189:AN189","v":0},null,null,null,null,{"$f":"Vorabklärung!AP189","v":0},null,null,null,null,{"$f":"Vorabklärung!AU189:AY189","v":0}]
[]
[null,null,null,null,null,null,null,null,null,"Luftproben-Rauchmelder",null,null,null,null,null,null,null,{"$f":"Vorabklärung!R191:AI191","v":0},null,null,null,null,null,null,null,null,null,null,null,null,null,null,null,null,null,null,{"$f":"Vorabklärung!AK191:AN191","v":0},null,null,null,null,{"$f":"Vorabklärung!AP191","v":0},null,null,null,null,{"$f":"Vorabklärung!AU191:AY191","v":0}]
[]
[null,null,null,null,null,null,null,null,null,"Funk-Komponenten",null,null,null,null,null,null,null,{"$f":"Vorabklärung!R193:AI193","v":0},null,null,null,null,null,null,null,null,null,null,null,null,null,null,null,null,null,null,{"$f":"Vorabklärung!AK193:AN193","v":0},null,null,null,null,{"$f":"Vorabklärung!AP193","v":0},null,null,null,null,{"$f":"Vorabklärung!AU193:AY193","v":0}]
[]
[null,null,null,null,null,null,null,null,null,"Ansaug-Rauchmelder",null,null,null,null,null,null,null,{"$f":"Vorabklärung!R195:AI195","v":0},null,null,null,null,null,null,null,null,null,null,null,null,null,null,null,null,null,null,{"$f":"Vorabklärung!AK195:AN195","v":0},null,null,null,null,{"$f":"Vorabklärung!AP195","v":0},null,null,null,null,{"$f":"Vorabklärung!AU195:AY195","v":0}]
[]
[null,null,null,null,null,null,null,null,null,{"$f":"Vorabklärung!J197:P197","v":0},null,null,null,null,null,null,null,{"$f":"Vorabklärung!R197","v":0},null,null,null,null,null,null,null,null,null,null,null,null,null,null,null,null,null,null,{"$f":"Vorabklärung!AK197","v":0},null,null,null,null,{"$f":"Vorabklärung!AP197","v":0},null,null,null,null,{"$f":"Vorabklärung!AU197:AY197","v":0}]
[]
[]
["16.","Leitungsnetz",null,null,null,null,null,null,null,"Melderlinien",null,null,null,null,null,null,null,null,null,null,null,null,null,null,null,null,null,null,null,null,"Anzahl neu",null,null,null,null,null,"Anzahl neu",null,null,null,null,"Anzahl best.",null,null,null,null,"Anzahl total"]
[]
[null,null,null,null,null,null,null,null,null,"Ringleitung (Loop)",null,null,null,null,null,null,null,null,null,null,null,null,null,null,null,null,null,null,null,null,null,null,null,null,null,null,{"$f":"Vorabklärung!AK202:AN202","v":0},null,null,null,null,{"$f":"Vorabklärung!AP202:AS202","v":0},null,null,null,null,{"$f":"AK211+AP211","v":0}]
[]
[null,null,null,null,null,null,null,null,null,"Stichleitung",null,null,null,null,null,null,null,null,null,null,null,null,null,null,null,null,null,null,null,null,null,null,null,null,null,null,{"$f":"Vorabklärung!AK204:AN204","v":0},null,null,null,null,{"$f":"Vorabklärung!AP204:AS204","v":0},null,null,null,null,{"$f":"AK213+AP213","v":0}]
[]
[null,null,null,null,null,null,null,null,null,"Firma für die Ausführung der Elektroinstallation der Brandmeldeanlage:",null,null,null,null,null,null,null,null,null,null,null,null,null,null,null,null,null,null,null,null," -"]
[]
[null,null,null,null,null,null,null,null,null,"Die gesamte Elektroinstallation für die Brandmeldeanlage (inkl. Anschlussleitungen, Absicherung, Leitungen für Peripherie- und Zentralen, etc.) entspricht den Anforderungen der Brandschutzrichtlinien, kantonalen Vollzugsbestimmungen, dem Stand der Technik und der NIN."]
[]
[]
[]
[null,null,null,null,null,null,null,null,null,"Übereinstimmungerklärung zur Elektroinstallation SiNa ist mit dem Formular einzureichen"]
[]
[]
["17.","Brandfallsteuerung",null,null,null,null,null,null,null,"Ein- und Ausgabebausteine:",null,null,null,null,null,null,null,null,{"$f":"Vorabklärung!AE207","v":" -"},"zentral angeordnet",null,null,null,null,null,null,{"$f":"Vorabklärung!AM207","v":" -"},"dezentral angeordnet"]
[]
[null,null,null,null,null,null,null,null,null,"Hinweis: Detaillierte Angaben in Projektunterlagen erforderlich - Standorte in Zonen-/ oder Projektplänen eintragen"]
[]
[]
["18.","Alarmübermittlung",null,null,null,null,null,null,null," -",null,"Bestehende Alarmübertragungsanlage (AÜA)",null,null,null,null,null,null,null,null,null,null,null,null,null,null," -",null,"Neue Alarmübertragungsanlage (AÜA)"]
[]
[null,null,null,null,null,null,null,null,null,"Betreiber Alarmübermittlungsanlage (AÜA)",null,null,null,null,null,null,null,null,null,null,null,null,{"$f":"Vorabklärung!W216:AY216","v":0}]
[]
[null,null,null,null,null,null,null,null,null,"Übertragungart",null,null,null,null,null,null,null,null,{"$f":"Vorabklärung!S218","v":" -"},"IP und Mobile-Netz (GPRS, UMTS, LTE)",null,null,null,null,null,null,null,null,null,null,null,null,null,null,null,null,null,null,null,{"$f":"Vorabklärung!AN218","v":" -"},"andere",null,null,{"$f":"Vorabklärung!AR218:AY218","v":0}]
[]
[null,null,null,null,null,null,null,null,null,"Meldezeit (Überwachung)",null,null,null,null,null,null,null,null,{"$f":"Vorabklärung!S220","v":" -"},"90/180 sek. (DP4 gem. SN EN 50136-1:2012)",null,null,null,null,null,null,null,null,null,null,null,null,null,null,null,null,null,null,null,{"$f":"Vorabklärung!AN220","v":" -"},"max. 25 Std. "]
[]
[null,null,null,null,null,null,null,null,null,"Gerätetyp ",null,null,null,null,null,null,null,null,{"$f":"Vorabklärung!S222:AL222","v":0},null,null,null,null,null,null,null,null,null,null,null,null,null,null,null,null,null,null,null,null,"ÜE Nr.",null,null,null,{"$f":"Vorabklärung!AR222:AY222","v":0}]
[]
[null,null,null,null,null,null,null,null,null,"Alarmkriterien auf öffentliche Feuermeldestelle",null,null,null,null,null,null,null,null,null,null,null,null,null,{"$f":"Vorabklärung!X224","v":" -"},"Brandmelder",null,null,null,null,null,null,{"$f":"Vorabklärung!AF224","v":" -"},"Sprinkler"]
[]
[null,null,null,null,null,null,null,null,null,"andere Kriterien",null,null,null,null,null,null,{"$f":"Vorabklärung!Q226:AY226","v":0}]
[]
[null,null,null,null,null,null,null,null,null,"andere Kriterien",null,null,null,null,null,null,{"$f":"Vorabklärung!Q228:AY228","v":0}]
[]
[null,null,null,null,null,null,null,null,null,"andere Kriterien",null,null,null,null,null,null,{"$f":"Vorabklärung!Q230:AY230","v":0}]
[]
[]
[null,null,null,null,null,null,null,null,null,"Störungskriterien auf Ständig besetzte Stelle",null,null,null,null,null,null,null,null,null,null,null,null,null,null,null,{"$f":"Vorabklärung!Z233","v":" -"},"Störung BMA",null,null,null,null,null,null,{"$f":"Vorabklärung!AH233","v":" -"},"Ausschaltung BMA"]
[]
[null,null,null,null,null,null,null,null,null,null,null,null,null,null,null,null,null,null,null,null,null,null,null,null,null,{"$f":"Vorabklärung!Z235","v":" -"},"Störung RWA",null,null,null,null,null,null,{"$f":"Vorabklärung!AH235","v":" -"},"Störung RDA"]
[]
[null,null,null,null,null,null,null,null,null,"andere Kriterien",null,null,null,null,null,null,{"$f":"Vorabklärung!Q237:AY237","v":0}]
[]
[null,null,null,null,null,null,null,null,null,"andere Kriterien",null,null,null,null,null,null,{"$f":"Vorabklärung!Q239:AY239","v":0}]
[]
[null,null,null,null,null,null,null,null,null,"andere Kriterien",null,null,null,null,null,null,{"$f":"Vorabklärung!Q241:AY241","v":0}]
[]
[]
[null,"Öffentliche Feuermelde- stelle",null,null,null,null,null,null,null,"Name",null,null,null,null,null,null,{"$f":"Vorabklärung!Q244","v":0},null,null,null,null,null,null,null,null,null,null,null,null,null,null,"Tel.",null,{"$f":"Vorabklärung!AH244","v":0}]
[]
[null,null,null,null,null,null,null,null,null,"Strasse",null,null,null,null,null,null,{"$f":"Vorabklärung!Q246","v":0},null,null,null,null,null,null,null,null,null,null,null,null,null,null,"Nr. ",null,{"$f":"Vorabklärung!AH246","v":0}]
[]
[null,null,null,null,null,null,null,null,null,"Ort",null,null,null,null,null,null,{"$f":"Vorabklärung!Q248","v":0},null,null,null,null,null,null,null,null,null,null,null,null,null,null,"PLZ",null,{"$f":"Vorabklärung!AH248","v":0}]
[]
[]
[null,"Empfangsstelle Störungs-meldung BMA / SPA",null,null,null,null,null,null,null,"Name",null,null,null,null,null,null,{"$f":"Vorabklärung!Q251","v":0},null,null,null,null,null,null,null,null,null,null,null,null,null,null,"Tel.",null,{"$f":"Vorabklärung!AH251","v":0}]
[]
[null,null,null,null,null,null,null,null,null,"Strasse",null,null,null,null,null,null,{"$f":"Vorabklärung!Q253","v":0},null,null,null,null,null,null,null,null,null,null,null,null,null,null,"Nr. ",null,{"$f":"Vorabklärung!AH253","v":0}]
[]
[null,null,null,null,null,null,null,null,null,"Ort",null,null,null,null,null,null,{"$f":"Vorabklärung!Q255","v":0},null,null,null,null,null,null,null,null,null,null,null,null,null,null,"PLZ",null,{"$f":"Vorabklärung!AH255","v":0}]
[]
[]
[null,"Empfangsstelle Störungs-meldung z.B. RWA / RDA",null,null,null,null,null,null,null,"Name",null,null,null,null,null,null,{"$f":"Vorabklärung!Q258","v":0},null,null,null,null,null,null,null,null,null,null,null,null,null,null,"Tel.",null,{"$f":"Vorabklärung!AH258:AO258","v":0}]
[]
[null,null,null,null,null,null,null,null,null,"Strasse",null,null,null,null,null,null,{"$f":"Vorabklärung!Q260","v":0},null,null,null,null,null,null,null,null,null,null,null,null,null,null,"Nr. ",null,{"$f":"Vorabklärung!AH260","v":0}]
[]
[null,null,null,null,null,null,null,null,null,"Ort",null,null,null,null,null,null,{"$f":"Vorabklärung!Q262","v":0},null,null,null,null,null,null,null,null,null,null,null,null,null,null,"PLZ",null,{"$f":"Vorabklärung!AH262","v":0}]
[]
[]
["19.","Funktions- prüfungen / Aufschaltung",null,null,null,null,null,null,null,"Funktionsprüfungen aller Apparate gemäss Stand der Technik Checkliste im Anhang A"]
[]
[null,null,null,null,null,null,null,null,null,"(Melder, Zentrale, Steuerungen bis zur Schnittstelle, Notstrombetrieb, Alarmgeräte, usw.)"]
[]
[null,null,null,null,null,null,null,null,null,"abgeschlossen am",null,null,null,null,null,null," -"]
[]
[null,null,null,null,null,null,null,null,null,"Bemerkungen",null,null,null,null,null,null," -"]
[]
[null,null,null,null,null,null,null,null,null,null,null,null,null,null,null,null," -"]
[]
[]
["20.","Bemerkungen/ Abweichungen"]
[]
[]
[]
[]
[]
[]
[]
[]
[]
[]
[]
[]
[]
[]
[]
[]
[]
[]
[null,"Anmeldung",null,null,null,null,null,null,null,"Die Anlage wurde angemeldet am"]
[]
[]
["21.","Beilagen",null,null,null,null,null,null,null,"x","Brandschutzkonzept/-pläne",null,null,null,null,null,null,null,null,null,null,null,null,null,null,null,null,null,null,null,null,null,null,null,"x","Pflichtenheft Brandfallsteuerungen"]
[]
[null,null,null,null,null,null,null,null,null,"x","Prinzip-/ Anlageschema (Blockschema)",null,null,null,null,null,null,null,null,null,null,null,null,null,null,null,null,null,null,null,null,null,null,null,"x","Zonenpläne Brandfallsteuerungen"]
[]
[null,null,null,null,null,null,null,null,null,"x","Massstäbliche Projektpläne mit eingezeichneten Apparaten",null,null,null,null,null,null,null,null,null,null,null,null,null,null,null,null,null,null,null,null,null,null,null,"x","Liste oder Matrix Brandfallsteuerungen"]
[]
[null,null,null,null,null,null,null,null,null,"x","Masstäbliche Schnittpläne (wenn Raumhöhe >6m)",null,null,null,null,null,null,null,null,null,null,null,null,null,null,null,null,null,null,null,null,null,null,null,"x","Übereinstimmungserklärung Elektroinstallationen"]
[]
[null,null,null,null,null,null,null,null,null,"x","Katasterplan",null,null,null,null,null,null,null,null,null,null,null,null,null,null,null,null,null,null,null,null,null,null,null,"x","Checkliste Funktionsprüfung"]
[]
[null,null,null,null,null,null,null,null,null,"x","Genehmigung der Brandschutzbehörde für Sonderanwendungen"]
[]
[]
["22.","Verteiler",null,null,null,null,null,null,null,"x","Fachplaner",null,null,null,null,null,null,null,null,null,null,null,null,null,null,null,null,null,null,null,"(Beilagen senden)"]
[]
[null,null,null,null,null,null,null,null,null,"x","QS-Verantwortlichen",null,null,null,null,null,null,null,null,null,null,null,null,null,null,null,null,null,null,null,"(Beilagen senden)"]
[]
[null,null,null,null,null,null,null,null,null,"x","Eigentümer- /Nutzerschaft",null,null,null,null,null,null,null,null,null,null,null,null,null,null,null,null,null,null,null,"(Beilagen senden)"]
[]
[null,null,null,null,null,null,null,null,null,"x","Brandschutzbehörde",null,null,null,null,null,null,null,null,null,null,null,null,null,null,null,null,null,null,null,"(Beilagen senden)"]
[]
[null,null,null,null,null,null,null,null,null,"x","Fachstelle(n)",null,null,null,null,null,null,null,null,null,null,null,null,null,null,null,null,null,null,null,"(Beilagen optional senden)"]
[]
[]
[]
[]
["23.","Unterschriften"]
[]
[null,"VKF anerkannte Fachfirma für Errichtung"]
[null,"Die Fachfirma für Errichtung bestätigt, dass die Brandmeldeanlage gemäss den Ausführungsplänen und dem Stand der Technik erstellt und betriebsbereit ist und der Anlageverantwortliche und dessen Stellvertreter instruiert sind."]
[]
[null,"Ort",null,null,null,null,null,null,null,null,null,null,null,null,null,null,null,"Datum"]
[]
[]
[]
[null,"Name der zuständigen Person"]
[]
[]
[]
[null,"Stempel und Unterschrift"]
[]
[]
[]
[]
[]
[]
[]
[]
[]
["24.","Fakultative Unterschriften"]
[]
[null,"QS Verantwortlicher Brandschutz oder Eigentümerschaft",null,null,null,null,null,null,null,null,null,null,null,null,null,null,null,null,null,null,null,null,null,null,null,null,null,null,null,"VKF anerkannte Fachfirma für Planung (Fachbauleitung)"]
[null,"Der QS Verantwortliche Brandschutz bestätigt, dass die Brandmeldeanlage mit dem genehmigten Brandschutzkonzept/ -plänen übereinstimmt. Insbesondere wurden der Überwachungsumfang, die Nutzungen und Schnittstellen zur Brandfallsteuerung überprüft.\n(Übereinstimmungserklärung (VKF-Inst. Attest) vom Fachfirma für Planung erhalten)",null,null,null,null,null,null,null,null,null,null,null,null,null,null,null,null,null,null,null,null,null,null,null,null,null,null,null,"Die Fachfirma für Planung bestätigt, dass die Brandmeldeanlage gemäss den geltenden Brandschutzvorschriften und Vollzugsbestimmungen sowie dem Stand der Technik erstellt ist und die notwendige Dokumentation gemäss VKF Brandschutzrichtlinie Brandmeldeanlagen vor Ort vorhanden ist. \nDer Einzeltest der BMA wurde unter der Leitung der Fachfirma für Planung durchgeführt."]
[null,"Ort",null,null,null,null,null,null,null,null,null,null,null,null,null,null,null,"Datum",null,null,null,null,null,null,null,null,null,null,null,"Ort",null,null,null,null,null,null,null,null,null,null,null,null,null,null,null,"Datum"]
[]
[]
[]
[null,"Name der zuständigen Person",null,null,null,null,null,null,null,null,null,null,null,null,null,null,null,null,null,null,null,null,null,null,null,null,null,null,null,"Name der zuständigen Person"]
[]
[]
[]
[null,"Stempel und Unterschrift",null,null,null,null,null,null,null,null,null,null,null,null,null,null,null,null,null,null,null,null,null,null,null,null,null,null,null,"Stempel und Unterschrift"]
[]
[]
[]
[]
[]
[]
[]
[]
[]
[null,"Elektroinstallationsfirma"]
[null,"Die Elektroinstallationsfirma bestätigt, dass das Leitungsnetz für die Brandmeldeanlage  gemäss den Ausführungsplänen installiert wurde. Die Anforderungen an das Leitungsnetz der Brandmeldeanlage werden gemäss der Brandschutzerläuterung \"Gewährleistung der Betriebsbereitschaft von Brandfallsteuerungen\" und der SES-Richtline \"Brandmeldeanlagen\" eingehalten."]
[null,"Ort",null,null,null,null,null,null,null,null,null,null,null,null,null,null,null,"Datum"]
[]
[]
[]
[null,"Name der zuständigen Person"]
[]
[]
[]
[null,"Stempel und Unterschrift"]
[]
[]
[]
[]
[]
[]
[]
[]
[]
["25.","Anhang A\nInbetriebsetzungs- Checkliste",null,null,null,null,null,null,null,"Dieser Anhang dient als Grundlage und setzt die minimalen Tätigkeiten für die Inbetriebsetzung und Kundenabnahme fest."]
[]
[null,null,null,null,null,null,null,null,null,"Beschriftung / Kundentext / Texte für Melder- und Gruppenanzeigen. Erstellt und überprüft",null,null,null,null,null,null,null,null,null,null,null,null,null,null,null,null,null,null,null,null,null,null,null,null,null,null,null,null,null,null,null,null,null,null,null,null," -","Ja"]
[]
[null,null,null,null,null,null,null,null,null,"Zugänglichkeit / Umgebungseinflüsse, spezielle Örtlichkeiten sind zu dokumentieren ",null,null,null,null,null,null,null,null,null,null,null,null,null,null,null,null,null,null,null,null,null,null,null,null,null,null,null,null,null,null,null,null,null,null,null,null," -","Ja"]
[]
[null,null,null,null,null,null,null,null,null,"Netzanschluss für BMZ und ggf. Komponenten sind dokumentiert inkl. Standort der Absicherung und Sicherheitsnachweis",null,null,null,null,null,null,null,null,null,null,null,null,null,null,null,null,null,null,null,null,null,null,null,null,null,null,null,null,null,null,null,null,null,null,null,null," -","Ja"]
[]
[null,null,null,null,null,null,null,null,null,"Absicherung Signal- / Steuerspannung überprüft",null,null,null,null,null,null,null,null,null,null,null,null,null,null,null,null,null,null,null,null,null,null,null,null,null,null,null,null,null,null,null,null,null,null,null,null," -","Ja"]
[]
[null,null,null,null,null,null,null,null,null,"Elektrische Werte überprüft",null,null,null,null,null,null,null,null,null,null,null,null,null,null,null,null,null,null,null,null,null,null,null,null,null,null,null,null,null,null,null,null,null,null,null,null," -","Ja"]
[]
[null,null,null,null,null,null,null,null,null,"Software / Firmware Versionen sind dokumentiert",null,null,null,null,null,null,null,null,null,null,null,null,null,null,null,null,null,null,null,null,null,null,null,null,null,null,null,null,null,null,null,null,null,null,null,null," -","Ja"]
[]
[null,null,null,null,null,null,null,null,null,"Programmierung / Konfiguration ausgeführt und überprüft",null,null,null,null,null,null,null,null,null,null,null,null,null,null,null,null,null,null,null,null,null,null,null,null,null,null,null,null,null,null,null,null,null,null,null,null," -","Ja"]
[]
[null,null,null,null,null,null,null,null,null,"Meldertyp / Parametersatz sind gemäss Vorgaben der Nutzung entsprechend eingesetzt resp. eingestellt",null,null,null,null,null,null,null,null,null,null,null,null,null,null,null,null,null,null,null,null,null,null,null,null,null,null,null,null,null,null,null,null,null,null,null,null," -","Ja"]
[]
[null,null,null,null,null,null,null,null,null,"Funktionskontrolle interne Alarmierung erfolgreich durchgeführt (Alarmhörner, Blitzleuchten, Sprachalarmierungsanlagen, AI)",null,null,null,null,null,null,null,null,null,null,null,null,null,null,null,null,null,null,null,null,null,null,null,null,null,null,null,null,null,null,null,null,null,null,null,null," -","Ja"]
[]
[null,null,null,null,null,null,null,null,null,"Funktionskontrolle interne Störungsmeldungen erfolgreich durchgeführt (wie BMA, SPA, RDA)",null,null,null,null,null,null,null,null,null,null,null,null,null,null,null,null,null,null,null,null,null,null,null,null,null,null,null,null,null,null,null,null,null,null,null,null," -","Ja"]
[]
[null,null,null,null,null,null,null,null,null,"Weiterleitung  Störungsmeldungen von Fremdanlagen (wie SPA, RDA, RWA) erfolgreich durchgeführt (ständig besetzte Stelle)",null,null,null,null,null,null,null,null,null,null,null,null,null,null,null,null,null,null,null,null,null,null,null,null,null,null,null,null,null,null,null,null,null,null,null,null," -","Ja"]
[]
[null,null,null,null,null,null,null,null,null,"Funktionskontrollen externe Alarmierung (inkl. Kriterien) erfolgreich durchgeführt (öffentliche Feuermeldestelle)",null,null,null,null,null,null,null,null,null,null,null,null,null,null,null,null,null,null,null,null,null,null,null,null,null,null,null,null,null,null,null,null,null,null,null,null," -","Ja"]
[]
[null,null,null,null,null,null,null,null,null,"Funktionskontrollen externe Störungs- und Ausschaltmeldungen erfolgreich durchgeführt (ständig besetzte Stelle)",null,null,null,null,null,null,null,null,null,null,null,null,null,null,null,null,null,null,null,null,null,null,null,null,null,null,null,null,null,null,null,null,null,null,null,null," -","Ja"]
[]
[null,null,null,null,null,null,null,null,null,"Automatische Umschaltung auf Abwesend-Zustand nach Vorgaben erstellt",null,null,null,null,null,null,null,null,null,null,null,null,null,null,null,null,null,null,null,null,null,null,null,null,null,null,null,null,null,null,null,null,null,null,null,null," -","Ja"]
[]
[null,null,null,null,null,null,null,null,null,"Ansteuerung von Löschanlagen überprüft (wie Gaslöschanlagen, Preaction SPA)",null,null,null,null,null,null,null,null,null,null,null,null,null,null,null,null,null,null,null,null,null,null,null,null,null,null,null,null,null,null,null,null,null,null,null,null," -","Ja"]
[]
[null,null,null,null,null,null,null,null,null,"Automatische Brandfallsteuerung bis Schnittstelle der BMA überprüft (potentialfreie Kontakte)",null,null,null,null,null,null,null,null,null,null,null,null,null,null,null,null,null,null,null,null,null,null,null,null,null,null,null,null,null,null,null,null,null,null,null,null," -","Ja"]
[]
[null,null,null,null,null,null,null,null,null,"Kontrollheft eröffnet und abgelegt",null,null,null,null,null,null,null,null,null,null,null,null,null,null,null,null,null,null,null,null,null,null,null,null,null,null,null,null,null,null,null,null,null,null,null,null," -","Ja"]
[]
[null,null,null,null,null,null,null,null,null,"Instruktion der verantwortlichen Person durchgeführt",null,null,null,null,null,null,null,null,null,null,null,null,null,null,null,null,null,null,null,null,null,null,null,null,null,null,null,null,null,null,null,null,null,null,null,null," -","Ja"]
[]
[null,null,null,null,null,null,null,null,null,"Dokumentation der Anlage gemäss Brandschutzvorschriften erstellt und abgelegt",null,null,null,null,null,null,null,null,null,null,null,null,null,null,null,null,null,null,null,null,null,null,null,null,null,null,null,null,null,null,null,null,null,null,null,null," -","Ja"]
[]
[null,null,null,null,null,null,null,null,null,"Orientierungspläne für den Feuerwehreinsatz erstellt und abgelegt",null,null,null,null,null,null,null,null,null,null,null,null,null,null,null,null,null,null,null,null,null,null,null,null,null,null,null,null,null,null,null,null,null,null,null,null," -","Ja"]
[]
[null,null,null,null,null,null,null,null,null,"Anbindung an Leitsystem / Alarmserver ausgeführt und überprüft",null,null,null,null,null,null,null,null,null,null,null,null,null,null,null,null,null,null,null,null,null,null,null,null,null,null,null,null,null,null,null,null,null,null,null,null," -","Ja"]
[]
[null,null,null,null,null,null,null,null,null,null,null,null,null,null,null,null,null,null,null,null,null,null,null,null,null,null,null,null,null,null,null,null,null,null,null,null,null,null,null,null,null,null,null,null,null,null," -","Ja"]
[]
[null,null,null,null,null,null,null,null,null,null,null,null,null,null,null,null,null,null,null,null,null,null,null,null,null,null,null,null,null,null,null,null,null,null,null,null,null,null,null,null,null,null,null,null,null,null," -","Ja"]
[]
[]
[]
[null,"Bemerkungen"]

{"sheet":"Beurteilung","index":4,"n_rows":394,"n_cols":53,"rows_kept":394,"cut":false,"hidden":false,"merged":[[77,9,77,12],[164,17,164,28],[144,46,144,50],[146,46,146,50],[148,46,148,50],[150,46,150,50],[152,46,152,50],[284,9,284,50],[274,9,274,50],[276,9,276,50],[191,43,191,50],[197,16,197,50],[182,13,182,50],[193,13,193,50],[199,16,199,50],[201,16,201,50],[208,16,208,50],[210,16,210,50],[191,18,191,37],[271,10,271,26],[282,9,282,50],[224,16,224,29],[224,33,224,35],[231,16,231,29],[4,16,4,35],[4,41,4,50],[6,16,6,29],[6,33,6,35],[6,41,6,50],[8,16,8,29],[8,33,8,35],[10,41,10,50],[124,34,124,50],[63,41,63,50],[86,29,86,32],[115,9,121,50],[58,16,58,29],[58,41,58,50],[17,33,17,35],[17,41,17,50],[73,21,73,24],[73,29,73,32],[73,38,73,50],[65,16,65,29],[65,33,65,35],[65,41,65,50],[68,16,68,29],[70,16,70,29],[393,14,393,50],[309,1,313,22],[298,1,298,22],[288,9,288,50],[290,9,290,50],[292,9,292,50],[286,9,286,50],[301,17,301,22],[305,1,305,22],[316,1,316,6],[336,9,336,16],[301,1,301,15],[73,1,77,7],[77,13,77,50],[154,46,154,50],[164,46,164,50],[141,46,141,50],[115,1,117,7],[144,17,144,28],[146,17,146,28],[215,1,219,6],[212,16,212,50],[80,38,80,50],[185,22,185,50],[187,43,187,50],[124,17,124,28],[136,27,136,30],[127,19,127,22],[92,13,92,50],[96,13,96,50],[103,13,103,50],[99,29,99,33],[99,46,99,50],[101,46,101,50],[101,29,101,33],[86,21,86,24],[274,1,276,6],[127,24,127,27],[172,41,172,44],[172,46,172,50],[262,35,262,49],[247,1,249,6],[267,10,267,25],[217,16,217,29],[217,33,217,35],[219,16,219,29],[219,33,219,35],[215,16,215,29],[252,1,254,7],[256,35,256,49],[258,35,258,49],[260,35,260,49],[231,33,231,35],[233,16,233,29],[233,33,233,35],[229,16,229,29],[222,16,222,29],[229,33,229,40],[269,10,269,25],[229,1,233,6],[395,14,395,50],[397,14,397,50],[75,21,75,24],[75,29,75,32],[75,38,75,50],[174,46,174,50],[176,41,176,44],[176,46,176,50],[178,41,178,44],[178,46,178,50],[167,46,167,50],[167,41,167,44],[178,17,178,28],[174,17,174,28],[176,17,176,28],[174,41,174,44],[172,17,172,28],[278,9,278,50],[280,9,280,50],[136,38,136,50],[82,21,82,24],[82,29,82,32],[82,38,82,50],[84,21,84,24],[244,14,244,50],[236,1,238,6],[222,1,226,6],[215,33,215,40],[222,33,222,40],[240,16,240,20],[242,14,242,50],[226,16,226,29],[226,33,226,35],[12,1,14,7],[13,16,13,29],[15,16,15,29],[15,33,15,35],[22,16,22,29],[22,41,22,50],[37,1,39,7],[37,16,37,29],[39,16,39,29],[39,33,39,35],[39,41,39,50],[25,1,27,7],[25,16,25,29],[27,16,27,29],[27,33,27,35],[27,41,27,50],[8,41,8,50],[15,41,15,50],[17,16,17,29],[13,41,13,50],[61,1,63,7],[53,16,53,29],[53,33,53,35],[53,41,53,50],[2,16,2,17],[3,2,3,14],[4,1,7,7],[49,1,51,7],[29,16,29,29],[29,33,29,35],[29,41,29,50],[32,16,32,29],[32,35,32,40],[32,41,32,50],[34,16,34,29],[63,16,63,29],[63,33,63,35],[56,16,56,29],[44,16,44,29],[46,16,46,29],[84,29,84,32],[84,38,84,50],[86,38,86,50],[167,17,167,28],[20,16,20,29],[20,35,20,40],[20,41,20,50],[80,21,80,24],[80,29,80,32],[61,16,61,29],[34,41,34,50],[49,16,49,29],[51,16,51,29],[51,33,51,35],[51,41,51,50],[41,41,41,50],[160,17,160,28],[160,46,160,50],[162,17,162,28],[70,41,70,50],[46,41,46,50],[41,16,41,29],[41,33,41,35],[152,17,152,28],[154,17,154,28],[170,41,170,44],[170,46,170,50],[88,21,88,24],[88,29,88,32],[88,38,88,50],[110,17,110,50],[148,17,148,28],[150,17,150,28],[134,38,134,50],[108,17,108,50],[127,34,127,50],[130,17,130,19],[132,17,132,50],[134,17,134,20],[134,27,134,30],[141,17,141,28],[138,13,138,50],[180,9,180,15],[180,17,180,28],[180,41,180,44],[180,46,180,50],[162,46,162,50],[156,9,156,15],[156,17,156,28],[158,17,158,28],[158,9,158,15],[156,46,156,50],[158,46,158,50],[170,17,170,28]]}
[null,null,null,null,null,null,null,null,null,"Brandmeldeanlage"]
[null,null,null,null,null,null,null,null,null,"Vorabklärung Beurteilung Brandmeldeanlagen Ziffer 4.5 Abs. 3 BSR 20-15 "]
[]
[]
["1.","Überwachtes              Gebäude",null,null,null,null,null,null,null,"Objekt",null,null,null,null,null,null,{"$f":"'Allgemeine Daten'!Q5:AJ5","v":0},null,null,null,null,null,null,null,null,null,null,null,null,null,null,null,null,null,null,null,null,"Vers.- Nr.",null,null,null,{"$f":"'Allgemeine Daten'!AP5:AY5","v":0}]
[]
[null,null,null,null,null,null,null,null,null,"Strasse",null,null,null,null,null,null,{"$f":"'Allgemeine Daten'!Q7:AD7","v":0},null,null,null,null,null,null,null,null,null,null,null,null,null,null,"Nr.",null,{"$f":"'Allgemeine Daten'!AH7:AJ7","v":0},null,null,null,"Anlage Nr.",null,null,null,{"$f":"'Allgemeine Daten'!AP7:AY7","v":0}]
[]
[null,null,null,null,null,null,null,null,null,"Ort",null,null,null,null,null,null,{"$f":"'Allgemeine Daten'!Q9:AD9","v":0},null,null,null,null,null,null,null,null,null,null,null,null,null,null,"PLZ",null,{"$f":"'Allgemeine Daten'!AH9:AJ9","v":0},null,null,null,"Kataster Nr.",null,null,null,{"$f":"'Allgemeine Daten'!AP9:AY9","v":0}]
[]
[null,null,null,null,null,null,null,null,null,null,null,null,null,null,null,null,null,null,null,null,null,null,null,null,null,null,null,null,null,null,null,null,null,null,null,null,null,"EGID Nr.",null,null,null,{"$f":"'Allgemeine Daten'!AP11:AY11","v":0}]
[]
[null,"Fachfirma \nErrichtung"]
["2.",null,null,null,null,null,null,null,null,"Firma",null,null,null,null,null,null,{"$f":"'Allgemeine Daten'!Q38:AD38","v":0},null,null,null,null,null,null,null,null,null,null,null,null,null,null,"VKF Anerkennung Nr.",null,null,null,null,null,null,null,null,null,{"$f":"'Allgemeine Daten'!AP38:AY38","v":0}]
[]
[null,null,null,null,null,null,null,null,null,"Strasse",null,null,null,null,null,null,{"$f":"'Allgemeine Daten'!Q40:AD40","v":0},null,null,null,null,null,null,null,null,null,null,null,null,null,null,"Nr.",null,{"$f":"'Allgemeine Daten'!AH40:AJ40","v":0},null,null,null,"Tel.",null,null,null,{"$f":"'Allgemeine Daten'!AP40:AY40","v":0}]
[]
[null,null,null,null,null,null,null,null,null,"Ort",null,null,null,null,null,null,{"$f":"'Allgemeine Daten'!Q42:AD42","v":0},null,null,null,null,null,null,null,null,null,null,null,null,null,null,"PLZ",null,{"$f":"'Allgemeine Daten'!AH42:AJ42","v":0},null,null,null,"Fax",null,null,null,{"$f":"'Allgemeine Daten'!AP42:AY42","v":0}]
[]
[]
[null,null,null,null,null,null,null,null,null,"Zuständige Person",null,null,null,null,null,null,{"$f":"'Allgemeine Daten'!Q45:AD45","v":0},null,null,null,null,null,null,null,null,null,null,null,null,null,null,null,null,null,null,"VKF Zertifikat Nr.",null,null,null,null,null,{"$f":"'Allgemeine Daten'!AP45:AY45","v":0}]
[]
[null,null,null,null,null,null,null,null,null,"E-Mail",null,null,null,null,null,null,{"$f":"'Allgemeine Daten'!Q47:AD47","v":0},null,null,null,null,null,null,null,null,null,null,null,null,null,null,null,null,null,null,null,null,"Tel. direkt",null,null,null,{"$f":"'Allgemeine Daten'!AP47:AY47","v":0}]
[]
[]
["3.","Geamtverantwort-licher Brandfallsteuerungen ",null,null,null,null,null,null,null,"Firma",null,null,null,null,null,null,{"$f":"'Allgemeine Daten'!Q50:AD50","v":0}]
[]
[null,null,null,null,null,null,null,null,null,"Strasse",null,null,null,null,null,null,{"$f":"'Allgemeine Daten'!Q52:AD52","v":0},null,null,null,null,null,null,null,null,null,null,null,null,null,null,"Nr.",null,{"$f":"'Allgemeine Daten'!AH52:AJ52","v":0},null,null,null,"Tel.",null,null,null,{"$f":"'Allgemeine Daten'!AP52:AY52","v":0}]
[]
[null,null,null,null,null,null,null,null,null,"Ort",null,null,null,null,null,null,{"$f":"'Allgemeine Daten'!Q54:AD54","v":0},null,null,null,null,null,null,null,null,null,null,null,null,null,null,"PLZ",null,{"$f":"'Allgemeine Daten'!AH54:AJ54","v":0},null,null,null,"Fax",null,null,null,{"$f":"'Allgemeine Daten'!AP54:AY54","v":0}]
[]
[]
[null,null,null,null,null,null,null,null,null,"Zuständige Person",null,null,null,null,null,null,{"$f":"'Allgemeine Daten'!Q57:AD57","v":0},null,null,null,null,null,null,null,null,null,null,null,null,null,null,null,null,null,null,"VKF Zertifikat Nr.",null,null,null,null,null,{"$f":"'Allgemeine Daten'!AP57:AY57","v":0}]
[]
[null,null,null,null,null,null,null,null,null,"E-Mail",null,null,null,null,null,null,{"$f":"'Allgemeine Daten'!Q59:AD59","v":0},null,null,null,null,null,null,null,null,null,null,null,null,null,null,null,null,null,null,null,null,"Tel. direkt",null,null,null,{"$f":"'Allgemeine Daten'!AP59:AY59","v":0}]
[]
[]
["4.","Eigentümerschaft",null,null,null,null,null,null,null,"Name",null,null,null,null,null,null,{"$f":"'Allgemeine Daten'!Q62:AD62","v":0}]
[]
[null,null,null,null,null,null,null,null,null,"Strasse",null,null,null,null,null,null,{"$f":"'Allgemeine Daten'!Q64:AD64","v":0},null,null,null,null,null,null,null,null,null,null,null,null,null,null,"Nr.",null,{"$f":"'Allgemeine Daten'!AH64:AJ64","v":0},null,null,null,"Tel.",null,null,null,{"$f":"'Allgemeine Daten'!AP64:AY64","v":0}]
[]
[null,null,null,null,null,null,null,null,null,"Ort",null,null,null,null,null,null,{"$f":"'Allgemeine Daten'!Q66:AD66","v":0},null,null,null,null,null,null,null,null,null,null,null,null,null,null,"PLZ",null,{"$f":"'Allgemeine Daten'!AH66:AJ66","v":0},null,null,null,"Fax",null,null,null,{"$f":"'Allgemeine Daten'!AP66:AY66","v":0}]
[]
[]
[null,null,null,null,null,null,null,null,null,"Zuständige Person",null,null,null,null,null,null,{"$f":"'Allgemeine Daten'!Q69:AD69","v":0}]
[]
[null,null,null,null,null,null,null,null,null,"E-Mail",null,null,null,null,null,null,{"$f":"'Allgemeine Daten'!Q71:AD71","v":0},null,null,null,null,null,null,null,null,null,null,null,null,null,null,null,null,null,null,null,null,"Tel. direkt",null,null,null,{"$f":"'Allgemeine Daten'!AP71:AY71","v":0}]
[]
[]
["5.","Vertreter Eigentümerschaft",null,null,null,null,null,null,null,"Name",null,null,null,null,null,null,{"$f":"'Allgemeine Daten'!Q74:AD74","v":0}]
[]
[null,null,null,null,null,null,null,null,null,"Strasse",null,null,null,null,null,null,{"$f":"'Allgemeine Daten'!Q76:AD76","v":0},null,null,null,null,null,null,null,null,null,null,null,null,null,null,"Nr.",null,{"$f":"'Allgemeine Daten'!AH76:AJ76","v":0},null,null,null,"Tel.",null,null,null,{"$f":"'Allgemeine Daten'!AP76:AY76","v":0}]
[]
[null,null,null,null,null,null,null,null,null,"Ort",null,null,null,null,null,null,{"$f":"'Allgemeine Daten'!Q78:AD78","v":0},null,null,null,null,null,null,null,null,null,null,null,null,null,null,"PLZ",null,{"$f":"'Allgemeine Daten'!AH78:AJ78","v":0},null,null,null,"Fax",null,null,null,{"$f":"'Allgemeine Daten'!AP78:AY78","v":0}]
[]
[]
[null,null,null,null,null,null,null,null,null,"Zuständige Person",null,null,null,null,null,null,{"$f":"'Allgemeine Daten'!Q81:AD81","v":0}]
[]
[null,null,null,null,null,null,null,null,null,"E-Mail",null,null,null,null,null,null,{"$f":"'Allgemeine Daten'!Q83:AD83","v":0},null,null,null,null,null,null,null,null,null,null,null,null,null,null,null,null,null,null,null,null,"Tel. direkt",null,null,null,{"$f":"'Allgemeine Daten'!AP83:AY83","v":0}]
[]
[]
["6.","Anlageverant-wortlicher",null,null,null,null,null,null,null,"Name",null,null,null,null,null,null,{"$f":"'Allgemeine Daten'!Q86:AD86","v":0}]
[]
[null,null,null,null,null,null,null,null,null,"Strasse",null,null,null,null,null,null,{"$f":"'Allgemeine Daten'!Q88:AD88","v":0},null,null,null,null,null,null,null,null,null,null,null,null,null,null,"Nr.",null,{"$f":"'Allgemeine Daten'!AH88:AJ88","v":0},null,null,null,"Tel.",null,null,null,{"$f":"'Allgemeine Daten'!AP88:AY88","v":0}]
[]
[null,null,null,null,null,null,null,null,null,"Ort",null,null,null,null,null,null,{"$f":"'Allgemeine Daten'!Q90:AD90","v":0},null,null,null,null,null,null,null,null,null,null,null,null,null,null,"PLZ",null,{"$f":"'Allgemeine Daten'!AH90:AJ90","v":0},null,null,null,"Fax",null,null,null,{"$f":"'Allgemeine Daten'!AP90:AY90","v":0}]
[]
[]
[null,null,null,null,null,null,null,null,null,"Zuständige Person",null,null,null,null,null,null,{"$f":"'Allgemeine Daten'!Q93:AD93","v":0}]
[]
[null,null,null,null,null,null,null,null,null,"E-Mail",null,null,null,null,null,null,{"$f":"'Allgemeine Daten'!Q95:AD95","v":0},null,null,null,null,null,null,null,null,null,null,null,null,null,null,null,null,null,null,null,null,"Tel. direkt",null,null,null,{"$f":"'Allgemeine Daten'!AP95:AY95","v":0}]
[]
[]
["7.","Grundlagen, vor Ort vorhanden?",null,null,null,null,null,null,null," -","Brandschutzpläne vom",null,null,null,null,null,null,null,null,null,null,null,null,null,null,null,"Version",null,null,null,null,null,null,null,"Bemerkung"]
[]
[null,null,null,null,null,null,null,null,null," -","Brandschutzkonzept vom",null,null,null,null,null,null,null,null,null,null,null,null,null,null,null,"Version",null,null,null,null,null,null,null,"Bemerkung"]
[]
[null,null,null,null,null,null,null,null,null,"Verfasser:",null,null,null,{"$f":"'Allgemeine Daten'!N118:AY118","v":0}]
[null,null,null,null,null,null,null,null,null,"Dokumentation Brandfallsteuerungen bestehend aus:"]
[]
[null,null,null,null,null,null,null,null,null,{"$f":"'Allgemeine Daten'!J122","v":" -"},"Pflichtenheft BFS vom",null,null,null,null,null,null,null,null,null,null,{"$f":"'Allgemeine Daten'!V122:Y122","v":0},null,null,null,null,"Version",null,null,{"$f":"'Allgemeine Daten'!AD122:AG122","v":0},null,null,null,null,"Bemerkung",null,null,null,{"$f":"'Allgemeine Daten'!AM122:AY122","v":0}]
[]
[null,null,null,null,null,null,null,null,null,{"$f":"'Allgemeine Daten'!J124","v":" -"},"Zonenplan vom",null,null,null,null,null,null,null,null,null,null,{"$f":"'Allgemeine Daten'!V124:Y124","v":0},null,null,null,null,"Version",null,null,{"$f":"'Allgemeine Daten'!AD124:AG124","v":0},null,null,null,null,"Bemerkung",null,null,null,{"$f":"'Allgemeine Daten'!AM124:AY124","v":0}]
[]
[null,null,null,null,null,null,null,null,null,{"$f":"'Allgemeine Daten'!J126","v":" -"},"Liste oder Matrix vom",null,null,null,null,null,null,null,null,null,null,{"$f":"'Allgemeine Daten'!V126:Y126","v":0},null,null,null,null,"Version",null,null,{"$f":"'Allgemeine Daten'!AD126:AG126","v":0},null,null,null,null,"Bemerkung",null,null,null,{"$f":"'Allgemeine Daten'!AM126:AY126","v":0}]
[]
[null,null,null,null,null,null,null,null,null,{"$f":"'Allgemeine Daten'!J128","v":" -"},"Konzept Manuelle Aktivierung vom",null,null,null,null,null,null,null,null,null,null,{"$f":"'Allgemeine Daten'!V128:Y128","v":0},null,null,null,null,"Version",null,null,{"$f":"'Allgemeine Daten'!AD128:AG128","v":0},null,null,null,null,"Bemerkung",null,null,null,{"$f":"'Allgemeine Daten'!AM128:AY128","v":0}]
[]
[null,null,null,null,null,null,null,null,null," -","Bericht Integraler Test vom",null,null,null,null,null,null,null,null,null,null,null,null,null,null,null,"Version",null,null,null,null,null,null,null,"Bemerkung"]
[]
[null,null,null,null,null,null,null,null,null,"Automatische Auslösung Brandfallsteuerung",null,null,null,null,null,null,null,null,null,null,null,null,null,{"$f":"'Allgemeine Daten'!W130","v":" -"},"Kollektiv (mit Fail Safe)",null,null,null,null,null,null,null,{"$f":"'Allgemeine Daten'!AG130","v":" -"},null,"Kollektiv (ohne Fail Safe)",null,null,null,null,null,null,null,null,null,{"$f":"'Allgemeine Daten'!AS130","v":" -"},"Selektiv"]
[]
[null,null,null,null,null,null,null,null,null,"Bemerkung:"]
[]
[null,null,null,null,null,null,null,null,null,"Manuelle Aktivierung Brandfallsteuerung",null,null,null,null,null,null,null,null,null,null,null,null,null,{"$f":"'Allgemeine Daten'!W132","v":" -"},"Kollektiv (mit Fail Safe)",null,null,null,null,null,null,null,{"$f":"'Allgemeine Daten'!AG132","v":" -"},null,"Kollektiv",null,null,null,null,null,null,null,null,null,{"$f":"'Allgemeine Daten'!AS132","v":" -"},"Selektiv"]
[]
[null,null,null,null,null,null,null,null,null,"Bemerkung:"]
[]
[]
[null,null,null,null,null,null,null,null,null,"Kontrollheft: ",null,null,null," -","Vorhanden",null,null,null,null,"Datum letzte Wartung der BMA: ",null,null,null,null,null,null,null,null,null,null,null,null,null,null,null,"Datum letzte Melderrevision.: "]
[]
[null,null,null,null,null,null,null,null,null,null,null,null,null,null,null,null,null,null,null,"Datum letzter integraler Test:",null,null,null,null,null,null,null,null,null,null,null,null,null,null,null,"Datum nächste Melderrevision.: "]
[]
[null,null,null,null,null,null,null,null,null,"Bemerkung:"]
[]
[]
[null,null,null,null,null,null,null,null,null,"Definition Feuerwehrzugang"]
[]
[null,null,null,null,null,null,null,null,null,"Standort FBA*",null,null,null,null,null,null,null,{"$f":"'Allgemeine Daten'!R136:AY136","v":0}]
[]
[null,null,null,null,null,null,null,null,null,"Blitzleuchten Anfahrt FW*",null,null,null,null,null,null,null,{"$f":"'Allgemeine Daten'!R138:AY138","v":0}]
[]
[null,null,null,null,null,null,null,null,null," *mit Feuerwehr abzuklären"]
[]
[]
["8.","Überwachungs       umfang (Beschreibung)"]
[]
[]
[]
[]
[]
[]
[]
[]
["9.","Brandmeldesystem",null,null,null,null,null,null,null,"System",null,null,null,null,null,null,null,{"$f":"Vorabklärung!R144:AC144","v":0},null,null,null,null,null,null,null,null,null,null,null,null,"Zentralentyp",null,null,null,{"$f":"Vorabklärung!AI144:AY144","v":0}]
[]
[]
[null,null,null,null,null,null,null,null,null,"VKF System-Anerkennungs Nr.",null,null,null,null,null,null,null,null,null,null,null,null,null,null,null,null,null,null,null,null,"Bezeichnung",null,null,null,{"$f":"Vorabklärung!AI147:AY147","v":0}]
[]
[]
[null,null,null,null,null,null,null,null,null,"Anzahl Zentralen",null,null,null,null,null,null,null,{"$f":"Vorabklärung!R150:T150","v":0},null,null,null,null,"Vernetzung mit mehreren Zentralen:",null,null,null,null,null,null,null,null,null,null,{"$f":"Vorabklärung!AH150","v":" -"},"ja",null,{"$f":"Vorabklärung!AJ150","v":" -"},"nein",null,null,{"$f":"Vorabklärung!AO150","v":" -"},"Ringleitung",null,null,null,null,{"$f":"Vorabklärung!AU150","v":" -"},"Stichleitung"]
[]
[null,null,null,null,null,null,null,null,null,"Standorte Zentralen",null,null,null,null,null,null,null,{"$f":"Vorabklärung!R152:AY152","v":0}]
[]
[null,null,null,null,null,null,null,null,null,"Blockschema vom",null,null,null,null,null,null,null,{"$f":"Vorabklärung!R154:U154","v":0},null,null,null,null,null,null,"Version",null,null,{"$f":"Vorabklärung!AB154:AE154","v":0},null,null,null,null,null,null,"Bemerkung"]
[]
[null,null,null,null,null,null,null,null,null,"Datum erste Inbetriebsetzung",null,null,null,null,null,null,null,null,null,null,null,null,null,null,null,null,null,null,null,null,null,null,null,null,"Bemerkung"]
[]
[null,null,null,null,null,null,null,null,null,"Bemerkung:"]
[]
[]
["10.","Apparate",null,null,null,null,null,null,null,"Art der Melder",null,null,null,null,null,null,null,"Name/Typ",null,null,null,null,null,null,null,null,null,null,null,null,null,null,null,null,null,null,null,null,null,null,null,null,null,null,null,null,"Anzahl Total"]
[]
[]
[null,null,null,null,null,null,null,null,null,"Mehrkriterienmelder",null,null,null,null,null,null,null,{"$f":"Vorabklärung!R160","v":0},null,null,null,null,null,null,null,null,null,null,null,null,null,null,null,null,null,null,null,null,null,null,null,null,null,null,null,null,{"$f":"'Installations-Attest'!AU169:AY169","v":0}]
[]
[null,null,null,null,null,null,null,null,null,"Rauchmelder optisch",null,null,null,null,null,null,null,{"$f":"Vorabklärung!R162:AI162","v":0},null,null,null,null,null,null,null,null,null,null,null,null,null,null,null,null,null,null,null,null,null,null,null,null,null,null,null,null,{"$f":"'Installations-Attest'!AU171:AY171","v":0}]
[]
[null,null,null,null,null,null,null,null,null,"Rauchmelder Ionisation",null,null,null,null,null,null,null,{"$f":"Vorabklärung!R164:AI164","v":0},null,null,null,null,null,null,null,null,null,null,null,null,null,null,null,null,null,null,null,null,null,null,null,null,null,null,null,null,{"$f":"'Installations-Attest'!AU173:AY173","v":0}]
[]
[null,null,null,null,null,null,null,null,null,"Wärmemelder",null,null,null,null,null,null,null,{"$f":"Vorabklärung!R166:AI166","v":0},null,null,null,null,null,null,null,null,null,null,null,null,null,null,null,null,null,null,null,null,null,null,null,null,null,null,null,null,{"$f":"'Installations-Attest'!AU175:AY175","v":0}]
[]
[null,null,null,null,null,null,null,null,null,"Flammenmelder",null,null,null,null,null,null,null,{"$f":"Vorabklärung!R168:AI168","v":0},null,null,null,null,null,null,null,null,null,null,null,null,null,null,null,null,null,null,null,null,null,null,null,null,null,null,null,null,{"$f":"'Installations-Attest'!AU177:AY177","v":0}]
[]
[null,null,null,null,null,null,null,null,null,"Handfeuermelder",null,null,null,null,null,null,null,{"$f":"Vorabklärung!R170:AI170","v":0},null,null,null,null,null,null,null,null,null,null,null,null,null,null,null,null,null,null,null,null,null,null,null,null,null,null,null,null,{"$f":"'Installations-Attest'!AU179:AY179","v":0}]
[]
[null,null,null,null,null,null,null,null,null,{"$f":"'Installations-Attest'!J181:P181","v":0},null,null,null,null,null,null,null,{"$f":"'Installations-Attest'!R181:AI181","v":0},null,null,null,null,null,null,null,null,null,null,null,null,null,null,null,null,null,null,null,null,null,null,null,null,null,null,null,null,{"$f":"'Installations-Attest'!AU181:AY181","v":0}]
[]
[null,null,null,null,null,null,null,null,null,{"$f":"'Installations-Attest'!J183:P183","v":0},null,null,null,null,null,null,null,{"$f":"'Installations-Attest'!R183:AI183","v":0},null,null,null,null,null,null,null,null,null,null,null,null,null,null,null,null,null,null,null,null,null,null,null,null,null,null,null,null,{"$f":"'Installations-Attest'!AU183:AY183","v":0}]
[]
[null,null,null,null,null,null,null,null,null,"Ein- und Ausgabebausteine",null,null,null,null,null,null,null,{"$f":"'Installations-Attest'!R186:AC186","v":0},null,null,null,null,null,null,null,null,null,null,null,null,null,null,null,null,null,null,null,null,null,null,null,null,null,null,null,null,{"$f":"'Installations-Attest'!AU186:AY186","v":0}]
[]
[null,null,null,null,null,null,null,null,null,"Ein- und Ausgabebausteine",null,null,null,null,null,null,null,{"$f":"'Installations-Attest'!R188:AC188","v":0},null,null,null,null,null,null,null,null,null,null,null,null,null,null,null,null,null,null,null,null,null,null,null,null,null,null,null,null,{"$f":"'Installations-Attest'!AU188:AY188","v":0}]
[]
[null,null,null,null,null,null,null,null,null,"Ein- und Ausgabebausteine",null,null,null,null,null,null,null,{"$f":"'Installations-Attest'!R190:AC190","v":0},null,null,null,null,null,null,null,null,null,null,null,null,null,null,null,null,null,null,null,null,null,null,null,null,null,null,null,null,{"$f":"'Installations-Attest'!AU190:AY190","v":0}]
[]
[]
[null,null,null,null,null,null,null,null,null,"Sonderanwendung",null,null,null,null,null,null,null,"Name/Typ",null,null,null,null,null,null,null,null,null,null,null,null,null,null,null,null,null,null,null,null,null,null,null,"Anzahl total",null,null,null,null,"VKF Nr. "]
[]
[]
[null,null,null,null,null,null,null,null,null,"Linearer Rauchmelder",null,null,null,null,null,null,null,{"$f":"Vorabklärung!R187:AI187","v":0},null,null,null,null,null,null,null,null,null,null,null,null,null,null,null,null,null,null,null,null,null,null,null,{"$f":"'Installations-Attest'!AP196:AS196","v":0},null,null,null,null,{"$f":"Vorabklärung!AU187:AY187","v":0}]
[]
[null,null,null,null,null,null,null,null,null,"Linearer Wärmemelder",null,null,null,null,null,null,null,{"$f":"Vorabklärung!R189:AI189","v":0},null,null,null,null,null,null,null,null,null,null,null,null,null,null,null,null,null,null,null,null,null,null,null,{"$f":"'Installations-Attest'!AP198:AS198","v":0},null,null,null,null,{"$f":"Vorabklärung!AU189:AY189","v":0}]
[]
[null,null,null,null,null,null,null,null,null,"Luftproben-Rauchmelder",null,null,null,null,null,null,null,{"$f":"Vorabklärung!R191:AI191","v":0},null,null,null,null,null,null,null,null,null,null,null,null,null,null,null,null,null,null,null,null,null,null,null,{"$f":"'Installations-Attest'!AP200:AS200","v":0},null,null,null,null,{"$f":"Vorabklärung!AU191:AY191","v":0}]
[]
[null,null,null,null,null,null,null,null,null,"Funk-Komponenten",null,null,null,null,null,null,null,{"$f":"Vorabklärung!R193:AI193","v":0},null,null,null,null,null,null,null,null,null,null,null,null,null,null,null,null,null,null,null,null,null,null,null,{"$f":"'Installations-Attest'!AP202:AS202","v":0},null,null,null,null,{"$f":"Vorabklärung!AU193:AY193","v":0}]
[]
[null,null,null,null,null,null,null,null,null,"Ansaug-Rauchmelder",null,null,null,null,null,null,null,{"$f":"Vorabklärung!R195:AI195","v":0},null,null,null,null,null,null,null,null,null,null,null,null,null,null,null,null,null,null,null,null,null,null,null,{"$f":"'Installations-Attest'!AP204:AS204","v":0},null,null,null,null,{"$f":"Vorabklärung!AU195:AY195","v":0}]
[]
[null,null,null,null,null,null,null,null,null,{"$f":"'Installations-Attest'!J206:P206","v":0},null,null,null,null,null,null,null,{"$f":"'Installations-Attest'!R206:AI206","v":0},null,null,null,null,null,null,null,null,null,null,null,null,null,null,null,null,null,null,null,null,null,null,null,{"$f":"'Installations-Attest'!AP206:AS206","v":0},null,null,null,null,{"$f":"'Installations-Attest'!AU206:AY206","v":0}]
[]
[null,null,null,null,null,null,null,null,null,"Bemerkung:"]
[]
[]
["11.","Alarmübermittlung",null,null,null,null,null,null,null,"Betreiber Alarmübermittlungsanlage (AÜA)",null,null,null,null,null,null,null,null,null,null,null,null,{"$f":"Vorabklärung!W216:AY216","v":0}]
[]
[null,null,null,null,null,null,null,null,null,"Übertragungsart",null,null,null,null,null,null,null,null,{"$f":"Vorabklärung!S218","v":" -"},"IP und Mobile-Netz (GPRS, UMTS, LTE)",null,null,null,null,null,null,null,null,null,null,null,null,null,null,null,null,null,null,null,{"$f":"Vorabklärung!AN218","v":" -"},"andere",null,null,{"$f":"Vorabklärung!AR218:AY218","v":0}]
[]
[null,null,null,null,null,null,null,null,null,"Meldezeit (Überwachung)",null,null,null,null,null,null,null,null,{"$f":"Vorabklärung!S220","v":" -"},"90/180 sek. (DP4 gem. SN EN 50136-1:2012)",null,null,null,null,null,null,null,null,null,null,null,null,null,null,null,null,null,null,null,{"$f":"Vorabklärung!AN220","v":" -"},"max. 25 Std. "]
[]
[null,null,null,null,null,null,null,null,null,"Gerätetyp ",null,null,null,null,null,null,null,null,{"$f":"Vorabklärung!S222:AL222","v":0},null,null,null,null,null,null,null,null,null,null,null,null,null,null,null,null,null,null,null,null,"ÜE Nr.",null,null,null,{"$f":"Vorabklärung!AR222:AY222","v":0}]
[]
[null,null,null,null,null,null,null,null,null,"Bemerkung:"]
[]
[null,null,null,null,null,null,null,null,null,"Alarmkriterien auf öffentliche Feuermeldestelle",null,null,null,null,null,null,null,null,null,null,null,null,null,{"$f":"Vorabklärung!X224","v":" -"},"Brandmelder",null,null,null,null,null,null,{"$f":"Vorabklärung!AF224","v":" -"},"Sprinkler"]
[]
[null,null,null,null,null,null,null,null,null,"andere Kriterien",null,null,null,null,null,null,{"$f":"Vorabklärung!Q226:AY226","v":0}]
[]
[null,null,null,null,null,null,null,null,null,"andere Kriterien",null,null,null,null,null,null,{"$f":"Vorabklärung!Q228:AY228","v":0}]
[]
[null,null,null,null,null,null,null,null,null,"andere Kriterien",null,null,null,null,null,null,{"$f":"Vorabklärung!Q230:AY230","v":0}]
[]
[]
[null,null,null,null,null,null,null,null,null,"Störungskriterien auf Ständig besetzte Stelle",null,null,null,null,null,null,null,null,null,null,null,null,null,null,null,{"$f":"Vorabklärung!Z233","v":" -"},"Störung BMA",null,null,null,null,null,null,{"$f":"Vorabklärung!AH233","v":" -"},"Ausschaltung BMA"]
[]
[null,null,null,null,null,null,null,null,null,null,null,null,null,null,null,null,null,null,null,null,null,null,null,null,null,{"$f":"Vorabklärung!Z235","v":" -"},"Störung RWA",null,null,null,null,null,null,{"$f":"Vorabklärung!AH235","v":" -"},"Störung RDA"]
[]
[null,null,null,null,null,null,null,null,null,"andere Kriterien",null,null,null,null,null,null,{"$f":"Vorabklärung!Q237:AY237","v":0}]
[]
[null,null,null,null,null,null,null,null,null,"andere Kriterien",null,null,null,null,null,null,{"$f":"Vorabklärung!Q239:AY239","v":0}]
[]
[null,null,null,null,null,null,null,null,null,"andere Kriterien",null,null,null,null,null,null,{"$f":"Vorabklärung!Q241:AY241","v":0}]
[]
[]
[null,"Öffentliche Feuermelde- stelle",null,null,null,null,null,null,null,"Name",null,null,null,null,null,null,{"$f":"Vorabklärung!Q244:AJ244","v":0},null,null,null,null,null,null,null,null,null,null,null,null,null,null,"Tel.",null,{"$f":"Vorabklärung!AH244","v":0}]
[]
[null,null,null,null,null,null,null,null,null,"Strasse",null,null,null,null,null,null,{"$f":"Vorabklärung!Q246:AD246","v":0},null,null,null,null,null,null,null,null,null,null,null,null,null,null,"Nr.",null,{"$f":"Vorabklärung!AH246:AJ246","v":0}]
[]
[null,null,null,null,null,null,null,null,null,"Ort",null,null,null,null,null,null,{"$f":"Vorabklärung!Q248:AD248","v":0},null,null,null,null,null,null,null,null,null,null,null,null,null,null,"PLZ",null,{"$f":"Vorabklärung!AH248:AJ248","v":0}]
[]
[]
[null,"Empfangsstelle Störungs-meldung BMA / SPA",null,null,null,null,null,null,null,"Name",null,null,null,null,null,null,{"$f":"Vorabklärung!Q251:AJ251","v":0},null,null,null,null,null,null,null,null,null,null,null,null,null,null,"Tel.",null,{"$f":"Vorabklärung!AH251","v":0}]
[]
[null,null,null,null,null,null,null,null,null,"Strasse",null,null,null,null,null,null,{"$f":"Vorabklärung!Q253:AD253","v":0},null,null,null,null,null,null,null,null,null,null,null,null,null,null,"Nr.",null,{"$f":"Vorabklärung!AH253:AJ253","v":0}]
[]
[null,null,null,null,null,null,null,null,null,"Ort",null,null,null,null,null,null,{"$f":"Vorabklärung!Q255:AD255","v":0},null,null,null,null,null,null,null,null,null,null,null,null,null,null,"PLZ",null,{"$f":"Vorabklärung!AH255:AJ255","v":0}]
[]
[]
[null,"Empfangsstelle Störungs-meldung z.B. RWA / RDA",null,null,null,null,null,null,null,"Name",null,null,null,null,null,null,{"$f":"Vorabklärung!Q258","v":0},null,null,null,null,null,null,null,null,null,null,null,null,null,null,"Tel.",null,{"$f":"Vorabklärung!AH258","v":0}]
[]
[null,null,null,null,null,null,null,null,null,"Strasse",null,null,null,null,null,null,{"$f":"Vorabklärung!Q260:AD260","v":0},null,null,null,null,null,null,null,null,null,null,null,null,null,null,"Nr.",null,{"$f":"Vorabklärung!AH260:AJ260","v":0}]
[]
[null,null,null,null,null,null,null,null,null,"Ort",null,null,null,null,null,null,{"$f":"Vorabklärung!Q262:AD262","v":0},null,null,null,null,null,null,null,null,null,null,null,null,null,null,"PLZ",null,{"$f":"Vorabklärung!AH262:AJ262","v":0}]
[]
[]
["12.","Funktions- prüfungen / Aufschaltung",null,null,null,null,null,null,null,"Funktionsprüfungen der Apparate gemäss der Vorgaben SES-Richtlinie Kapitel 12.3 durchgeführt"]
[]
[null,null,null,null,null,null,null,null,null,"(Melder, Zentrale, Steuerungen bis zur Schnittstelle, Notstrombetrieb, Alarmgeräte, Alarm-, Ausschalt- und Störungsmeldung, usw.)"]
[]
[null,null,null,null,null,null,null,null,null,"abgeschlossen am"]
[]
[null,null,null,null,null,null,null,null,null,"Bemerkungen"]
[]
[]
[]
[]
["13.","Gewährleistung der Betriebs-bereitschaft",null,null,null,null,null,null,null,"Wartungs- und Instandhaltungsvertrag mit der Brandmeldefirma"]
[]
[null,null,null,null,null,null,null,null,null," -","Vorhanden",null,null,null,null," -","Nicht vorhanden"]
[]
[]
["14.","Beilagen",null,null,null,null,null,null,null," -","Brandschutzkonzept/-pläne",null,null,null,null,null,null,null,null,null,null,null,null,null,null,null,null,null,null,null,null,null,null,null," -","Pflichtenheft Brandfallsteuerungen"]
[]
[null,null,null,null,null,null,null,null,null,"X","Prinzip-/ Anlageschema (Blockschema)",null,null,null,null,null,null,null,null,null,null,null,null,null,null,null,null,null,null,null,null,null,null,null," -","Zonenpläne Brandfallsteuerungen"]
[]
[null,null,null,null,null,null,null,null,null," -","Massstäbliche Projektpläne mit eingezeichneten Apparaten",null,null,null,null,null,null,null,null,null,null,null,null,null,null,null,null,null,null,null,null,null,null,null," -","Liste oder Matrix Brandfallsteuerungen"]
[]
[null,null,null,null,null,null,null,null,null," -","Masstäbliche Schnittpläne (wenn Raumhöhe >6m)",null,null,null,null,null,null,null,null,null,null,null,null,null,null,null,null,null,null,null,null,null,null,null," -"]
[]
[null,null,null,null,null,null,null,null,null," -","Katasterplan",null,null,null,null,null,null,null,null,null,null,null,null,null,null,null,null,null,null,null,null,null,null,null," -"]
[]
[null,null,null,null,null,null,null,null,null," -","Genehmigung der Brandschutzbehörde für Sonderanwendungen",null,null,null,null,null,null,null,null,null,null,null,null,null,null,null,null,null,null,null,null,null,null,null," -"]
[]
[]
["15.","Verteiler",null,null,null,null,null,null,null," -","Eigentümer- /Nutzerschaft",null,null,null,null,null,null,null,null,null,null,null,null,null,null,null,null,null,null,null,"(Beilagen senden)"]
[]
[null,null,null,null,null,null,null,null,null," -","Brandschutzbehörde",null,null,null,null,null,null,null,null,null,null,null,null,null,null,null,null,null,null,null,"(Beilagen senden)"]
[]
[null,null,null,null,null,null,null,null,null," -","Fachstelle(n)",null,null,null,null,null,null,null,null,null,null,null,null,null,null,null,null,null,null,null,"(Beilagen optional senden)"]
[]
[null,null,null,null,null,null,null,null,null," -"]
[]
[]
["16.","Abweichungen / Bemerkungen"]
[]
[]
[]
[]
[]
[]
[]
[]
[]
[]
[]
[]
[]
[]
[]
[]
[]
[]
[]
[]
["17.","Unterschriften"]
[]
[null,"VKF anerkannte Fachfirma für Planung für Brandmeldeanlagen"]
[null,"Die Fachfirma bestätigt, dass die Brandmeldeanlage gemäss den Vorgaben in dieser Beurteilung überprüft wurde."]
[null,"Ort",null,null,null,null,null,null,null,null,null,null,null,null,null,null,null,"Datum"]
[]
[]
[]
[null,"Name der zuständigen Person"]
[]
[]
[]
[null,"Stempel und Unterschrift"]
[]
[]
[]
[]
[]
[]
[]
[]
["18.","Checkliste",null,null,null,null,null,null,null,"Alarm- und Störungsmeldungen"]
[]
[null,null,null,null,null,null,null,null,null,"Intern"]
[]
[null,null,null,null,null,null,null,null,null," - Akustische Alarmierung ausreichend",null,null,null,null,null,null,null,null,null,null,null,null,null,null,null,null,null,null,null,null,null,null,null,null,null," -","ja",null," -","nein"]
[]
[null,null,null,null,null,null,null,null,null," - Optische Alarmierung ausreichend",null,null,null,null,null,null,null,null,null,null,null,null,null,null,null,null,null,null,null,null,null,null,null,null,null," -","ja",null," -","nein"]
[]
[]
[null,null,null,null,null,null,null,null,null,"Extern"]
[]
[null,null,null,null,null,null,null,null,null," - Alarm an öffentliche Feuermeldestelle gewährleistet",null,null,null,null,null,null,null,null,null,null,null,null,null,null,null,null,null,null,null,null,null,null,null,null,null," -","ja",null," -","nein"]
[]
[null,null,null,null,null,null,null,null,null," - Störungsmeldung an ständig besetzte Stelle gewährleistet (Pikettstelle)",null,null,null,null,null,null,null,null,null,null,null,null,null,null,null,null,null,null,null,null,null,null,null,null,null," -","ja",null," -","nein "]
[]
[null,null,null,null,null,null,null,null,null," - Meldung bei Ausschaltung an ständig besetzte Stelle gewährleistet (Pikettstelle)",null,null,null,null,null,null,null,null,null,null,null,null,null,null,null,null,null,null,null,null,null,null,null,null,null," -","ja",null," -","nein"]
[]
[null,null,null,null,null,null,null,null,null," - Anwesenheits- und Erkundungsverzögerung konform (3 und 5 Minuten)",null,null,null,null,null,null,null,null,null,null,null,null,null,null,null,null,null,null,null,null,null,null,null,null,null," -","ja",null," -","nein"]
[]
[]
[null,null,null,null,null,null,null,null,null,"Überwachungsumfang"]
[]
[null,null,null,null,null,null,null,null,null," - Überwachungsumfang konform (gemäss beiliegender Apparateliste)",null,null,null,null,null,null,null,null,null,null,null,null,null,null,null,null,null,null,null,null,null,null,null,null,null," -","ja",null," -","nein"]
[]
[]
[null,null,null,null,null,null,null,null,null,"Handfeuermelder"]
[]
[null,null,null,null,null,null,null,null,null," - Anordnung von Handfeuermelder konform",null,null,null,null,null,null,null,null,null,null,null,null,null,null,null,null,null,null,null,null,null,null,null,null,null," -","ja",null," -","nein"]
[]
[]
[null,null,null,null,null,null,null,null,null,"Raumanzeigelampen"]
[]
[null,null,null,null,null,null,null,null,null," - Raumanzeigelampen konform",null,null,null,null,null,null,null,null,null,null,null,null,null,null,null,null,null,null,null,null,null,null,null,null,null," -","ja",null," -","nein"]
[]
[]
[null,null,null,null,null,null,null,null,null,"Auswahl von Brandmeldern"]
[]
[null,null,null,null,null,null,null,null,null," - Dem zu erwartenden Enstehungsbrand entsprechende Brandmelder eingesetzt",null,null,null,null,null,null,null,null,null,null,null,null,null,null,null,null,null,null,null,null,null,null,null,null,null," -","ja",null," -","nein"]
[]
[]
[null,null,null,null,null,null,null,null,null,"Überwachungsflächen und Anordnung"]
[]
[null,null,null,null,null,null,null,null,null," - Überwachungsfläche, Anordnung und Beschriftung der Brandmelder konform",null,null,null,null,null,null,null,null,null,null,null,null,null,null,null,null,null,null,null,null,null,null,null,null,null," -","ja",null," -","nein"]
[]
[]
[null,null,null,null,null,null,null,null,null,"Sonderanwendungen"]
[]
[null,null,null,null,null,null,null,null,null," - Anwendung für die entsprechenden Nutzung geeignet und konform",null,null,null,null,null,null,null,null,null,null,null,null,null,null,null,null,null,null,null,null,null,null,null,null,null," -","ja",null," -","nein"]
[]
[null,null,null,null,null,null,null,null,null," - Überwachungsfläche und Anordnung der Sonderanwendungen konform",null,null,null,null,null,null,null,null,null,null,null,null,null,null,null,null,null,null,null,null,null,null,null,null,null," -","ja",null," -","nein"]
[]
[]
[null,null,null,null,null,null,null,null,null,"Brandmeldezentrale und Energieversorgung"]
[]
[null,null,null,null,null,null,null,null,null," - Standort der Brandmeldezentrale geeignet und überwacht",null,null,null,null,null,null,null,null,null,null,null,null,null,null,null,null,null,null,null,null,null,null,null,null,null," -","ja",null," -","nein"]
[]
[]
[null,null,null,null,null,null,null,null,null," - Energieversorgung konform (Beschriftung, Absicherung und Standort dokumentiert)",null,null,null,null,null,null,null,null,null,null,null,null,null,null,null,null,null,null,null,null,null,null,null,null,null," -","ja",null," -","nein"]
[]
[null,null,null,null,null,null,null,null,null,"Ist die technologische Verfügbarkeit noch gegeben für die:"]
[]
[null,null,null,null,null,null,null,null,null," - Brandmeldezentrale",null,null,null,null,null,null,null,null,null,null,null,null,null,null,null,null,null,null,null,null,null,null,null,null,null," -","ja",null," -","nein"]
[]
[null,null,null,null,null,null,null,null,null," - Alarmübertragung",null,null,null,null,null,null,null,null,null,null,null,null,null,null,null,null,null,null,null,null,null,null,null,null,null," -","ja",null," -","nein"]
[]
[null,null,null,null,null,null,null,null,null," - Peripherie (Melder, I/O Bausteine)",null,null,null,null,null,null,null,null,null,null,null,null,null,null,null,null,null,null,null,null,null,null,null,null,null," -","ja",null," -","nein"]
[]
[]
[null,null,null,null,null,null,null,null,null,"Anbindung Sprinkler",null,null,null,null,null,null,null,null,null,null,null,null,null,null,null,null,null,null,null,null,null,null,null,null,null,null,null,null,null,null,null,null,null,null,null,null,null,null,null,null,null,null," "]
[]
[null,null,null,null,null,null,null,null,null," - Anbindung gemäss Richtlinie funktionsfähig",null,null,null,null,null,null,null,null,null,null,null,null,null,null,null,null,null,null,null,null,null,null,null,null,null," -","ja",null," -","nein"]
[]
[null,null,null,null,null,null,null,null,null," - Anzeige der Strömungsmelder auf der BMZ sind richtig",null,null,null,null,null,null,null,null,null,null,null,null,null,null,null,null,null,null,null,null,null,null,null,null,null," -","ja",null," -","nein"]
[]
[null,null,null,null,null,null,null,null,null," - Störungsmeldung von SPA wird an BMZ angezeigt und übermittelt",null,null,null,null,null,null,null,null,null,null,null,null,null,null,null,null,null,null,null,null,null,null,null,null,null," -","ja",null," -","nein"]
[]
[]
[null,null,null,null,null,null,null,null,null,"Abweichungen"]

{"sheet":"Ausserbetrieb-Inbetriebsetzung","index":5,"n_rows":140,"n_cols":42,"rows_kept":140,"cut":false,"hidden":true,"merged":[[122,36,124,50],[88,36,90,50],[139,9,141,50],[129,9,130,50],[131,9,133,50],[135,9,137,50],[127,9,127,50],[122,9,122,19],[111,9,111,50],[106,11,106,27],[104,11,104,26],[99,19,99,26],[127,1,130,7],[19,16,19,29],[19,33,19,35],[19,41,19,50],[22,16,22,29],[24,16,24,29],[24,41,24,50],[113,9,113,50],[115,9,115,50],[120,9,120,19],[86,9,86,19],[120,36,120,50],[74,9,74,50],[109,9,109,50],[31,9,31,50],[81,11,81,27],[10,16,10,22],[10,28,10,35],[10,41,10,50],[15,1,17,7],[15,16,15,29],[17,16,17,29],[17,33,17,35],[17,41,17,50],[6,1,9,7],[6,16,6,50],[8,16,8,26],[8,28,8,29],[8,34,8,35],[8,39,8,50],[65,1,67,8],[70,9,70,50],[72,9,72,50],[48,9,62,50],[42,9,46,50],[42,1,44,7],[67,32,67,50],[79,11,79,26],[0,0,0,11],[4,16,4,17],[88,9,88,19],[86,36,86,50],[27,1,29,7],[34,1,34,7],[34,9,34,50],[36,9,36,50],[39,1,39,7],[39,18,39,25],[39,38,39,45],[27,9,27,50],[29,9,29,50],[67,11,67,27],[5,2,5,14]]}
["Brandmeldeanlage"]
["Ausser- / Inbetriebsetzungen Brandmeldeanlagen Ziffer 3.10 Abs. 5 BSR 20-15"]
["è",null,"Ausserbetriebsetzung"]
[null,"Auszufüllen durch:",null,null,null,null,null,null,null,"Anlagen - Betreiber"]
[]
[]
["1.","Überwachtes              Gebäude",null,null,null,null,null,null,null,"Objekt",null,null,null,null,null,null,{"$f":"'Allgemeine Daten'!Q5:AY5","v":0}]
[]
[null,null,null,null,null,null,null,null,null,"Strasse",null,null,null,null,null,null,{"$f":"'Allgemeine Daten'!Q7:AA7","v":0},null,null,null,null,null,null,null,null,null,null,"Nr.",{"$f":"'Allgemeine Daten'!AC7:AD7","v":0},null,null,null,"PLZ",null,{"$f":"'Allgemeine Daten'!AI7:AJ7","v":0},null,null,"Ort",null,{"$f":"'Allgemeine Daten'!AN7:AY7","v":0}]
[]
[null,null,null,null,null,null,null,null,null,"Versicherungs Nr.",null,null,null,null,null,null,{"$f":"'Allgemeine Daten'!Q9:W9","v":0},null,null,null,null,null,null,null,"Kataster Nr.",null,null,null,{"$f":"'Allgemeine Daten'!AC9:AJ9","v":0},null,null,null,null,null,null,null,null,"Anlage Nr.",null,null,null,{"$f":"'Allgemeine Daten'!AP9:AY9","v":0}]
[]
[null,null,null,null,null,null,null,null,null,"Qualitätssicherungsstufe ",null,null,null,null,null,null,"QSS 1",null,null,{"$f":"'Allgemeine Daten'!S11","v":" -"},null,null,null,"QSS 2",null,null,{"$f":"'Allgemeine Daten'!AN11","v":0},null,null,null,"QSS 3",null,null,{"$f":"'Allgemeine Daten'!AU11","v":0},null,null,null,"QSS 4",null,null,{"$f":"'Allgemeine Daten'!#REF!","v":{"$error":"#REF!"}}]
[]
[]
["2.","Anlage- Betreiber",null,null,null,null,null,null,null,"Name",null,null,null,null,null,null," -"]
[]
[null,null,null,null,null,null,null,null,null,"Strasse",null,null,null,null,null,null," -",null,null,null,null,null,null,null,null,null,null,null,null,null,null,"Nr.",null," -",null,null,null,"Tel.",null,null,null," -"]
[]
[null,null,null,null,null,null,null,null,null,"Ort",null,null,null,null,null,null," -",null,null,null,null,null,null,null,null,null,null,null,null,null,null,"PLZ",null," -",null,null,null,"Fax",null,null,null," -"]
[]
[]
[null,null,null,null,null,null,null,null,null,"Zuständige Person",null,null,null,null,null,null," -"]
[]
[null,null,null,null,null,null,null,null,null,"E-Mail",null,null,null,null,null,null," -",null,null,null,null,null,null,null,null,null,null,null,null,null,null,null,null,null,null,null,null,"Tel. direkt",null,null,null," -"]
[]
[]
["3.","Bereich welcher ausgeschalten wird",null,null,null,null,null,null,null," -"]
[]
[null,null,null,null,null,null,null,null,null," -"]
[]
[null,null,null,null,null,null,null,null,null," -"]
[]
[]
["4.","Grund",null,null,null,null,null,null,null," -"]
[]
[null,null,null,null,null,null,null,null,null," -"]
[]
[]
["5.","Termine",null,null,null,null,null,null,null,"Datum Ausserbetriebsetzung",null,null,null,null,null,null,null,null," -",null,null,null,null,null,null,null,null,null,null,null,"Voraussichtliche Dauer",null,null,null,null,null,null,null," -"]
[]
[]
["6.","Rechtliche Grundlage",null,null,null,null,null,null,null,"BSRL 20-15 Ziffer 3.10 Vorübergehende Ausserbetriebsetzung und Ausfall. \n(siehe auch Merkblatt \"Massnahmen bei Ausschaltungen von Brandmelde- und Sprinkleranlagen\" Forum für technischen Brandschutz):\n\nBrandmeldeanlagen dürfen grundsätzlich nicht ausser Betrieb gesetzt werden."]
[]
[]
[]
[]
[]
[null,null,null,null,null,null,null,null,null,"Dieses Formular muss bei Ausschaltungen von mehr als 24 Stunden angewendet werden. \nDie Massnahmen sind aufgrund des festgelegten Schutzzieles durch die Betreiber- und Nutzerschaft zu definieren. \nSicherheitsmassnahmen sind auch bei kürzeren Ausschaltungen notwendig. Die Sicherheitsmassnahmen sind so zu wählen dass die \nSchutzziele der Brandmeldeanlage angemessn erreicht werden können. \n\nWährend der Ausschaltung der Brandmeldeanlage oder Teilen davon sind andere geeignete Sicherheitsmassnahmen zu treffen. Diese sind:\n - Generell sollen die potentiellen Aktivierungsgefahren erkannt und gegebenenfalls beseitigt werden.\n - Die Sicherheitsmassnahmen müssen die Schutzziele, welche im Normalbetrieb durch die Brandmeldeanlage übernommen werden, wie z.B. das feststellen von Bränden, interne und externe Alarmierung, und Ansteuerung von brandschutztechnischen Einrichtungen, angemessen sicherstellen.\n - Bei Neuanlagen sind die Sicherheitsmassnahmen bereits im Notfallkonzept / Ausschaltung darzustellen. Diese müssen angemessen, plausibel und nachvollziehbar sein. \n\n"]
[]
[]
[]
[]
[]
[]
[]
[]
[]
[]
[]
[]
[]
[]
["."]
[]
["7.","Vorgesehene Ersatzmassnahmen",null,null,null,null,null,null,null," -","Brandwache",null,null,null,null," -","Rauchverbot",null,null,null,null,null,null,null,null,null,null,null,null,null," -","Zusätzliche Löschmittel",null,null,null,null,null,null,null," -","Personal informiert"]
[]
[null,null,null,null,null,null,null,null,null," -",null," -",null,null,null,null,null,null,null,null,null,null,null,null,null,null,null,null,null,null," -",null," -"]
["."]
[]
["8.","Bemerkungen",null,null,null,null,null,null,null," -"]
[]
[null,null,null,null,null,null,null,null,null," -"]
[]
[null,null,null,null,null,null,null,null,null," -"]
[]
[]
["9.","Verteiler / Laufweg",null,null,null,null,null,null,null,"x",null,"Feuerwehr",null,null,null,null,null,null,null,null,null,null,null,null,null,null,null,null,null,null,"(Beilagen senden)"]
[]
[null,null,null,null,null,null,null,null,null,"x",null,"Brandschutzbehörde",null,null,null,null,null,null,null,null,null,null,null,null,null,null,null,null,null,null,"(Beilagen optional senden)"]
[]
[null,null,null,null,null,null,null,null,null," -"]
[]
[]
["10.","Unterschrift Anlagebetreiber"]
[]
[null,null,null,null,null,null,"Ort",null,null,null,null,null,null,null,null,null,null,null,null,null,null,null,null,null,null,null,null,null,null,null,null,"Datum"]
[]
[null,null,null,null,null,null,"Name",null,null,null,null,null,null,null,null,null,null,null,null,null,null,null,null,null,null,null,null,null,null,null,null,"Unterschrift"]
[]
[]
[]
[]
[]
[]
["è",null,"Wiederinbetriebsetzung"]
[]
[]
[]
["11.","Termine",null,null,null,null,null,null,null,"Datum Wiederinbetriebsetzung"]
[]
[]
[null,"Verteiler / Laufweg",null,null,null,null,null,null,null,"x",null,"Feuerwehr",null,null,null,null,null,null,null,null,null,null,null,null,null,null,null,null,null,null,"(Beilagen senden)"]
[]
[null,null,null,null,null,null,null,null,null,"x",null,"Brandschutzbehörde",null,null,null,null,null,null,null,null,null,null,null,null,null,null,null,null,null,null,"(Beilagen optional senden)"]
[]
[]
[]
[]
["12.","Bemerkungen"]
[]
[]
[]
[]
[]
[]
[]
[]
["13.","Unterschrift Anlagebetreiber"]
[]
[null,null,null,null,null,null,"Ort",null,null,null,null,null,null,null,null,null,null,null,null,null,null,null,null,null,null,null,null,null,null,null,null,"Datum"]
[]
[null,null,null,null,null,null,"Name",null,null,null,null,null,null,null,null,null,null,null,null,null,null,null,null,null,null,null,null,null,null,null,null,"Unterschrift"]
[]
[]
[]
[]
["14.","Anhang A\nSicherheitsmass-nahmen",null,null,null,null,null,null,null,"Sicherheitsmassnahmen (siehe auch Merkblatt \"Massnahmen bei Ausschaltungen von Brandmelde- und Sprinkleranlagen\" Forum für technischen Brandschutz):"]
[]
[null,null,null,null,null,null,null,null,null,"1. Die Massnahmen sind aufgrund des festgelegten Schutzzieles durch die Betreiber- und Nutzerschaft zu definieren. "]
[]
[null,null,null,null,null,null,null,null,null,"2. Während der Ausschaltung der Brandmeldeanlage oder Teilen davon sind andere geeignete Sicherheitsmassnahmen zu treffen. Generell sollen die potentiellen Aktivierungsgefahren erkannt und gegebenenfalls beseitigt werden."]
[]
[]
[]
[null,null,null,null,null,null,null,null,null,"3. Die Sicherheitsmassnahmen müssen die Schutzziele, welche im Normalbetrieb durch die Brandmeldeanlage übernommen werden, wie z.B. das feststellen von Bränden, interne und externe Alarmierung, und Ansteuerung von brandschutztechnischen Ein-richtungen, angemessen sicherstellen."]
[]
[]
[]
[null,null,null,null,null,null,null,null,null,"4. Bei Neuanlagen sind die Sicherheitsmassnahmen bereits im Notfallkonzept / Ausschaltung darzustellen. Diese müssen angemessen, plausibel und nachvollziehbar sein. "]

{"sheet":"Behörden","index":6,"n_rows":31,"n_cols":10,"rows_kept":31,"cut":false,"hidden":true,"merged":[]}
[]
[null,null,"Kanton","Brandschutzbehörde"]
[null,null,null,"Brandschutzbehörde"]
[null,null,"AG","AG: Aargauische Gebäudeversicherung, Abteilung Brandschutz",null,null,null,null,"Änderungen:"]
[null,null,"AI","AI: Bauverwaltung Inneres Land AI"]
[null,null,"AR","AR: Assekuranz  AR",null,null,null,null,"2018-10-09","Technische Inspektorate Kanton Obwalden"]
[null,null,"BE","BE: Gebäudeversicherung Bern",null,null,null,null,"2021-04-30","SG: Abteilung Brandschutz, Gebäudeversicherung St.Gallen"]
[null,null,"BL","BL: Basellandschaftliche Gebäudeversicherung"]
[null,null,"BS","BS: Gebäudeversicherung des Kantons Basel-Stadt, Feuerpolizei"]
[null,null,"FR","FR: Etablissement cantonal d'assurance des bâtiments, Inspection du feu"]
[null,null,"GE","GE: Département des constructions et technologies de l'information, Police du feu"]
[null,null,"GL","GL: glarnerSach",null,"Auswahl: nicht löschen !"]
[null,null,"GR","GR: Feuerpolizei Graubünden"]
[null,null,"JU","JU: Etablissement cantonal d’assurance immobilière et de prévention",null," -"]
[null,null,"LU","LU: Gebäudeversicherung des Kantons Luzern",null,"x"]
[null,null,"NE","NE: Etablissement cantonal d'assurance et de prévention"]
[null,null,"NW","NW: NSV Nidwaldner Sachversicherung, Abteilung Sichern"]
[null,null,"OW","OW: Technische Inspektorate Kanton Obwalden"]
[null,null,"SG","SG: Abteilung Brandschutz, Gebäudeversicherung St.Gallen","QS Stufe"," -"]
[null,null,"SH","SH: Feuerpolizei des Kantons Schaffhausen",null,1]
[null,null,"SO","SO: Solothurnische Gebäudeversicherung",null,2]
[null,null,"SZ","SZ: Amt für Militär: Feuer- und Zivilschutz",null,3]
[null,null,"TI","TI: Ufficio delle domande di costruzione e dell'esame d'impatto ambiantale",null,4]
[null,null,"TG","TG: Feuerschutzamt des Kantons Thurgau"]
[null,null,"UR","UR: Amt für Bevölkerungsschutz und Militär, Abt. Brandschutz und Schutzbauten"]
[null,null,"VD","VD: Etablissement cantonal d'assurance "]
[null,null,"VS","VS: Service cantonal du feu et de la protection civile"]
[null,null,"ZG","ZG: Gebäudeversicherung Zug"]
[null,null,"ZH","ZH: Kantonale Feuerpolizei"]
[null,null,"FL","FL: Hochbauamt"]
[null,null,"VKF","VKF: Vereinigung Kantonaler Feuerversicherungen"]

{"sheet":"Änderungen","index":7,"n_rows":13,"n_cols":7,"rows_kept":13,"cut":false,"hidden":true,"merged":[]}
["Ä"]
[]
[]
[]
[]
[]
[null,"2018-10-09","Technische Inspektorate Kanton Obwalden",null,null,null,"roj"]
[]
[null,"2019-05-07","Zellen eingefügt in der Beurteilung"]
[null,null,"157, 159, 181"]
[]
[null,"2019-05-20","Zellen formatieren, Verknüpfungen korrigieren."]
[null,null,"Beurteilung anpassen zum in die Zellen Schreiben",null,null,null,"roj"]

{"sheet":"Fachstelle(n)","index":8,"n_rows":32,"n_cols":8,"rows_kept":32,"cut":false,"hidden":true,"merged":[]}
[]
[null,null,"Kanton","Fachstellen 2017"]
[null,null,null,"Fachstelle(n)"]
[null,null,"AG","AG: SAS akkreditierte Stelle",null,null,"2024-02-15","AG SAS akkreditierte Stelle"]
[null,null,"AI","AI: Brandschutzbehörde + Swiss Safety Center AG"]
[null,null,"AR","AR: Brandschutzbehörde + Ingenieurbüro Flückiger Partner AG, Diessenhofen"]
[null,null,"BE","BE: GVB Services AG, Ittigen"]
[null,null,"BL","BL: Swiss Safety Center AG"]
[null,null,"BS","BS: Febo Brandschutz GmbH, Münchenstein"]
[null,null,"FR","FR: Swiss Safety Center AG"]
[null,null,"GE","GE: Brandschutzbehörde"]
[null,null,"GL","GL: Goetschi Ingenieurbüro AG,  Buchs"]
[null,null,"GR","GR: Swiss Safety Center AG"]
[null,null,"GR","GR: PAGAenergie AG"]
[null,null,"GR","GR: Balzer Ingenieure AG"]
[null,null,"JU","JU: Swiss Safety Center AG"]
[null,null,"LU","LU: Brandschutzbehörde"]
[null,null,"NE","NE: Brandschutzbehörde + Swiss Safety Center AG"]
[null,null,"NW","NW: Goetschi Ingenieurbüro AG,  Buchs"]
[null,null,"OW","OW: Brandschutzbehörde + Swiss Safety Center AG"]
[null,null,"SG","SG: Brandschutzbehörde, Feuerstop GmbH Bütschwil"]
[null,null,"SH","SH: Sicherheitsinstitut, Ingenieurbüro Flückiger Partner AG, Diessenhofen"]
[null,null,"SO","SO: Goetschi Ingenieurbüro AG,  Buchs"]
[null,null,"SZ","SZ: Brandschutzbehörde + Swiss Safety Center AG"]
[null,null,"TG","TG: Ingenieurbüro Flückiger Partner AG, Diessenhofen"]
[null,null,"TI","TI: SAS akkreditierte Stelle"]
[null,null,"UR","UR: Swiss Safety Center AG"]
[null,null,"VD","VD: Brandschutzbehörde"]
[null,null,"VS","VS: SAS akkreditierte Stelle"]
[null,null,"ZG","ZG: Goetschi Ingenieurbüro AG,  Buchs"]
[null,null,"ZH","ZH: Brandschutzbehörde"]
[null,null,"FL","FL: Sicherheitsinstitut"]

{"sheet":"To-Do List","index":9,"n_rows":18,"n_cols":11,"rows_kept":18,"cut":false,"hidden":true,"merged":[]}
[]
[null,null,null,null,null,null,null,null,"Änderungsvorschläge zur Überarbeitung der BSR 2025",null,"Stand 30.09.2016 US / Gir"]
[]
[null,null,"Datum",null,"Richtline",null,"Punkt/Absatz",null,"Beschreibung der Änderung"]
[]
[1,null,"2016-06-10",null,"BSR 20-15 ",null,"4.1 Absatz 1",null,"Projektgenehmigung anstelle Kontrolle des Überwachungsumfang\n-neuer Text erfassen",null,"Utiger/Gir/Zürcher"]
[]
[2,null,"2016-06-10",null,"BSR 20-15 ",null,"4.1 Absatz 1",null,"Erweiterung Änderung anpassungen Anzahl Brandmelder und Überwachungsfläche\n-zusätzlicher Absatz erfassen",null,"Utiger/Gir/Zürcher"]
[]
[3,null,"2016-06-10",null,"BSR 20-15 ",null,"4.1/4. 2 Absatz 1",null,"zusätzlicher Absatz erfassen Formular Vorabklärung und Prozessdefinition alle Formulare über QS",null,"Utiger/Gir/Zürcher"]
[]
[4,null,"2016-06-10",null,"Allgemein",null,null,null,"Brandfallsteuerungen Abgleich SES BSE BSR\nAnforderungen an Brandfallsteuerungen im BSR definieren",null,"Utiger/Gir/Zürcher"]
[]
[5,null,"2016-06-10",null,"Allgemein",null,null,null,"Beschrieb Verantwortungsumfang für Unterschriften",null,"Utiger/Gir/Zürcher"]
[]
[6,null,"2016-06-10",null,"Allgemein",null,null,null,"Nach Fertigstellung der Formulare Probelauf von Involvierten",null,"Utiger/Gir/Zürcher"]
[]
[7,null,"2016-06-10",null,"Schulung",null,null,null,"Schulungsunterlagen erstellen in DE/F/I\nTagungen planen mit VKF Grubauer",null,"Utiger/Gir/Zürcher"]